Body Name,Body,Service Division Label,Service Division Code,Organisational Unit,Expenditure Category,Expenditure Code,CIPFA detailed expediture type,CIPFA detailed expediture code,Narrative,Date,Transaction number,Net Amount,Capital and Revenue,Supplier Name,Supplier ID,,
Chorley Borough Council,http://statistics.data.gov.uk/id/local-authority/30UE,Democratic Represent and  Mgnt,1007,Communities,External Contractor - Trust or Charity,50008,Private Contractors,5042,2020/21 MAN FEE,02/09/2021,0148221,"33,891.77",Revenue,Active Nation UK Ltd,17144,,
Chorley Borough Council,http://statistics.data.gov.uk/id/local-authority/30UE,Capital,Capital,Commercial & Property,Main Contractor,03007,Capital Expenditure,Capital,Buzz Bingo Civil & Structural Design works for the creation of temporary parking,15/09/2021,0160147,"2,500.00",Capital,Adept Consulting Engineers (Manchester) Ltd,83548,,
Chorley Borough Council,http://statistics.data.gov.uk/id/local-authority/30UE,Service Management & Support,1009,Customer & Digital,Supplies-Grounds Maintenance,40025,"Equipment, Furniture & Materia",5023,"As per Quotation 20218527, Quantity x 8, 0010 12-15090052 Side Skid Assembly Suction unit. Freight and Package",15/09/2021,0160295,423.46,Revenue,Aebi Schmidt UK Ltd,17287,,
Chorley Borough Council,http://statistics.data.gov.uk/id/local-authority/30UE,Capital,Capital,Policy & Governance,Architects Fees,03022,Capital Expenditure,Capital,architectural and interior design services Chorley Town Hall + The White Hart as per scope and fee proposal dated 15/02/2021,01/09/2021,0160145,"12,995.00",Capital,AEW Architects & Designers Ltd,66520,,
Chorley Borough Council,http://statistics.data.gov.uk/id/local-authority/30UE,Tourism,1039,Policy & Governance,Miscellaneous Expenses,40200,Miscellaneous Expenses,5034,cfs prize money,29/09/2021,0161079,325.00,Revenue,Alchemy Ferns,78237,,
Chorley Borough Council,http://statistics.data.gov.uk/id/local-authority/30UE,Central Support Services,1009,Customer & Digital,Bank Charges,40151,Miscellaneous Expenses,5034,add ac fee,22/09/2021,0160334,10.00,Revenue,Allpay Net Ltd,17242,,
Chorley Borough Council,http://statistics.data.gov.uk/id/local-authority/30UE,Central Support Services,1009,Customer & Digital,Bank Charges,40151,Miscellaneous Expenses,5034,post office,22/09/2021,0160334,569.17,Revenue,Allpay Net Ltd,17242,,
Chorley Borough Council,http://statistics.data.gov.uk/id/local-authority/30UE,Unapportionable Central OHeads,1009,Customer & Digital,Bank Charges,40151,Miscellaneous Expenses,5034,paypoint,22/09/2021,0160334,204.80,Revenue,Allpay Net Ltd,17242,,
Chorley Borough Council,http://statistics.data.gov.uk/id/local-authority/30UE,Unapportionable Central OHeads,1009,Customer & Digital,Bank Charges,40151,Miscellaneous Expenses,5034,webconn,22/09/2021,0160334,46.00,Revenue,Allpay Net Ltd,17242,,
Chorley Borough Council,http://statistics.data.gov.uk/id/local-authority/30UE,Central Support Services,1009,Communities,External Contractor,40198,Miscellaneous Expenses,5034,External Contractor -  Pest Control Service,15/09/2021,0158714,"2,859.13",Revenue,ALPHA PEST CONTROL LIMITED,18208,,
Chorley Borough Council,http://statistics.data.gov.uk/id/local-authority/30UE,Central Support Services,1009,Communities,External Contractor,40198,Miscellaneous Expenses,5034,Pest Control External Contractor Costs,01/09/2021,0158997,"2,019.10",Revenue,ALPHA PEST CONTROL LIMITED,18208,,
Chorley Borough Council,http://statistics.data.gov.uk/id/local-authority/30UE,Central Support Services,1009,Communities,External Contractor,40198,Miscellaneous Expenses,5034,Pest Control External Contractor Costs,22/09/2021,0159221,"1,341.15",Revenue,ALPHA PEST CONTROL LIMITED,18208,,
Chorley Borough Council,http://statistics.data.gov.uk/id/local-authority/30UE,Central Support Services,1009,Communities,External Contractor,40198,Miscellaneous Expenses,5034,Pest Control External Contractor Costs,22/09/2021,0159626,"2,598.63",Revenue,ALPHA PEST CONTROL LIMITED,18208,,
Chorley Borough Council,http://statistics.data.gov.uk/id/local-authority/30UE,Central Support Services,1009,Communities,External Contractor,40198,Miscellaneous Expenses,5034,Pest Control External Contractor Costs,22/09/2021,0159696,"1,640.86",Revenue,ALPHA PEST CONTROL LIMITED,18208,,
Chorley Borough Council,http://statistics.data.gov.uk/id/local-authority/30UE,Corporate Management,1008,Policy & Governance,Car Leasing Payment,14100,Direct Employee Expenses,5001,REDACTED,29/09/2021,0161127,367.35,Revenue,Alphabet (Uk) Fleet Management Ltd,16651,,
Chorley Borough Council,http://statistics.data.gov.uk/id/local-authority/30UE,Corporate Management,1008,Policy & Governance,Car Leasing Payment,14100,Direct Employee Expenses,5001,VAT,29/09/2021,0161127,32.55,Revenue,Alphabet (Uk) Fleet Management Ltd,16651,,
Chorley Borough Council,http://statistics.data.gov.uk/id/local-authority/30UE,Control Accounts,Control,Policy & Governance,Manual Control Account,00001,Balance Sheet,Balance,- VAT,29/09/2021,0161127,-32.55,Revenue,Alphabet (Uk) Fleet Management Ltd,16651,,
Chorley Borough Council,http://statistics.data.gov.uk/id/local-authority/30UE,Development Control,1091,Policy & Governance,Car Leasing Payment,14100,Direct Employee Expenses,5001,REDACTED,29/09/2021,0161127,250.79,Revenue,Alphabet (Uk) Fleet Management Ltd,16651,,
Chorley Borough Council,http://statistics.data.gov.uk/id/local-authority/30UE,Development Control,1091,Policy & Governance,Car Leasing Payment,14100,Direct Employee Expenses,5001,VAT,29/09/2021,0161127,21.23,Revenue,Alphabet (Uk) Fleet Management Ltd,16651,,
Chorley Borough Council,http://statistics.data.gov.uk/id/local-authority/30UE,Control Accounts,Control,Policy & Governance,Manual Control Account,00001,Balance Sheet,Balance,- VAT,29/09/2021,0161127,-21.23,Revenue,Alphabet (Uk) Fleet Management Ltd,16651,,
Chorley Borough Council,http://statistics.data.gov.uk/id/local-authority/30UE,Corporate Management,1008,Policy & Governance,Car Leasing Payment,14100,Direct Employee Expenses,5001,REDACTED,29/09/2021,0161128,355.50,Revenue,Alphabet (Uk) Fleet Management Ltd,16651,,
Chorley Borough Council,http://statistics.data.gov.uk/id/local-authority/30UE,Corporate Management,1008,Policy & Governance,Car Leasing Payment,14100,Direct Employee Expenses,5001,VAT,29/09/2021,0161128,31.50,Revenue,Alphabet (Uk) Fleet Management Ltd,16651,,
Chorley Borough Council,http://statistics.data.gov.uk/id/local-authority/30UE,Control Accounts,Control,Policy & Governance,Manual Control Account,00001,Balance Sheet,Balance,- VAT,29/09/2021,0161128,-31.50,Revenue,Alphabet (Uk) Fleet Management Ltd,16651,,
Chorley Borough Council,http://statistics.data.gov.uk/id/local-authority/30UE,Development Control,1091,Policy & Governance,Car Leasing Payment,14100,Direct Employee Expenses,5001,REDACTED,29/09/2021,0161128,242.70,Revenue,Alphabet (Uk) Fleet Management Ltd,16651,,
Chorley Borough Council,http://statistics.data.gov.uk/id/local-authority/30UE,Development Control,1091,Policy & Governance,Car Leasing Payment,14100,Direct Employee Expenses,5001,VAT,29/09/2021,0161128,20.55,Revenue,Alphabet (Uk) Fleet Management Ltd,16651,,
Chorley Borough Council,http://statistics.data.gov.uk/id/local-authority/30UE,Control Accounts,Control,Policy & Governance,Manual Control Account,00001,Balance Sheet,Balance,- VAT,29/09/2021,0161128,-20.55,Revenue,Alphabet (Uk) Fleet Management Ltd,16651,,
Chorley Borough Council,http://statistics.data.gov.uk/id/local-authority/30UE,Unapportionable Central OHeads,1009,Commercial & Property,General Repairs - Reactive,20004,Repairs Maintenance & Alts,5005,Cotswold House - reactive repair works,15/09/2021,0158258,309.80,Revenue,Amalgamated Ltd,78289,,
Chorley Borough Council,http://statistics.data.gov.uk/id/local-authority/30UE,Unapportionable Central OHeads,1009,Commercial & Property,Planned Maintenance,20006,Repairs Maintenance & Alts,5005,"inv 101393, Preventative Maintenance, No of Call Actions: 1, Gaseous System, Gas Systems Maintenance Charge",01/09/2021,0159033,291.20,Revenue,Amalgamated Ltd,78289,,
Chorley Borough Council,http://statistics.data.gov.uk/id/local-authority/30UE,Unapportionable Central OHeads,1009,Commercial & Property,General Repairs - Reactive,20004,Repairs Maintenance & Alts,5005,Cotswold House - reactive repair works,15/09/2021,0160037,"1,252.00",Revenue,Amalgamated Ltd,78289,,
Chorley Borough Council,http://statistics.data.gov.uk/id/local-authority/30UE,Business Support,1095,Commercial & Property,General Repairs - Reactive,20004,Repairs Maintenance & Alts,5005,"Strawberry Fields, Install video door intercom on the main door, suitable location",01/09/2021,0160138,"1,812.28",Revenue,Amalgamated Ltd,78289,,
Chorley Borough Council,http://statistics.data.gov.uk/id/local-authority/30UE,Unapportionable Central OHeads,1009,Commercial & Property,Planned Maintenance,20006,Repairs Maintenance & Alts,5005,"inv 101827, Union St, Access Control System, 4hrs labour, 12v boxed PSU, Cable and consumables allowance",15/09/2021,0160189,497.90,Revenue,Amalgamated Ltd,78289,,
Chorley Borough Council,http://statistics.data.gov.uk/id/local-authority/30UE,Unapportionable Central OHeads,1009,Commercial & Property,General Repairs - Reactive,20004,Repairs Maintenance & Alts,5005,Primrose Gardens  - reactive repair works,15/09/2021,0160194,264.12,Revenue,Amalgamated Ltd,78289,,
Chorley Borough Council,http://statistics.data.gov.uk/id/local-authority/30UE,Unapportionable Central OHeads,1009,Commercial & Property,General Repairs - Reactive,20004,Repairs Maintenance & Alts,5005,Primrose Gardens  - reactive repair works,15/09/2021,0160414,315.32,Revenue,Amalgamated Ltd,78289,,
Chorley Borough Council,http://statistics.data.gov.uk/id/local-authority/30UE,Unapportionable Central OHeads,1009,Commercial & Property,General Repairs - Reactive,20004,Repairs Maintenance & Alts,5005,Clayton Green - Reactive,22/09/2021,0160580,757.38,Revenue,Amalgamated Ltd,78289,,
Chorley Borough Council,http://statistics.data.gov.uk/id/local-authority/30UE,Unapportionable Central OHeads,1009,Commercial & Property,General Repairs - Reactive,20004,Repairs Maintenance & Alts,5005,Cotswold House - reactive repair works,29/09/2021,0160801,353.04,Revenue,Amalgamated Ltd,78289,,
Chorley Borough Council,http://statistics.data.gov.uk/id/local-authority/30UE,Business Support,1095,Commercial & Property,Planned Maintenance,20006,Repairs Maintenance & Alts,5005,"inv 99681, MW Ext, Preventative Maintenance, Fire Alarm System, Fire Alarm Maintenance Charge",29/09/2021,0160901,250.00,Revenue,Amalgamated Ltd,78289,,
Chorley Borough Council,http://statistics.data.gov.uk/id/local-authority/30UE,Central Support Services,1009,Customer & Digital,Computer Software-Additional,40102,Communication and Computing,5028,"Amazon AWS web services - 718576685325 Cloud charges, September 2021",15/09/2021,0160408,"2,873.33",Revenue,Amazon Web Services EMEA SARL,80604,,
Chorley Borough Council,http://statistics.data.gov.uk/id/local-authority/30UE,Central Support Services,1009,Customer & Digital,Computer Software-Additional,40102,Communication and Computing,5028,"Amazon AWS web services - 718576685325 Cloud charges, June 2021",29/09/2021,0160839,"2,066.09",Revenue,Amazon Web Services EMEA SARL,80604,,
Chorley Borough Council,http://statistics.data.gov.uk/id/local-authority/30UE,Central Support Services,1009,Customer & Digital,Computer Software-Additional,40102,Communication and Computing,5028,"Amazon AWS web services - 718576685325 Cloud charges, April 2021",29/09/2021,0160848,"1,570.32",Revenue,Amazon Web Services EMEA SARL,80604,,
Chorley Borough Council,http://statistics.data.gov.uk/id/local-authority/30UE,Central Support Services,1009,Customer & Digital,Computer Software-Additional,40102,Communication and Computing,5028,"Amazon AWS web services - 718576685325 Cloud charges, November 2021",29/09/2021,0160903,"2,051.32",Revenue,Amazon Web Services EMEA SARL,80604,,
Chorley Borough Council,http://statistics.data.gov.uk/id/local-authority/30UE,Central Support Services,1009,Customer & Digital,Computer Software-Additional,40102,Communication and Computing,5028,"Amazon AWS web services - 718576685325 Cloud charges, October 2021",29/09/2021,0160973,"2,302.11",Revenue,Amazon Web Services EMEA SARL,80604,,
Chorley Borough Council,http://statistics.data.gov.uk/id/local-authority/30UE,Central Support Services,1009,Customer & Digital,Computer Software-Additional,40102,Communication and Computing,5028,"Amazon AWS web services - 718576685325 Cloud charges, August 2021",29/09/2021,0160975,"1,775.20",Revenue,Amazon Web Services EMEA SARL,80604,,
Chorley Borough Council,http://statistics.data.gov.uk/id/local-authority/30UE,Central Support Services,1009,Customer & Digital,Computer Software-Additional,40102,Communication and Computing,5028,"Amazon AWS web services - 718576685325 Cloud charges, August 2021",29/09/2021,0160976,"2,042.94",Revenue,Amazon Web Services EMEA SARL,80604,,
Chorley Borough Council,http://statistics.data.gov.uk/id/local-authority/30UE,Central Support Services,1009,Customer & Digital,Computer Software-Maintenance,40107,Communication and Computing,5028,Relocation of 10x Cat5e network points within existing dado trunking on the top floor of the Town Hall.,15/09/2021,0160003,280.00,Revenue,Ampec,76813,,
Chorley Borough Council,http://statistics.data.gov.uk/id/local-authority/30UE,Unapportionable Central OHeads,1009,Policy & Governance,Refreshments,40036,Catering,5024,"Sanitisation, provision of water and hire of machines for all Council sites - 2021/22",15/09/2021,0160411,520.47,Revenue,Angel Springs Ltd T/A Waterlogic UK,77689,,
Chorley Borough Council,http://statistics.data.gov.uk/id/local-authority/30UE,Central Support Services,1009,Communities,Impounded Dogs Costs,40207,Miscellaneous Expenses,5034,Retainer for July 2021,01/09/2021,0160058,320.00,Revenue,Animal Wardens Ltd,80965,,
Chorley Borough Council,http://statistics.data.gov.uk/id/local-authority/30UE,Central Support Services,1009,Communities,Impounded Dogs Costs,40207,Miscellaneous Expenses,5034,Retainer plus collection and kennelling of stray dogs August 2021,22/09/2021,0160824,515.20,Revenue,Animal Wardens Ltd,80965,,
Chorley Borough Council,http://statistics.data.gov.uk/id/local-authority/30UE,Service Management & Support,1009,Customer & Digital,Protective Clothing,40040,"Clothing, Uniforms and Laundry",5025,"Prescription safety eyewear, varifocal lense, no eye test required, no dispensing fee, 1 x swarm grey, 1 x Velia",15/09/2021,0158465,260.00,Revenue,Arco Limited,17458,,
Chorley Borough Council,http://statistics.data.gov.uk/id/local-authority/30UE,Public Transport,1067,Customer & Digital,Bus Shelters -Maintenance,20062,Grounds Maintenance Costs,5013,"Install new shelter at Preston Road, Opposite St josephs church And removal of damaged shelter and callout to make safe",22/09/2021,0159917,"4,310.00",Revenue,Autocross Euroshel Ltd,77509,,
Chorley Borough Council,http://statistics.data.gov.uk/id/local-authority/30UE,Public Transport,1067,Customer & Digital,Bus Shelters -Maintenance,20062,Grounds Maintenance Costs,5013,"Brooke street Chorley shelter removed, damaged shelter removed at a cost of 385.00, Site attendance 125.00",22/09/2021,0160758,510.00,Revenue,Autocross Euroshel Ltd,77509,,
Chorley Borough Council,http://statistics.data.gov.uk/id/local-authority/30UE,Democratic Represent and  Mgnt,1007,Communities,Electricity,20013,Energy Costs,5006,Gas Oct 2020,15/09/2021,0160728,951.83,Revenue,Avantigas,83690,,
Chorley Borough Council,http://statistics.data.gov.uk/id/local-authority/30UE,Democratic Represent and  Mgnt,1007,Communities,Gas,20014,Energy Costs,5006,Gas Nov 2020,15/09/2021,0160729,"1,204.09",Revenue,Avantigas,83690,,
Chorley Borough Council,http://statistics.data.gov.uk/id/local-authority/30UE,Democratic Represent and  Mgnt,1007,Communities,Gas,20014,Energy Costs,5006,Gas bill October 2020,15/09/2021,0160731,"1,109.64",Revenue,Avantigas,83690,,
Chorley Borough Council,http://statistics.data.gov.uk/id/local-authority/30UE,Democratic Represent and  Mgnt,1007,Communities,Gas,20014,Energy Costs,5006,Gas November 2020,15/09/2021,0160732,"2,839.03",Revenue,Avantigas,83690,,
Chorley Borough Council,http://statistics.data.gov.uk/id/local-authority/30UE,Democratic Represent and  Mgnt,1007,Communities,Gas,20014,Energy Costs,5006,Gas Oct 2020,15/09/2021,0160733,"11,107.92",Revenue,Avantigas,83690,,
Chorley Borough Council,http://statistics.data.gov.uk/id/local-authority/30UE,Democratic Represent and  Mgnt,1007,Communities,Gas,20014,Energy Costs,5006,Gas Dec 2020,15/09/2021,0160734,"10,912.98",Revenue,Avantigas,83690,,
Chorley Borough Council,http://statistics.data.gov.uk/id/local-authority/30UE,Democratic Represent and  Mgnt,1007,Communities,Gas,20014,Energy Costs,5006,Gas Nov 2020,15/09/2021,0160736,"7,032.36",Revenue,Avantigas,83690,,
Chorley Borough Council,http://statistics.data.gov.uk/id/local-authority/30UE,Democratic Represent and  Mgnt,1007,Communities,Gas,20014,Energy Costs,5006,Gas Dec 2020,15/09/2021,0160737,405.05,Revenue,Avantigas,83690,,
Chorley Borough Council,http://statistics.data.gov.uk/id/local-authority/30UE,Democratic Represent and  Mgnt,1007,Communities,Gas,20014,Energy Costs,5006,Gas Oct 2020,15/09/2021,0160738,"3,189.86",Revenue,Avantigas,83690,,
Chorley Borough Council,http://statistics.data.gov.uk/id/local-authority/30UE,Corporate Management,1008,Commercial & Property,Miscellaneous Expenses,40200,Miscellaneous Expenses,5034,Extend the hire period for the 32 x 10 unisex 7 bay toilet 1 @ 148.00 per week (11 weeks) until 24.09.21,08/09/2021,0160320,655.43,Revenue,AVDanzer,81970,,
Chorley Borough Council,http://statistics.data.gov.uk/id/local-authority/30UE,Corporate Management,1008,Commercial & Property,Miscellaneous Expenses,40200,Miscellaneous Expenses,5034,Hire of 9 x 9 disabled toilet /shower 1 69.00 per week (11 weeks) expiring 24.09.21,08/09/2021,0160320,305.57,Revenue,AVDanzer,81970,,
Chorley Borough Council,http://statistics.data.gov.uk/id/local-authority/30UE,Business Support,1095,Commercial & Property,Cleaning Services,20033,Cleaning and Domestic Supplies,5012,"Hot pressure washing/Surface cleaning of section of paving at Market Walk, gum removal from Poundland to Ladbrokes",15/09/2021,0160187,750.00,Revenue,AWAY SERVICES GROUP LTD T/AS BLAST AWAY,83471,,
Chorley Borough Council,http://statistics.data.gov.uk/id/local-authority/30UE,Service Management & Support,1009,Customer & Digital,Hire Of Vehicles and Plant,30028,Contrct Hire & Operating Lease,5018,"ITT Invitation to Tender, contract hire, servicing, maintenance of Grounds Maintenance Machinery, 2x rotary cutting decks",15/09/2021,0159202,"1,242.40",Revenue,Balmers Garden Machinery,17075,,
Chorley Borough Council,http://statistics.data.gov.uk/id/local-authority/30UE,Service Management & Support,1009,Customer & Digital,Supplies-Grounds Maintenance,40025,"Equipment, Furniture & Materia",5023,"1 x Acer rubrum, 1 x Carpinus betulus, 1 x Prunus Kanzan, 1 x Cupressus sempervirens, 1 x Crataegus Lav 'Paul's Scarlet'",15/09/2021,0160535,853.00,Revenue,Barcham Trees Plc,78079,,
Chorley Borough Council,http://statistics.data.gov.uk/id/local-authority/30UE,Corporate Management,1008,Policy & Governance,Bank Charges,40151,Miscellaneous Expenses,5034,,02/09/2021,0159411,140.00,Revenue,Barclaycard Merchant Services,61601,,
Chorley Borough Council,http://statistics.data.gov.uk/id/local-authority/30UE,Corporate Management,1008,Policy & Governance,Bank Charges,40151,Miscellaneous Expenses,5034,,02/09/2021,0159411,159.51,Revenue,Barclaycard Merchant Services,61601,,
Chorley Borough Council,http://statistics.data.gov.uk/id/local-authority/30UE,Corporate Management,1008,Policy & Governance,Bank Charges,40151,Miscellaneous Expenses,5034,,02/09/2021,0159412,15.00,Revenue,Barclaycard Merchant Services,61601,,
Chorley Borough Council,http://statistics.data.gov.uk/id/local-authority/30UE,Corporate Management,1008,Policy & Governance,Bank Charges,40151,Miscellaneous Expenses,5034,,02/09/2021,0159412,"1,350.67",Revenue,Barclaycard Merchant Services,61601,,
Chorley Borough Council,http://statistics.data.gov.uk/id/local-authority/30UE,Corporate Management,1008,Policy & Governance,Bank Charges,40151,Miscellaneous Expenses,5034,,02/09/2021,0159413,15.00,Revenue,Barclaycard Merchant Services,61601,,
Chorley Borough Council,http://statistics.data.gov.uk/id/local-authority/30UE,Corporate Management,1008,Policy & Governance,Bank Charges,40151,Miscellaneous Expenses,5034,,02/09/2021,0159413,922.46,Revenue,Barclaycard Merchant Services,61601,,
Chorley Borough Council,http://statistics.data.gov.uk/id/local-authority/30UE,Corporate Management,1008,Policy & Governance,Bank Charges,40151,Miscellaneous Expenses,5034,,02/09/2021,0159416,15.00,Revenue,Barclaycard Merchant Services,61601,,
Chorley Borough Council,http://statistics.data.gov.uk/id/local-authority/30UE,Corporate Management,1008,Policy & Governance,Bank Charges,40151,Miscellaneous Expenses,5034,,02/09/2021,0159416,"2,161.92",Revenue,Barclaycard Merchant Services,61601,,
Chorley Borough Council,http://statistics.data.gov.uk/id/local-authority/30UE,Corporate Management,1008,Policy & Governance,Bank Charges,40151,Miscellaneous Expenses,5034,,02/09/2021,0159417,15.00,Revenue,Barclaycard Merchant Services,61601,,
Chorley Borough Council,http://statistics.data.gov.uk/id/local-authority/30UE,Corporate Management,1008,Policy & Governance,Bank Charges,40151,Miscellaneous Expenses,5034,,02/09/2021,0159417,"1,213.18",Revenue,Barclaycard Merchant Services,61601,,
Chorley Borough Council,http://statistics.data.gov.uk/id/local-authority/30UE,Corporate Management,1008,Policy & Governance,Bank Charges,40151,Miscellaneous Expenses,5034,,02/09/2021,0159418,15.00,Revenue,Barclaycard Merchant Services,61601,,
Chorley Borough Council,http://statistics.data.gov.uk/id/local-authority/30UE,Corporate Management,1008,Policy & Governance,Bank Charges,40151,Miscellaneous Expenses,5034,,02/09/2021,0159418,417.46,Revenue,Barclaycard Merchant Services,61601,,
Chorley Borough Council,http://statistics.data.gov.uk/id/local-authority/30UE,Tourism,1039,Policy & Governance,Children's Activities,40188,Miscellaneous Expenses,5034,Provision of Rides for CFS Event,29/09/2021,0160771,750.00,Revenue,Bewleys,76203,,
Chorley Borough Council,http://statistics.data.gov.uk/id/local-authority/30UE,Unapportionable Central OHeads,1009,Policy & Governance,Exhibitions & Special Events,40158,Miscellaneous Expenses,5034,Provision of rides for PP,29/09/2021,0160772,550.00,Revenue,Bewleys,76203,,
Chorley Borough Council,http://statistics.data.gov.uk/id/local-authority/30UE,Central Support Services,1009,Policy & Governance,External Contractor,40198,Miscellaneous Expenses,5034,Payroll Services Contract for 2021/22,15/09/2021,0160152,"1,399.02",Revenue,Blackpool Borough Council,16518,,
Chorley Borough Council,http://statistics.data.gov.uk/id/local-authority/30UE,Central Support Services,1009,Policy & Governance,External Contractor,40198,Miscellaneous Expenses,5034,Payroll Services Contract for 2021/22,15/09/2021,0160186,"1,133.90",Revenue,Blackpool Borough Council,16518,,
Chorley Borough Council,http://statistics.data.gov.uk/id/local-authority/30UE,Central Support Services,1009,Policy & Governance,External Contractor,40198,Miscellaneous Expenses,5034,Payroll Services Contract for 2021/22,15/09/2021,0160357,"5,979.61",Revenue,Blackpool Borough Council,16518,,
Chorley Borough Council,http://statistics.data.gov.uk/id/local-authority/30UE,Central Support Services,1009,Customer & Digital,Network Line Rental,40248,Communication and Computing,5028,"Event Broadband: Setup & Installation, Service Charge (Up to 50Mbps Download, Up to 20Mbps Upload).",15/09/2021,0158602,"1,106.35",Revenue,Boundless Networks Ltd,77550,,
Chorley Borough Council,http://statistics.data.gov.uk/id/local-authority/30UE,Corporate Management,1008,Commercial & Property,Exhibitions & Special Events,40158,Miscellaneous Expenses,5034,Supply entertainment (Punch and Judy & balloon modelling) for summer fun Thursdays 22nd July to 26 August inclusive.,08/09/2021,0160359,"2,160.00",Revenue,Brian Gore,18370,,
Chorley Borough Council,http://statistics.data.gov.uk/id/local-authority/30UE,Business Support,1095,Commercial & Property,Building Services,20030,Fixtures and Fittings,5010,"12 boxes of JHS Urban Lines Carpet Tiles, Anthracite 980 @ 90 each, per your quote by email 11/08/2021",15/09/2021,0159965,"1,080.00",Revenue,Brian J Watts Flooring Ltd,78415,,
Chorley Borough Council,http://statistics.data.gov.uk/id/local-authority/30UE,Tourism,1039,Policy & Governance,Miscellaneous Expenses,40200,Miscellaneous Expenses,5034,cfs prize money,29/09/2021,0161088,400.00,Revenue,Brighter Blooms,71496,,
Chorley Borough Council,http://statistics.data.gov.uk/id/local-authority/30UE,Democratic Represent and  Mgnt,1007,Customer & Digital,Telephones - Rentals,40083,Communication and Computing,5028,BT line rental,15/09/2021,0160612,396.42,Revenue,British Telecommunications Plc,17131,,
Chorley Borough Council,http://statistics.data.gov.uk/id/local-authority/30UE,Capital,Capital,Commercial & Property,Main Contractor,03007,Capital Expenditure,Capital,"Conservation of chandelier and 7 bag lights in The Council Chamber. Dismantling fittings, packing and transport to workshop",15/09/2021,0159232,"2,152.00",Capital,Brotheridge Chandeliers,81464,,
Chorley Borough Council,http://statistics.data.gov.uk/id/local-authority/30UE,Community Development,1097,Commercial & Property,General Repairs - Reactive,20004,Repairs Maintenance & Alts,5005,market st ceiling tiles repairs and anti climb paint,01/09/2021,0160206,"9,080.30",Revenue,Bryan Lee Building Contractors Ltd,78160,,
Chorley Borough Council,http://statistics.data.gov.uk/id/local-authority/30UE,Capital,Capital,Commercial & Property,Main Contractor,03007,Capital Expenditure,Capital,"Town Hall Chamber, Various works carried out as requested: Tiling, painting, putting up signs, etc",01/09/2021,0160207,985.91,Capital,Bryan Lee Building Contractors Ltd,78160,,
Chorley Borough Council,http://statistics.data.gov.uk/id/local-authority/30UE,Capital,Capital,Commercial & Property,Main Contractor,03007,Capital Expenditure,Capital,Astley Hall Renovation / Conservation Project,15/09/2021,0159537,"56,607.17",Capital,Bullen Conservation Ltd,68424,,
Chorley Borough Council,http://statistics.data.gov.uk/id/local-authority/30UE,Capital,Capital,Commercial & Property,Main Contractor,03007,Capital Expenditure,Capital,Astley Hall redecoration works as agreed by NAME REDACTED Quotation - Q6200,15/09/2021,0160708,"29,978.79",Capital,Bullen Conservation Ltd,68424,,
Chorley Borough Council,http://statistics.data.gov.uk/id/local-authority/30UE,Capital,Capital,Commercial & Property,Main Contractor,03007,Capital Expenditure,Capital,Astley Hall Renovation / Conservation Project,22/09/2021,0160741,"70,264.93",Capital,Bullen Conservation Ltd,68424,,
Chorley Borough Council,http://statistics.data.gov.uk/id/local-authority/30UE,Service Management & Support,1009,Customer & Digital,Supplies-Grounds Maintenance,40025,"Equipment, Furniture & Materia",5023,"Period up to 31/03/2022 Bengal St Depot - Empty yard catch pits each month, Empty yard interceptor every 3 months",22/09/2021,0158678,"1,430.00",Revenue,C J Lyon,16579,,
Chorley Borough Council,http://statistics.data.gov.uk/id/local-authority/30UE,Service Management & Support,1009,Customer & Digital,Supplies-Grounds Maintenance,40025,"Equipment, Furniture & Materia",5023,"Period up to 31/03/2022, Bengal St Depot - Empty yard catch pits each month, Empty yard interceptor every 3 months",22/09/2021,0159538,390.00,Revenue,C J Lyon,16579,,
Chorley Borough Council,http://statistics.data.gov.uk/id/local-authority/30UE,Service Management & Support,1009,Customer & Digital,Supplies-Grounds Maintenance,40025,"Equipment, Furniture & Materia",5023,"Supply In Bloom buffet for 20 people at the Reflection Garden, Walled Garden, Astley Park",15/09/2021,0159204,308.33,Revenue,Cafe Ambio,22328,,
Chorley Borough Council,http://statistics.data.gov.uk/id/local-authority/30UE,Tourism,1039,Policy & Governance,Refreshments,40036,Catering,5024,Flower Show Tab,15/09/2021,0159629,320.62,Revenue,Cafe Ambio,22328,,
Chorley Borough Council,http://statistics.data.gov.uk/id/local-authority/30UE,Building Control,1090,Customer & Digital,Agency Staff,13000,Direct Employee Expenses,5001,Agency fees for NAME REDACTED 6 months contract,15/09/2021,0159923,"1,274.00",Revenue,Carrington West Ltd,83124,,
Chorley Borough Council,http://statistics.data.gov.uk/id/local-authority/30UE,Building Control,1090,Customer & Digital,Agency Staff,13000,Direct Employee Expenses,5001,Agency fees for NAME REDACTED 6 months contract,15/09/2021,0159992,"1,365.00",Revenue,Carrington West Ltd,83124,,
Chorley Borough Council,http://statistics.data.gov.uk/id/local-authority/30UE,Building Control,1090,Customer & Digital,Agency Staff,13000,Direct Employee Expenses,5001,Agency fees for NAME REDACTED 6 months contract,15/09/2021,0160360,"1,729.00",Revenue,Carrington West Ltd,83124,,
Chorley Borough Council,http://statistics.data.gov.uk/id/local-authority/30UE,Building Control,1090,Customer & Digital,Agency Staff,13000,Direct Employee Expenses,5001,Agency fees for NAME REDACTED 6 months contract,15/09/2021,0160555,"1,781.00",Revenue,Carrington West Ltd,83124,,
Chorley Borough Council,http://statistics.data.gov.uk/id/local-authority/30UE,Building Control,1090,Customer & Digital,Agency Staff,13000,Direct Employee Expenses,5001,Agency fees for NAME REDACTED 6 months contract,15/09/2021,0160556,"1,209.00",Revenue,Carrington West Ltd,83124,,
Chorley Borough Council,http://statistics.data.gov.uk/id/local-authority/30UE,Building Control,1090,Customer & Digital,Agency Staff,13000,Direct Employee Expenses,5001,Agency fees for NAME REDACTED 6 months contract,29/09/2021,0160920,"1,339.00",Revenue,Carrington West Ltd,83124,,
Chorley Borough Council,http://statistics.data.gov.uk/id/local-authority/30UE,Unapportionable Central OHeads,1009,Policy & Governance,Agency Staff,13000,Direct Employee Expenses,5001,NAME REDACTED,29/09/2021,0159631,"2,100.00",Revenue,Castlefield Recruitment Limited,80454,,
Chorley Borough Council,http://statistics.data.gov.uk/id/local-authority/30UE,Unapportionable Central OHeads,1009,Policy & Governance,Agency Staff,13000,Direct Employee Expenses,5001,NAME REDACTED,29/09/2021,0159632,"1,680.00",Revenue,Castlefield Recruitment Limited,80454,,
Chorley Borough Council,http://statistics.data.gov.uk/id/local-authority/30UE,Unapportionable Central OHeads,1009,Policy & Governance,Agency Staff,13000,Direct Employee Expenses,5001,NAME REDACTED,29/09/2021,0159990,"2,100.00",Revenue,Castlefield Recruitment Limited,80454,,
Chorley Borough Council,http://statistics.data.gov.uk/id/local-authority/30UE,Unapportionable Central OHeads,1009,Policy & Governance,Agency Staff,13000,Direct Employee Expenses,5001,NAME REDACTED,29/09/2021,0159991,"2,100.00",Revenue,Castlefield Recruitment Limited,80454,,
Chorley Borough Council,http://statistics.data.gov.uk/id/local-authority/30UE,Corporate Management,1008,Policy & Governance,Agency Staff,13000,Direct Employee Expenses,5001,NAME REDACTED,22/09/2021,0160277,"1,650.00",Revenue,Castlefield Recruitment Limited,80454,,
Chorley Borough Council,http://statistics.data.gov.uk/id/local-authority/30UE,Corporate Management,1008,Policy & Governance,Agency Staff,13000,Direct Employee Expenses,5001,NAME REDACTED,22/09/2021,0160361,"1,650.00",Revenue,Castlefield Recruitment Limited,80454,,
Chorley Borough Council,http://statistics.data.gov.uk/id/local-authority/30UE,Corporate Management,1008,Policy & Governance,Agency Staff,13000,Direct Employee Expenses,5001,NAME REDACTED,22/09/2021,0160878,"1,650.00",Revenue,Castlefield Recruitment Limited,80454,,
Chorley Borough Council,http://statistics.data.gov.uk/id/local-authority/30UE,Unapportionable Central OHeads,1009,Policy & Governance,Agency Staff,13000,Direct Employee Expenses,5001,NAME REDACTED,29/09/2021,0161129,"1,260.00",Revenue,Castlefield Recruitment Limited,80454,,
Chorley Borough Council,http://statistics.data.gov.uk/id/local-authority/30UE,Unapportionable Central OHeads,1009,Policy & Governance,Agency Staff,13000,Direct Employee Expenses,5001,NAME REDACTED,29/09/2021,0161156,"2,100.00",Revenue,Castlefield Recruitment Limited,80454,,
Chorley Borough Council,http://statistics.data.gov.uk/id/local-authority/30UE,Unapportionable Central OHeads,1009,Policy & Governance,Agency Staff,13000,Direct Employee Expenses,5001,NAME REDACTED,29/09/2021,0161170,"2,100.00",Revenue,Castlefield Recruitment Limited,80454,,
Chorley Borough Council,http://statistics.data.gov.uk/id/local-authority/30UE,Corporate Management,1008,Commercial & Property,Miscellaneous Expenses,40200,Miscellaneous Expenses,5034,Covid spraying at sites across the council,15/09/2021,0159996,"4,350.00",Revenue,Castus Solutions Limited,78812,,
Chorley Borough Council,http://statistics.data.gov.uk/id/local-authority/30UE,Corporate Management,1008,Commercial & Property,Miscellaneous Expenses,40200,Miscellaneous Expenses,5034,Covid spraying at sites across the council,29/09/2021,0160798,"4,250.00",Revenue,Castus Solutions Limited,78812,,
Chorley Borough Council,http://statistics.data.gov.uk/id/local-authority/30UE,Tourism,1039,Policy & Governance,Children's Activities,40188,Miscellaneous Expenses,5034,Children's art and crafts at CFS,15/09/2021,0160355,900.00,Revenue,Charlotte Gleave t/a Ivy and Primrose,78201,,
Chorley Borough Council,http://statistics.data.gov.uk/id/local-authority/30UE,Parking Services,1066,Commercial & Property,External Contractors,50008,Private Contractors,5042,"Notice Processing Services, Automated Telephone and Internet Payments, Internet Evidence and Submission Services",01/09/2021,0158946,352.11,Revenue,Chipside Ltd,22063,,
Chorley Borough Council,http://statistics.data.gov.uk/id/local-authority/30UE,Parking Services,1066,Commercial & Property,External Contractors,50008,Private Contractors,5042,"Processing 075, 076, 077, 079, 080, 085, 086, MIPERMIT FEES, MIPERMIT CHARGE, ELECPAYBANKFEE, 010, 011",01/09/2021,0158946,31.74,Revenue,Chipside Ltd,22063,,
Chorley Borough Council,http://statistics.data.gov.uk/id/local-authority/30UE,Parking Services,1066,Commercial & Property,External Contractors,50008,Private Contractors,5042,"Notice Processing Services, Automated Telephone and Internet Payments, Internet Evidence and Submission Services",01/09/2021,0159988,375.39,Revenue,Chipside Ltd,22063,,
Chorley Borough Council,http://statistics.data.gov.uk/id/local-authority/30UE,Parking Services,1066,Commercial & Property,External Contractors,50008,Private Contractors,5042,"Processing 075, 076, 077, 079, 080, 085, 086, MIPERMIT FEES, MIPERMIT CHARGE, ELECPAYBANKFEE, 010, 011",01/09/2021,0159988,124.20,Revenue,Chipside Ltd,22063,,
Chorley Borough Council,http://statistics.data.gov.uk/id/local-authority/30UE,Parking Services,1066,Commercial & Property,External Contractors,50008,Private Contractors,5042,"Notice Processing Services, Automated Telephone and Internet Payments, Internet Evidence and Submission Services",29/09/2021,0160882,325.92,Revenue,Chipside Ltd,22063,,
Chorley Borough Council,http://statistics.data.gov.uk/id/local-authority/30UE,Parking Services,1066,Commercial & Property,External Contractors,50008,Private Contractors,5042,"Processing 075, 076, 077, 079, 080, 085, 086, MIPERMIT FEES, MIPERMIT CHARGE, ELECPAYBANKFEE, 010, 011",29/09/2021,0160882,68.31,Revenue,Chipside Ltd,22063,,
Chorley Borough Council,http://statistics.data.gov.uk/id/local-authority/30UE,Corporate Management,1008,Customer & Digital,Taxi Testing & Vehicle Safety Report,40234,Services,5027,mot,22/09/2021,0160921,"1,151.85",Revenue,Chorley Autocare Ltd,17110,,
Chorley Borough Council,http://statistics.data.gov.uk/id/local-authority/30UE,Corporate Management,1008,Customer & Digital,Taxi Testing & Vehicle Safety Report,40234,Services,5027,taxi test,22/09/2021,0160921,179.55,Revenue,Chorley Autocare Ltd,17110,,
Chorley Borough Council,http://statistics.data.gov.uk/id/local-authority/30UE,Other Short Term Creditors,,Policy & Governance,General Balances,00100,Balance Sheet,Balance,"Transfer of income (card, direct debit less rddds) from 1st - 18th August incl",02/09/2021,0159927,"36,005.55",Revenue,Chorley Leisure Ltd,83376,,
Chorley Borough Council,http://statistics.data.gov.uk/id/local-authority/30UE,Central Support Services,1009,Communities,Children's Activities,40188,Miscellaneous Expenses,5034,Delivery of Holiday Activity and Food programme,15/09/2021,0160362,"54,800.00",Revenue,Chorley School Sport Partnership,56115,,
Chorley Borough Council,http://statistics.data.gov.uk/id/local-authority/30UE,Central Support Services,1009,Communities,Children's Activities,40188,Miscellaneous Expenses,5034,"Lancashire Breaktime Respite Care by Inspire Youth Zone, June Half Term 2021",08/09/2021,0160426,"1,659.00",Revenue,Chorley Youth Zone,77339,,
Chorley Borough Council,http://statistics.data.gov.uk/id/local-authority/30UE,Central Support Services,1009,Communities,Children's Activities,40188,Miscellaneous Expenses,5034,"Lancashire Breaktime Respite Care by Inspire Youth Zone, May Term Time 2021",08/09/2021,0160427,"2,014.10",Revenue,Chorley Youth Zone,77339,,
Chorley Borough Council,http://statistics.data.gov.uk/id/local-authority/30UE,Central Support Services,1009,Communities,Other Contributions,40145,Grants and Subscriptions,5031,Contribution to Refernet License for 2021/22 of 1500,22/09/2021,0159765,"1,500.00",Revenue,Citizens Advice Lancashire,17035,,
Chorley Borough Council,http://statistics.data.gov.uk/id/local-authority/30UE,Community Development,1097,Policy & Governance,Citizens Advice Bureau,40125,Grants and Subscriptions,5031,Extension of the Contract for the delivery of Advice Services - 2 months term - 1/4/21 - 31/5/21,15/09/2021,0160363,"9,466.67",Revenue,Citizens Advice Lancashire,17035,,
Chorley Borough Council,http://statistics.data.gov.uk/id/local-authority/30UE,Community Development,1097,Communities,Citizens Advice Bureau,40125,Grants and Subscriptions,5031,Delivery of Advice Services contract - 2nd payment (of 3) as detailed in payment schedule at end of Q1,22/09/2021,0160364,"18,933.00",Revenue,Citizens Advice Lancashire,17035,,
Chorley Borough Council,http://statistics.data.gov.uk/id/local-authority/30UE,Unapportionable Central OHeads,1009,Policy & Governance,Computer Software-Additional,40102,Communication and Computing,5028,"Purchasing systems, debtor, creditor, GL, Admin, License, Implementation & annual maintenance",22/09/2021,0157390,"1,431.00",Revenue,Civica UK Limited,17463,,
Chorley Borough Council,http://statistics.data.gov.uk/id/local-authority/30UE,Unapportionable Central OHeads,1009,Policy & Governance,Computer Software-Additional,40102,Communication and Computing,5028,"Purchasing systems, debtor, creditor, GL, Admin, License, Implementation & annual maintenance",22/09/2021,0157391,"9,950.00",Revenue,Civica UK Limited,17463,,
Chorley Borough Council,http://statistics.data.gov.uk/id/local-authority/30UE,Unapportionable Central OHeads,1009,Policy & Governance,Computer Software-Additional,40102,Communication and Computing,5028,"Purchasing systems, debtor, creditor, GL, Admin, License, Implementation & annual maintenance",22/09/2021,0158434,"2,017.74",Revenue,Civica UK Limited,17463,,
Chorley Borough Council,http://statistics.data.gov.uk/id/local-authority/30UE,Unapportionable Central OHeads,1009,Policy & Governance,Computer Software-Additional,40102,Communication and Computing,5028,"Purchasing systems, debtor, creditor, GL, Admin, License, Implementation & annual maintenance",22/09/2021,0159574,"4,293.00",Revenue,Civica UK Limited,17463,,
Chorley Borough Council,http://statistics.data.gov.uk/id/local-authority/30UE,Unapportionable Central OHeads,1009,Policy & Governance,Computer Software-Additional,40102,Communication and Computing,5028,Extra Day for Additional Companies Implementation,22/09/2021,0160754,"1,590.00",Revenue,Civica UK Limited,17463,,
Chorley Borough Council,http://statistics.data.gov.uk/id/local-authority/30UE,Homelessness,1075,Communities,Computer Software-Maintenance,40107,Communication and Computing,5028,"Licence, Support and Maintenance, Additional Annual charge to Chorley for exceeding your Data Storage & Recovery",29/09/2021,0161009,"1,264.02",Revenue,Civica UK Limited,17463,,
Chorley Borough Council,http://statistics.data.gov.uk/id/local-authority/30UE,Homelessness,1075,Communities,Computer Software-Maintenance,40107,Communication and Computing,5028,"Licence, Support and Maintenance, Hosting Fee, Partner Support Plan, Annual Service Charge related to TA Expenditure Module",29/09/2021,0161011,"10,285.67",Revenue,Civica UK Limited,17463,,
Chorley Borough Council,http://statistics.data.gov.uk/id/local-authority/30UE,Unapportionable Central OHeads,1009,Commercial & Property,General Repairs - Reactive,20004,Repairs Maintenance & Alts,5005,Cotswold House - Blanket order reactive repairs,08/09/2021,0160100,665.56,Revenue,Classic Lifts Limited,20897,,
Chorley Borough Council,http://statistics.data.gov.uk/id/local-authority/30UE,Corporate Management,1008,Customer & Digital,Items For Resale,40027,"Equipment, Furniture & Materia",5023,"240L wheeled bins, Colour: Brown with Chorley logo in white, Quantity : 560, Delivered in stacks of 10 (print plates included)",08/09/2021,0159989,"9,520.00",Revenue,Contenur Uk Ltd,82451,,
Chorley Borough Council,http://statistics.data.gov.uk/id/local-authority/30UE,Business Support,1095,Commercial & Property,General Repairs - Reactive,20004,Repairs Maintenance & Alts,5005,Strawberry Fields  - reactive repair works,08/09/2021,0160046,772.76,Revenue,Corlett Electrical Eng Co Ltd,16271,,
Chorley Borough Council,http://statistics.data.gov.uk/id/local-authority/30UE,Democratic Represent and  Mgnt,1007,Commercial & Property,Planned Maintenance,20006,Repairs Maintenance & Alts,5005,"Emergency Lights Test and Remedials, Clayton Green LC",01/09/2021,0160209,915.55,Revenue,Corlett Electrical Eng Co Ltd,16271,,
Chorley Borough Council,http://statistics.data.gov.uk/id/local-authority/30UE,Democratic Represent and  Mgnt,1007,Commercial & Property,Planned Maintenance,20006,Repairs Maintenance & Alts,5005,"Emergency Light Test and Remedials, Brinscall Baths",01/09/2021,0160209,321.00,Revenue,Corlett Electrical Eng Co Ltd,16271,,
Chorley Borough Council,http://statistics.data.gov.uk/id/local-authority/30UE,Democratic Represent and  Mgnt,1007,Commercial & Property,Planned Maintenance,20006,Repairs Maintenance & Alts,5005,"Emergency Light Test and Remedials, All Seasons LC",01/09/2021,0160209,"2,611.01",Revenue,Corlett Electrical Eng Co Ltd,16271,,
Chorley Borough Council,http://statistics.data.gov.uk/id/local-authority/30UE,Unapportionable Central OHeads,1009,Commercial & Property,Planned Maintenance,20006,Repairs Maintenance & Alts,5005,"Emergency Light Test and Remedials, Astley Farm House",08/09/2021,0160367,178.65,Revenue,Corlett Electrical Eng Co Ltd,16271,,
Chorley Borough Council,http://statistics.data.gov.uk/id/local-authority/30UE,Unapportionable Central OHeads,1009,Commercial & Property,Planned Maintenance,20006,Repairs Maintenance & Alts,5005,"Emergency Light Test and Remedials, Astley Coach House",08/09/2021,0160367,296.19,Revenue,Corlett Electrical Eng Co Ltd,16271,,
Chorley Borough Council,http://statistics.data.gov.uk/id/local-authority/30UE,Unapportionable Central OHeads,1009,Commercial & Property,Planned Maintenance,20006,Repairs Maintenance & Alts,5005,"Emergency Light Test and Remedials, Astley Pavillion",08/09/2021,0160367,130.00,Revenue,Corlett Electrical Eng Co Ltd,16271,,
Chorley Borough Council,http://statistics.data.gov.uk/id/local-authority/30UE,Unapportionable Central OHeads,1009,Commercial & Property,Planned Maintenance,20006,Repairs Maintenance & Alts,5005,"Emergency Light Test and Remedials, Astley Village CC",08/09/2021,0160367,130.00,Revenue,Corlett Electrical Eng Co Ltd,16271,,
Chorley Borough Council,http://statistics.data.gov.uk/id/local-authority/30UE,Unapportionable Central OHeads,1009,Commercial & Property,Planned Maintenance,20006,Repairs Maintenance & Alts,5005,"Emergency Light Test and Remedials, Bengal St",08/09/2021,0160367,467.10,Revenue,Corlett Electrical Eng Co Ltd,16271,,
Chorley Borough Council,http://statistics.data.gov.uk/id/local-authority/30UE,Unapportionable Central OHeads,1009,Commercial & Property,Planned Maintenance,20006,Repairs Maintenance & Alts,5005,"Emergency Light Test and Remedials, Market",08/09/2021,0160367,156.00,Revenue,Corlett Electrical Eng Co Ltd,16271,,
Chorley Borough Council,http://statistics.data.gov.uk/id/local-authority/30UE,Unapportionable Central OHeads,1009,Commercial & Property,Planned Maintenance,20006,Repairs Maintenance & Alts,5005,"Emergency Light Test and Remedials, Town Hall",08/09/2021,0160367,887.59,Revenue,Corlett Electrical Eng Co Ltd,16271,,
Chorley Borough Council,http://statistics.data.gov.uk/id/local-authority/30UE,Community Development,1097,Commercial & Property,Planned Maintenance,20006,Repairs Maintenance & Alts,5005,"Emergency Light Test and Remedials, CAB/MP",08/09/2021,0160367,130.00,Revenue,Corlett Electrical Eng Co Ltd,16271,,
Chorley Borough Council,http://statistics.data.gov.uk/id/local-authority/30UE,Unapportionable Central OHeads,1009,Commercial & Property,Planned Maintenance,20006,Repairs Maintenance & Alts,5005,"Emergency Light Test and Remedials, Union St",08/09/2021,0160367,885.01,Revenue,Corlett Electrical Eng Co Ltd,16271,,
Chorley Borough Council,http://statistics.data.gov.uk/id/local-authority/30UE,Unapportionable Central OHeads,1009,Commercial & Property,Planned Maintenance,20006,Repairs Maintenance & Alts,5005,"Emergency Light Test and Remedials, Cotswold House",08/09/2021,0160367,666.17,Revenue,Corlett Electrical Eng Co Ltd,16271,,
Chorley Borough Council,http://statistics.data.gov.uk/id/local-authority/30UE,Unapportionable Central OHeads,1009,Commercial & Property,Planned Maintenance,20006,Repairs Maintenance & Alts,5005,"Emergency Light Test and Remedials, Clayton CC",08/09/2021,0160367,343.68,Revenue,Corlett Electrical Eng Co Ltd,16271,,
Chorley Borough Council,http://statistics.data.gov.uk/id/local-authority/30UE,Unapportionable Central OHeads,1009,Commercial & Property,Planned Maintenance,20006,Repairs Maintenance & Alts,5005,"Emergency Light Test and Remedials, Eaves Green CC",08/09/2021,0160367,130.00,Revenue,Corlett Electrical Eng Co Ltd,16271,,
Chorley Borough Council,http://statistics.data.gov.uk/id/local-authority/30UE,Unapportionable Central OHeads,1009,Commercial & Property,Planned Maintenance,20006,Repairs Maintenance & Alts,5005,"Emergency Light Test and Remedials, King George V",08/09/2021,0160367,35.00,Revenue,Corlett Electrical Eng Co Ltd,16271,,
Chorley Borough Council,http://statistics.data.gov.uk/id/local-authority/30UE,Unapportionable Central OHeads,1009,Commercial & Property,Planned Maintenance,20006,Repairs Maintenance & Alts,5005,"Emergency Light Test and Remedials, YVP",08/09/2021,0160367,196.85,Revenue,Corlett Electrical Eng Co Ltd,16271,,
Chorley Borough Council,http://statistics.data.gov.uk/id/local-authority/30UE,Unapportionable Central OHeads,1009,Commercial & Property,Planned Maintenance,20006,Repairs Maintenance & Alts,5005,"Emergency Light Test and Remedials, Lancaster Way CC",08/09/2021,0160367,267.00,Revenue,Corlett Electrical Eng Co Ltd,16271,,
Chorley Borough Council,http://statistics.data.gov.uk/id/local-authority/30UE,Unapportionable Central OHeads,1009,Commercial & Property,Planned Maintenance,20006,Repairs Maintenance & Alts,5005,"Emergency Light Test and Remedials, Buttermere CC",08/09/2021,0160367,603.71,Revenue,Corlett Electrical Eng Co Ltd,16271,,
Chorley Borough Council,http://statistics.data.gov.uk/id/local-authority/30UE,Business Support,1095,Commercial & Property,Planned Maintenance,20006,Repairs Maintenance & Alts,5005,"Emergency Light Test and Remedials, MW Mgt",08/09/2021,0160367,307.10,Revenue,Corlett Electrical Eng Co Ltd,16271,,
Chorley Borough Council,http://statistics.data.gov.uk/id/local-authority/30UE,Unapportionable Central OHeads,1009,Commercial & Property,Planned Maintenance,20006,Repairs Maintenance & Alts,5005,"Emergency Light Test and Remedials, Primrose Gardens",08/09/2021,0160367,574.56,Revenue,Corlett Electrical Eng Co Ltd,16271,,
Chorley Borough Council,http://statistics.data.gov.uk/id/local-authority/30UE,Business Support,1095,Commercial & Property,Planned Maintenance,20006,Repairs Maintenance & Alts,5005,"Emergency Light Test and Remedials, MW Ext",08/09/2021,0160367,121.84,Revenue,Corlett Electrical Eng Co Ltd,16271,,
Chorley Borough Council,http://statistics.data.gov.uk/id/local-authority/30UE,Business Support,1095,Commercial & Property,Planned Maintenance,20006,Repairs Maintenance & Alts,5005,"Emergency Light Test and Remedials, Strawberry Fields",08/09/2021,0160367,890.98,Revenue,Corlett Electrical Eng Co Ltd,16271,,
Chorley Borough Council,http://statistics.data.gov.uk/id/local-authority/30UE,Business Support,1095,Commercial & Property,Gas,20014,Energy Costs,5006,jun-jul 21,01/09/2021,0160115,"1,074.45",Revenue,Corona Energy Retail 2 Ltd,67249,,
Chorley Borough Council,http://statistics.data.gov.uk/id/local-authority/30UE,Democratic Represent and  Mgnt,1007,Commercial & Property,Gas,20014,Energy Costs,5006,jun-jul21,01/09/2021,0160116,511.51,Revenue,Corona Energy Retail 2 Ltd,67249,,
Chorley Borough Council,http://statistics.data.gov.uk/id/local-authority/30UE,Democratic Represent and  Mgnt,1007,Commercial & Property,Gas,20014,Energy Costs,5006,jun-jul21,01/09/2021,0160117,917.03,Revenue,Corona Energy Retail 2 Ltd,67249,,
Chorley Borough Council,http://statistics.data.gov.uk/id/local-authority/30UE,Democratic Represent and  Mgnt,1007,Commercial & Property,Gas,20014,Energy Costs,5006,jun-jul21,01/09/2021,0160119,"4,010.10",Revenue,Corona Energy Retail 2 Ltd,67249,,
Chorley Borough Council,http://statistics.data.gov.uk/id/local-authority/30UE,Central Support Services,1009,Commercial & Property,Gas,20014,Energy Costs,5006,mar-apr21,01/09/2021,0160121,303.81,Revenue,Corona Energy Retail 2 Ltd,67249,,
Chorley Borough Council,http://statistics.data.gov.uk/id/local-authority/30UE,Unapportionable Central OHeads,1009,Commercial & Property,Gas,20014,Energy Costs,5006,jun-jul21,01/09/2021,0160124,489.00,Revenue,Corona Energy Retail 2 Ltd,67249,,
Chorley Borough Council,http://statistics.data.gov.uk/id/local-authority/30UE,Homelessness,1075,Commercial & Property,Gas,20014,Energy Costs,5006,jun-jul21,01/09/2021,0160133,356.09,Revenue,Corona Energy Retail 2 Ltd,67249,,
Chorley Borough Council,http://statistics.data.gov.uk/id/local-authority/30UE,Democratic Represent and  Mgnt,1007,Commercial & Property,Gas,20014,Energy Costs,5006,jun-jul21,01/09/2021,0160135,349.54,Revenue,Corona Energy Retail 2 Ltd,67249,,
Chorley Borough Council,http://statistics.data.gov.uk/id/local-authority/30UE,Democratic Represent and  Mgnt,1007,Commercial & Property,Gas,20014,Energy Costs,5006,may - jun 21,15/09/2021,0160687,509.27,Revenue,Corona Energy Retail 2 Ltd,67249,,
Chorley Borough Council,http://statistics.data.gov.uk/id/local-authority/30UE,Democratic Represent and  Mgnt,1007,Commercial & Property,Gas,20014,Energy Costs,5006,may-jun21,15/09/2021,0160690,917.47,Revenue,Corona Energy Retail 2 Ltd,67249,,
Chorley Borough Council,http://statistics.data.gov.uk/id/local-authority/30UE,Unapportionable Central OHeads,1009,Commercial & Property,Gas,20014,Energy Costs,5006,may-jun21,15/09/2021,0160693,501.38,Revenue,Corona Energy Retail 2 Ltd,67249,,
Chorley Borough Council,http://statistics.data.gov.uk/id/local-authority/30UE,Unapportionable Central OHeads,1009,Commercial & Property,Gas,20014,Energy Costs,5006,may-jun21,15/09/2021,0160695,"1,038.95",Revenue,Corona Energy Retail 2 Ltd,67249,,
Chorley Borough Council,http://statistics.data.gov.uk/id/local-authority/30UE,Democratic Represent and  Mgnt,1007,Commercial & Property,Gas,20014,Energy Costs,5006,may-jun21,15/09/2021,0160697,284.73,Revenue,Corona Energy Retail 2 Ltd,67249,,
Chorley Borough Council,http://statistics.data.gov.uk/id/local-authority/30UE,Homelessness,1075,Commercial & Property,Gas,20014,Energy Costs,5006,may-jun21,15/09/2021,0160701,792.74,Revenue,Corona Energy Retail 2 Ltd,67249,,
Chorley Borough Council,http://statistics.data.gov.uk/id/local-authority/30UE,Central Support Services,1009,Communities,Miscellaneous Expenses,40200,Miscellaneous Expenses,5034,INVOICE 970 - GRT Encampment. Common Law notice served Queens Road Car Park,22/09/2021,0160541,"5,150.00",Revenue,COURT ENFORCEMENT SPECIALISTS LTD,77924,,
Chorley Borough Council,http://statistics.data.gov.uk/id/local-authority/30UE,Central Support Services,1009,Communities,Miscellaneous Expenses,40200,Miscellaneous Expenses,5034,Invoice 955 - GRT Encampment Water Street car Park. Common Law served,22/09/2021,0160542,"3,350.00",Revenue,COURT ENFORCEMENT SPECIALISTS LTD,77924,,
Chorley Borough Council,http://statistics.data.gov.uk/id/local-authority/30UE,Corporate Management,1008,Customer & Digital,Items For Resale,40027,"Equipment, Furniture & Materia",5023,"240L Neo plastic wheeled bin. Colour = Grey, Quantity = 600 with Chorley logo and RFID chips.",08/09/2021,0159422,"10,800.00",Revenue,Craemer UK Ltd,64712,,
Chorley Borough Council,http://statistics.data.gov.uk/id/local-authority/30UE,Tourism,1039,Policy & Governance,Miscellaneous Expenses,40200,Miscellaneous Expenses,5034,cfs prize money,29/09/2021,0161107,430.00,Revenue,Craig House Cacti,71499,,
Chorley Borough Council,http://statistics.data.gov.uk/id/local-authority/30UE,Capital,Capital,Customer & Digital,Main Contractor,03007,Capital Expenditure,Capital,"3x 1000-litres HVO Road IBC, 1x 240V pump with the bottom suction kit, 3x Delivery charge @ 55.00 each",08/09/2021,0159521,"1,350.00",Capital,Crown Oil Ltd,16739,,
Chorley Borough Council,http://statistics.data.gov.uk/id/local-authority/30UE,Capital,Capital,Customer & Digital,Main Contractor,03007,Capital Expenditure,Capital,"3x 1000-litres HVO Road IBC, 1x 240V pump with the bottom suction kit, 3x Delivery charge @ 55.00 each",08/09/2021,0159623,"1,405.00",Capital,Crown Oil Ltd,16739,,
Chorley Borough Council,http://statistics.data.gov.uk/id/local-authority/30UE,Corporate Management,1008,Policy & Governance,Miscellaneous Expenses,40200,Miscellaneous Expenses,5034,Hire of 8 portable hand wash stations from 28th June to 25th July 2021. Invoice no. 3186,08/09/2021,0160289,"1,440.00",Revenue,Cyril Unsworth Ltd,78887,,
Chorley Borough Council,http://statistics.data.gov.uk/id/local-authority/30UE,Capital,Capital,Communities,Grants,03002,Capital Expenditure,Capital,ADDRESS REDACTED,08/09/2021,0160428,"4,723.00",Capital,NAME REDACTED,78482,,
Chorley Borough Council,http://statistics.data.gov.uk/id/local-authority/30UE,Business Support,1095,Commercial & Property,Grants To Other Organisations,40127,Grants and Subscriptions,5031,stage 3,15/09/2021,0160429,"2,967.00",Revenue,DA Techs (NW) Ltd,80559,,
Chorley Borough Council,http://statistics.data.gov.uk/id/local-authority/30UE,Business Support,1095,Commercial & Property,Cleaning/Attendants' Services,20041,Cleaning and Domestic Supplies,5012,"Per your invoice 653523, cleaning services for week ending 29/08/21 (NAME REDACTED)",15/09/2021,0160572,271.00,Revenue,Daniel Adams Recruitment,78104,,
Chorley Borough Council,http://statistics.data.gov.uk/id/local-authority/30UE,Business Support,1095,Commercial & Property,Cleaning/Attendants' Services,20041,Cleaning and Domestic Supplies,5012,"Per your invoice 653559, cleaning service for week ending 12/09/21. 21 hours @ 13.55",22/09/2021,0161015,284.55,Revenue,Daniel Adams Recruitment,78104,,
Chorley Borough Council,http://statistics.data.gov.uk/id/local-authority/30UE,Tourism,1039,Policy & Governance,Miscellaneous Expenses,40200,Miscellaneous Expenses,5034,cfs prize money,29/09/2021,0161089,400.00,Revenue,Derbyshire Bonsai,71502,,
Chorley Borough Council,http://statistics.data.gov.uk/id/local-authority/30UE,Tourism,1039,Policy & Governance,Miscellaneous Expenses,40200,Miscellaneous Expenses,5034,cfs prize money,29/09/2021,0161108,725.00,Revenue,Devine Nurseries,71497,,
Chorley Borough Council,http://statistics.data.gov.uk/id/local-authority/30UE,Central Support Services,1009,Communities,Miscellaneous Expenses,40200,Miscellaneous Expenses,5034,Delivery of July activity buddies,29/09/2021,0160987,293.50,Revenue,DO Fitness,80960,,
Chorley Borough Council,http://statistics.data.gov.uk/id/local-authority/30UE,Capital,Capital,Communities,Main Contractor,03007,Capital Expenditure,Capital,Grass pitch improvement works at Westway Playing Fields,22/09/2021,0159738,"53,086.06",Capital,Duncan Ross Ltd,76803,,
Chorley Borough Council,http://statistics.data.gov.uk/id/local-authority/30UE,Capital,Capital,Communities,Main Contractor,03007,Capital Expenditure,Capital,Pitch works at Kem Mill Lane,22/09/2021,0159742,"35,115.76",Capital,Duncan Ross Ltd,76803,,
Chorley Borough Council,http://statistics.data.gov.uk/id/local-authority/30UE,Tourism,1039,Policy & Governance,Miscellaneous Expenses,40200,Miscellaneous Expenses,5034,cfs flower show,29/09/2021,0161087,325.00,Revenue,East of Eden Nursery,71506,,
Chorley Borough Council,http://statistics.data.gov.uk/id/local-authority/30UE,Capital,Capital,Policy & Governance,Other Contractor,03012,Capital Expenditure,Capital,"Books provided for the Astley Hall Gift Shop: Wolf Hall, Bring up the bodies, Mantel Pieces, Castles, PMC hearing trumpet",08/09/2021,0160368,348.78,Capital,Ebb and Flo Bookshop,67239,,
Chorley Borough Council,http://statistics.data.gov.uk/id/local-authority/30UE,Business Support,1095,Commercial & Property,Planned Maintenance,20006,Repairs Maintenance & Alts,5005,"Primrose Gardens, To excavate and lay new pathway comprising  paving slabs, 100mm mot base, 50 x 200mm pcc edgings",01/09/2021,0160183,"1,392.77",Revenue,EFT Construction,78195,,
Chorley Borough Council,http://statistics.data.gov.uk/id/local-authority/30UE,Corporate Management,1008,Commercial & Property,Miscellaneous Expenses,40200,Miscellaneous Expenses,5034,"Covid ventilation works, Work to sash windows to ensure they all open for adequate air flow for staff returning to work places",01/09/2021,0160223,635.00,Revenue,EFT Construction,78195,,
Chorley Borough Council,http://statistics.data.gov.uk/id/local-authority/30UE,Business Support,1095,Commercial & Property,General Repairs - Reactive,20004,Repairs Maintenance & Alts,5005,Market Walk - reactive repair works,15/09/2021,0160225,629.00,Revenue,EFT Construction,78195,,
Chorley Borough Council,http://statistics.data.gov.uk/id/local-authority/30UE,Unapportionable Central OHeads,1009,Commercial & Property,General Repairs - Reactive,20004,Repairs Maintenance & Alts,5005,commercial properties - reactive repair works took 30 in error Chor market,15/09/2021,0160226,372.50,Revenue,EFT Construction,78195,,
Chorley Borough Council,http://statistics.data.gov.uk/id/local-authority/30UE,Unapportionable Central OHeads,1009,Commercial & Property,General Repairs - Reactive,20004,Repairs Maintenance & Alts,5005,Chorley Market - reactive repair works,15/09/2021,0160226,30.00,Revenue,EFT Construction,78195,,
Chorley Borough Council,http://statistics.data.gov.uk/id/local-authority/30UE,Unapportionable Central OHeads,1009,Commercial & Property,General Repairs - Reactive,20004,Repairs Maintenance & Alts,5005,Residential Housing - reactive repair works,01/09/2021,0160227,"1,050.00",Revenue,EFT Construction,78195,,
Chorley Borough Council,http://statistics.data.gov.uk/id/local-authority/30UE,Unapportionable Central OHeads,1009,Commercial & Property,General Repairs - Reactive,20004,Repairs Maintenance & Alts,5005,Bengal St - reactive repair works,01/09/2021,0160228,347.72,Revenue,EFT Construction,78195,,
Chorley Borough Council,http://statistics.data.gov.uk/id/local-authority/30UE,Business Support,1095,Commercial & Property,General Repairs - Reactive,20004,Repairs Maintenance & Alts,5005,Market Walk Extension - reactive repair works,01/09/2021,0160237,353.22,Revenue,EFT Construction,78195,,
Chorley Borough Council,http://statistics.data.gov.uk/id/local-authority/30UE,Unapportionable Central OHeads,1009,Commercial & Property,General Repairs - Reactive,20004,Repairs Maintenance & Alts,5005,Primrose Gardens - reactive repair works,01/09/2021,0160240,329.40,Revenue,EFT Construction,78195,,
Chorley Borough Council,http://statistics.data.gov.uk/id/local-authority/30UE,Unapportionable Central OHeads,1009,Commercial & Property,General Repairs - Reactive,20004,Repairs Maintenance & Alts,5005,Primrose Gardens - reactive repair works,01/09/2021,0160244,545.60,Revenue,EFT Construction,78195,,
Chorley Borough Council,http://statistics.data.gov.uk/id/local-authority/30UE,Capital,Capital,Commercial & Property,Other Contractor,03012,Capital Expenditure,Capital,"Erect new metal stud partition 30m long x 4.8m high: 70mm gypframe studs, 72mm base and head track, 2 layers",22/09/2021,0160790,"13,586.00",Capital,EFT Construction,78195,,
Chorley Borough Council,http://statistics.data.gov.uk/id/local-authority/30UE,Central Support Services,1009,Commercial & Property,Miscellaneous Expenses,40200,Miscellaneous Expenses,5034,Electricity connection at adlington war memorial,22/09/2021,0160861,"2,515.82",Revenue,Electricity North West Ltd,17118,,
Chorley Borough Council,http://statistics.data.gov.uk/id/local-authority/30UE,Central Support Services,1009,Commercial & Property,Professional Fees,40063,Services,5027,Tatton water main risk assessment,29/09/2021,0159258,250.00,Revenue,Environmental Engineering Partnership Limited,78457,,
Chorley Borough Council,http://statistics.data.gov.uk/id/local-authority/30UE,Central Support Services,1009,Commercial & Property,Professional Fees,40063,Services,5027,"Completion of the BREEAM (2018) Forms for the Ecological Assessment, Attendance at the BREEAM Workshop",29/09/2021,0160674,"1,275.00",Revenue,ERAP (Consultant Ecologists) Ltd,78559,,
Chorley Borough Council,http://statistics.data.gov.uk/id/local-authority/30UE,Central Support Services,1009,Commercial & Property,Professional Fees,40063,Services,5027,"Natural England Enquiry Fee, Time for Collation of Information, Completion of the Form and Liaison as needed",29/09/2021,0160675,690.00,Revenue,ERAP (Consultant Ecologists) Ltd,78559,,
Chorley Borough Council,http://statistics.data.gov.uk/id/local-authority/30UE,Central Support Services,1009,Customer & Digital,IT Software - Annual Licences,40101,Communication and Computing,5028,ArcGIS Data Interoperability for Desktop Single Use Primary Maintenance This is year 1 of a 3-year deal. UK Data Loader 1 year,29/09/2021,0159727,"1,493.00",Revenue,ESRI (UK) Ltd,19692,,
Chorley Borough Council,http://statistics.data.gov.uk/id/local-authority/30UE,Business Support,1095,Commercial & Property,Internet Charges,40104,Communication and Computing,5028,"For all regular, monthly invoices to cover Operate Growth, Connect Growth and Public IP & Call Charges",15/09/2021,0160570,252.74,Revenue,Essensys Ltd,77836,,
Chorley Borough Council,http://statistics.data.gov.uk/id/local-authority/30UE,Business Support,1095,Commercial & Property,Internet Charges,40104,Communication and Computing,5028,"For all regular, monthly invoices to cover Operate Growth, Connect Growth and Public IP & Call Charges",15/09/2021,0160639,"3,810.00",Revenue,Essensys Ltd,77836,,
Chorley Borough Council,http://statistics.data.gov.uk/id/local-authority/30UE,Democratic Represent and  Mgnt,1007,Commercial & Property,Planned Maintenance,20006,Repairs Maintenance & Alts,5005,"Fall arrest system inspection, Clayton Green Sports Centre",22/09/2021,0160490,400.00,Revenue,Eurosafe Solutions Limited,66302,,
Chorley Borough Council,http://statistics.data.gov.uk/id/local-authority/30UE,Business Support,1095,Commercial & Property,Planned Maintenance,20006,Repairs Maintenance & Alts,5005,"Fall arrest system check, Market Walk Extension",22/09/2021,0160490,240.00,Revenue,Eurosafe Solutions Limited,66302,,
Chorley Borough Council,http://statistics.data.gov.uk/id/local-authority/30UE,Unapportionable Central OHeads,1009,Policy & Governance,Mayoral Hospitality,40123,Expenses,5030,Balance invoice for the Mayor's Civic Dinner venue dressing on 10th September 2021.,22/09/2021,0160888,271.89,Revenue,Event Entertainment Ltd (The Big White Events Comp,62042,,
Chorley Borough Council,http://statistics.data.gov.uk/id/local-authority/30UE,Tourism,1039,Policy & Governance,Miscellaneous Expenses,40200,Miscellaneous Expenses,5034,cfs prize money,29/09/2021,0161093,400.00,Revenue,Every Picture Tells A Story,71500,,
Chorley Borough Council,http://statistics.data.gov.uk/id/local-authority/30UE,Service Management & Support,1009,Customer & Digital,Vehicles and Plant Maintenance,30045,Direct Transport Costs,5016,As per pro forma number 109725,22/09/2021,0160297,"1,456.68",Revenue,F R Sharrock Ltd,18091,,
Chorley Borough Council,http://statistics.data.gov.uk/id/local-authority/30UE,Service Management & Support,1009,Customer & Digital,Supplies-Grounds Maintenance,40025,"Equipment, Furniture & Materia",5023,As per pro forma number 153507,29/09/2021,0161143,264.56,Revenue,F R Sharrock Ltd,18091,,
Chorley Borough Council,http://statistics.data.gov.uk/id/local-authority/30UE,Corporate Management,1008,Customer & Digital,Unitary Payment(S),50009,Private Contractors,5042,Provision of waste and recycling collection services 2021-2022,22/09/2021,0160286,"189,580.26",Revenue,FCC Environment Services (UK) Limited,77903,,
Chorley Borough Council,http://statistics.data.gov.uk/id/local-authority/30UE,Unapportionable Central OHeads,1009,Policy & Governance,Exhibitions & Special Events,40158,Miscellaneous Expenses,5034,"Chorley 10k 2021, Medals 1500 10k, Water 500ml bottled water, Toilets T6 Portable Toilet Units, Toilet Company",22/09/2021,0160769,"4,930.66",Revenue,Fylde Coast Runners Ltd,83584,,
Chorley Borough Council,http://statistics.data.gov.uk/id/local-authority/30UE,Unapportionable Central OHeads,1009,Policy & Governance,Exhibitions & Special Events,40158,Miscellaneous Expenses,5034,"Chorley 10k 2021, Event Management, Event Timing (10k Only) Traffic Management, Event Course & Setup, Administration",22/09/2021,0160770,"5,721.00",Revenue,Fylde Coast Runners Ltd,83584,,
Chorley Borough Council,http://statistics.data.gov.uk/id/local-authority/30UE,Unapportionable Central OHeads,1009,Policy & Governance,Exhibitions & Special Events,40158,Miscellaneous Expenses,5034,"Chorley 10k 2021, Event Management, Event Timing (10k Only) Traffic Management, Event Course & Setup, Administration",22/09/2021,0160770,944.00,Revenue,Fylde Coast Runners Ltd,83584,,
Chorley Borough Council,http://statistics.data.gov.uk/id/local-authority/30UE,Democratic Represent and  Mgnt,1007,Commercial & Property,Tools & Equipment - Hire,40004,"Equipment, Furniture & Materia",5023,"All seasons hyproliser rental monthly fee 420.14, 12 months contract",01/09/2021,0159912,420.14,Revenue,Gaffey Technical Services Ltd,18844,,
Chorley Borough Council,http://statistics.data.gov.uk/id/local-authority/30UE,Democratic Represent and  Mgnt,1007,Commercial & Property,Tools & Equipment - Hire,40004,"Equipment, Furniture & Materia",5023,"All seasons hyproliser rental monthly fee 420.14, 12 months contract",22/09/2021,0160577,420.14,Revenue,Gaffey Technical Services Ltd,18844,,
Chorley Borough Council,http://statistics.data.gov.uk/id/local-authority/30UE,Capital,Capital,Commercial & Property,Main Contractor,03007,Capital Expenditure,Capital,Heritage Consultant for Astley Hall Renovation works,08/09/2021,0160406,"1,690.00",Capital,Geoff W Maybank,64389,,
Chorley Borough Council,http://statistics.data.gov.uk/id/local-authority/30UE,Democratic Represent and  Mgnt,1007,Policy & Governance,Consultants` Fees,40077,Services,5027,Archaeological standing buildings watching brief for the opening up of the Standish family vault in St Laurence's Parish Church,29/09/2021,0161124,990.00,Revenue,Geoff W Maybank,64389,,
Chorley Borough Council,http://statistics.data.gov.uk/id/local-authority/30UE,Capital,Capital,Commercial & Property,Other Capital Related Fees,03024,Capital Expenditure,Capital,Covered Market Improvement works - Toilet fit out as per schedule of works,29/09/2021,0161067,"59,632.25",Capital,GK Construction & Project Management Ltd,82901,,
Chorley Borough Council,http://statistics.data.gov.uk/id/local-authority/30UE,Homelessness,1075,Communities,Rental Bond Scheme,40241,Miscellaneous Expenses,5034,rental bond claim ADDRESS REDACTED,08/09/2021,0160480,394.98,Revenue,GLB Letting & Development,78115,,
Chorley Borough Council,http://statistics.data.gov.uk/id/local-authority/30UE,Homelessness,1075,Communities,Rental Bond Scheme,40241,Miscellaneous Expenses,5034,rental bond ADDRESS REDACTED,08/09/2021,0160481,394.98,Revenue,GLB Letting & Development,78115,,
Chorley Borough Council,http://statistics.data.gov.uk/id/local-authority/30UE,Homelessness,1075,Communities,Rental Bond Scheme,40241,Miscellaneous Expenses,5034,rental bond claim,08/09/2021,0160482,394.98,Revenue,GLB Letting & Development,78115,,
Chorley Borough Council,http://statistics.data.gov.uk/id/local-authority/30UE,Homelessness,1075,Communities,Rental Bond Scheme,40241,Miscellaneous Expenses,5034,rental bond claim,08/09/2021,0160483,394.98,Revenue,GLB Letting & Development,78115,,
Chorley Borough Council,http://statistics.data.gov.uk/id/local-authority/30UE,Homelessness,1075,Communities,Rental Bond Scheme,40241,Miscellaneous Expenses,5034,rental bond claim,08/09/2021,0160484,394.98,Revenue,GLB Letting & Development,78115,,
Chorley Borough Council,http://statistics.data.gov.uk/id/local-authority/30UE,Service Management & Support,1009,Customer & Digital,Supplies-Grounds Maintenance,40025,"Equipment, Furniture & Materia",5023,10 x Schmidt poly mixed/wire brushes @ 46.80 each 48.30 carriage fee,22/09/2021,0159217,870.44,Revenue,Go Plant Fleet Services Ltd,80857,,
Chorley Borough Council,http://statistics.data.gov.uk/id/local-authority/30UE,Service Management & Support,1009,Customer & Digital,Supplies-Grounds Maintenance,40025,"Equipment, Furniture & Materia",5023,10 x Schmidt mixed poly/wire brushes @46.80 each Carriage 48.30,01/09/2021,0159922,516.24,Revenue,Go Plant Fleet Services Ltd,80857,,
Chorley Borough Council,http://statistics.data.gov.uk/id/local-authority/30UE,Service Management & Support,1009,Customer & Digital,Supplies-Grounds Maintenance,40025,"Equipment, Furniture & Materia",5023,"Quantity x 2 Schmidt swingo plastic boomerang skids plate, Quantity x2 Johnston C101 Hopper lid raise gas struts",22/09/2021,0160148,346.65,Revenue,Go Plant Fleet Services Ltd,80857,,
Chorley Borough Council,http://statistics.data.gov.uk/id/local-authority/30UE,Service Management & Support,1009,Customer & Digital,Hire Of Vehicles and Plant,30028,Contrct Hire & Operating Lease,5018,3 Year Contract hire 1x Johnston CN101 as per ITT including servicing and Maintenance,22/09/2021,0160318,"1,762.23",Revenue,Go Plant Fleet Services Ltd,80857,,
Chorley Borough Council,http://statistics.data.gov.uk/id/local-authority/30UE,Service Management & Support,1009,Customer & Digital,Hire Of Vehicles and Plant,30028,Contrct Hire & Operating Lease,5018,3 Year Contract hire 1x Schmidt Swingo 200+ as per ITT including servicing and Maintenance,22/09/2021,0160372,"2,019.85",Revenue,Go Plant Fleet Services Ltd,80857,,
Chorley Borough Council,http://statistics.data.gov.uk/id/local-authority/30UE,Service Management & Support,1009,Customer & Digital,Hire Of Vehicles and Plant,30028,Contrct Hire & Operating Lease,5018,3 Year Contract hire 1x Schmidt Swingo 200+ as per ITT including servicing and Maintenance,22/09/2021,0160373,"2,019.85",Revenue,Go Plant Fleet Services Ltd,80857,,
Chorley Borough Council,http://statistics.data.gov.uk/id/local-authority/30UE,Service Management & Support,1009,Customer & Digital,Hire Of Vehicles and Plant,30028,Contrct Hire & Operating Lease,5018,3 Year Contract Hire Chassis mounted sweeper as per ITT. Including servicing and Maintenance. to be paid monthly in arrears,22/09/2021,0160374,"2,772.31",Revenue,Go Plant Fleet Services Ltd,80857,,
Chorley Borough Council,http://statistics.data.gov.uk/id/local-authority/30UE,Service Management & Support,1009,Customer & Digital,Supplies-Grounds Maintenance,40025,"Equipment, Furniture & Materia",5023,9 Schmidt swingo poly mixed wire brushes,29/09/2021,0160842,469.44,Revenue,Go Plant Fleet Services Ltd,80857,,
Chorley Borough Council,http://statistics.data.gov.uk/id/local-authority/30UE,Service Management & Support,1009,Customer & Digital,Supplies-Grounds Maintenance,40025,"Equipment, Furniture & Materia",5023,"x1- Johnston VT652- Suction tube - 139.50 Each 10.35 Carriage, x2- Schmidt Swingo- Suction tube",22/09/2021,0160843,378.34,Revenue,Go Plant Fleet Services Ltd,80857,,
Chorley Borough Council,http://statistics.data.gov.uk/id/local-authority/30UE,Economic Development,1096,Commercial & Property,Professional Fees,40063,Services,5027,Covered Market Refurbishment & Upgrade Works (Delivery Fee Proposal) to progress & complete delivery,15/09/2021,0160281,150.11,Revenue,Gosling Consulting Limited,78380,,
Chorley Borough Council,http://statistics.data.gov.uk/id/local-authority/30UE,Economic Development,1096,Commercial & Property,Professional Fees,40063,Services,5027,"Development of a detailed works programme including all necessary updates, detailed logistics plans to deliver each element",15/09/2021,0160281,599.95,Revenue,Gosling Consulting Limited,78380,,
Chorley Borough Council,http://statistics.data.gov.uk/id/local-authority/30UE,Economic Development,1096,Commercial & Property,Professional Fees,40063,Services,5027,"Visiting Supervision: Check and respond to RAMS, Project Manage the co-ordination and progress of the works",15/09/2021,0160281,599.96,Revenue,Gosling Consulting Limited,78380,,
Chorley Borough Council,http://statistics.data.gov.uk/id/local-authority/30UE,Economic Development,1096,Commercial & Property,Professional Fees,40063,Services,5027,"Work with the design team to develop the design, meet the Client brief, Support the Architect submission of Planning application",15/09/2021,0160281,299.98,Revenue,Gosling Consulting Limited,78380,,
Chorley Borough Council,http://statistics.data.gov.uk/id/local-authority/30UE,Central Support Services,1009,Commercial & Property,Professional Fees,40063,Services,5027,Alker Lane timesheet - Aug 2021 (2.50 days),15/09/2021,0160724,812.50,Revenue,Gosling Consulting Limited,78380,,
Chorley Borough Council,http://statistics.data.gov.uk/id/local-authority/30UE,Capital,Capital,Commercial & Property,Main Contractor,03007,Capital Expenditure,Capital,Buzz Bingo/FHSF August 2021 Timesheet (2.00 days),15/09/2021,0160725,650.00,Capital,Gosling Consulting Limited,78380,,
Chorley Borough Council,http://statistics.data.gov.uk/id/local-authority/30UE,Central Support Services,1009,Commercial & Property,Professional Fees,40063,Services,5027,Tatton Timesheet - Aug 2021 (4.25 days),15/09/2021,0160726,"1,381.25",Revenue,Gosling Consulting Limited,78380,,
Chorley Borough Council,http://statistics.data.gov.uk/id/local-authority/30UE,Central Support Services,1009,Customer & Digital,Vandalism Repairs,20005,Repairs Maintenance & Alts,5005,Graffiti Removal Contract June 2021 ongoing,08/09/2021,0159824,835.00,Revenue,Graffiti Away Ltd,78340,,
Chorley Borough Council,http://statistics.data.gov.uk/id/local-authority/30UE,Corporate Management,1008,Commercial & Property,Publicity - Advertising,40157,Miscellaneous Expenses,5034,"Social media for Market Walk SHopping Centre Chorley. July 2021 - March 2022 @500 Per month, Total 9 months 4500",08/09/2021,0160284,500.00,Revenue,Gravity,77837,,
Chorley Borough Council,http://statistics.data.gov.uk/id/local-authority/30UE,Service Management & Support,1009,Customer & Digital,Supplies-Grounds Maintenance,40025,"Equipment, Furniture & Materia",5023,"Supply 42 Fast Cover mats ( 1200mm x 800mm x 22mm) weight 20kg, eliver to Bengal St depot, Bengal St, Chorley, PR7 1SA",08/09/2021,0160316,895.00,Revenue,Ground-Guards Ltd,69548,,
Chorley Borough Council,http://statistics.data.gov.uk/id/local-authority/30UE,Corporate Management,1008,Policy & Governance,Miscellaneous Expenses,40200,Miscellaneous Expenses,5034,Hire of 8 hand wash sinks from 1to 31 August 2021. Contract no. 024380,08/09/2021,0160290,"1,440.00",Revenue,Hallmark Catering,78575,,
Chorley Borough Council,http://statistics.data.gov.uk/id/local-authority/30UE,Capital,Capital,Commercial & Property,Main Contractor,03007,Capital Expenditure,Capital,"Rev A Scheme reference: HPL-25713 - Magma Paving, Magma Granite - Sawn all sides, flamed top, W - 450, L - RL, D - 75",29/09/2021,0160748,"11,510.63",Capital,Hardscape Products Ltd,17549,,
Chorley Borough Council,http://statistics.data.gov.uk/id/local-authority/30UE,Capital,Capital,Commercial & Property,Main Contractor,03007,Capital Expenditure,Capital,"Delivery on artic vehicles with offload, Delivery to Yarrow Yard, Chorley",29/09/2021,0160748,400.00,Capital,Hardscape Products Ltd,17549,,
Chorley Borough Council,http://statistics.data.gov.uk/id/local-authority/30UE,Service Management & Support,1009,Customer & Digital,Supplies-Grounds Maintenance,40025,"Equipment, Furniture & Materia",5023,"RUBB001- 300mmx15mm, 30 packs @15.70 per pack of 100",08/09/2021,0159984,471.00,Revenue,Harrisons Packaging Ltd,17555,,
Chorley Borough Council,http://statistics.data.gov.uk/id/local-authority/30UE,Planning Policy,1092,Communities,General Subscriptions,40146,Grants and Subscriptions,5031,Planning Resource Publication - Annual Subscription,22/09/2021,0161026,395.00,Revenue,Haymarket Business Media,21869,,
Chorley Borough Council,http://statistics.data.gov.uk/id/local-authority/30UE,Tourism,1039,Policy & Governance,Miscellaneous Expenses,40200,Miscellaneous Expenses,5034,cfs prize money,29/09/2021,0161106,250.00,Revenue,High Park Nurseries,71509,,
Chorley Borough Council,http://statistics.data.gov.uk/id/local-authority/30UE,Capital,Capital,Policy & Governance,Main Contractor,03007,Capital Expenditure,Capital,ADDRESS REDACTED,15/09/2021,0160464,"4,800.00",Capital,HM Revenue & Customs,56499,,
Chorley Borough Council,http://statistics.data.gov.uk/id/local-authority/30UE,Democratic Represent and  Mgnt,1007,Communities,Electricity,20013,Energy Costs,5006,1-30 NOVEMBER 2020,15/09/2021,0158639,"1,300.74",Revenue,Hudson Energy Supply {UK} / Shell Energy,81169,,
Chorley Borough Council,http://statistics.data.gov.uk/id/local-authority/30UE,Democratic Represent and  Mgnt,1007,Communities,Electricity,20013,Energy Costs,5006,1-31 dec 2020,15/09/2021,0158640,"9,605.71",Revenue,Hudson Energy Supply {UK} / Shell Energy,81169,,
Chorley Borough Council,http://statistics.data.gov.uk/id/local-authority/30UE,Democratic Represent and  Mgnt,1007,Communities,Electricity,20013,Energy Costs,5006,1-31 oct 2020,15/09/2021,0158641,"10,539.23",Revenue,Hudson Energy Supply {UK} / Shell Energy,81169,,
Chorley Borough Council,http://statistics.data.gov.uk/id/local-authority/30UE,Democratic Represent and  Mgnt,1007,Communities,Electricity,20013,Energy Costs,5006,1-30 nov 20,15/09/2021,0158642,"5,378.31",Revenue,Hudson Energy Supply {UK} / Shell Energy,81169,,
Chorley Borough Council,http://statistics.data.gov.uk/id/local-authority/30UE,Democratic Represent and  Mgnt,1007,Communities,Electricity,20013,Energy Costs,5006,1/31 nov 20,15/09/2021,0158643,"1,276.40",Revenue,Hudson Energy Supply {UK} / Shell Energy,81169,,
Chorley Borough Council,http://statistics.data.gov.uk/id/local-authority/30UE,Democratic Represent and  Mgnt,1007,Communities,Electricity,20013,Energy Costs,5006,1-31 oct 20,15/09/2021,0158644,"1,339.56",Revenue,Hudson Energy Supply {UK} / Shell Energy,81169,,
Chorley Borough Council,http://statistics.data.gov.uk/id/local-authority/30UE,Democratic Represent and  Mgnt,1007,Communities,Electricity,20013,Energy Costs,5006,1-30nov20,15/09/2021,0158645,927.30,Revenue,Hudson Energy Supply {UK} / Shell Energy,81169,,
Chorley Borough Council,http://statistics.data.gov.uk/id/local-authority/30UE,Democratic Represent and  Mgnt,1007,Communities,Electricity,20013,Energy Costs,5006,1-31 dec20,15/09/2021,0158646,"1,719.48",Revenue,Hudson Energy Supply {UK} / Shell Energy,81169,,
Chorley Borough Council,http://statistics.data.gov.uk/id/local-authority/30UE,Democratic Represent and  Mgnt,1007,Communities,Electricity,20013,Energy Costs,5006,1-31oct 20,15/09/2021,0158647,"2,051.05",Revenue,Hudson Energy Supply {UK} / Shell Energy,81169,,
Chorley Borough Council,http://statistics.data.gov.uk/id/local-authority/30UE,Democratic Represent and  Mgnt,1007,Communities,Electricity,20013,Energy Costs,5006,1-31 dec 2020,15/09/2021,0158648,"1,961.77",Revenue,Hudson Energy Supply {UK} / Shell Energy,81169,,
Chorley Borough Council,http://statistics.data.gov.uk/id/local-authority/30UE,Democratic Represent and  Mgnt,1007,Communities,Electricity,20013,Energy Costs,5006,1-31 oct 2020,15/09/2021,0158649,"1,795.55",Revenue,Hudson Energy Supply {UK} / Shell Energy,81169,,
Chorley Borough Council,http://statistics.data.gov.uk/id/local-authority/30UE,Democratic Represent and  Mgnt,1007,Communities,Electricity,20013,Energy Costs,5006,Brinscall Baths electricity,15/09/2021,0158650,"1,360.54",Revenue,Hudson Energy Supply {UK} / Shell Energy,81169,,
Chorley Borough Council,http://statistics.data.gov.uk/id/local-authority/30UE,Democratic Represent and  Mgnt,1007,Communities,Electricity,20013,Energy Costs,5006,Brinscall Baths electricity,15/09/2021,0158651,"1,148.22",Revenue,Hudson Energy Supply {UK} / Shell Energy,81169,,
Chorley Borough Council,http://statistics.data.gov.uk/id/local-authority/30UE,Democratic Represent and  Mgnt,1007,Commercial & Property,Electricity,20013,Energy Costs,5006,01-31 December 2020,15/09/2021,0159225,"10,539.23",Revenue,Hudson Energy Supply {UK} / Shell Energy,81169,,
Chorley Borough Council,http://statistics.data.gov.uk/id/local-authority/30UE,Democratic Represent and  Mgnt,1007,Commercial & Property,Electricity,20013,Energy Costs,5006,01-31 December 2020,15/09/2021,0159227,"9,605.71",Revenue,Hudson Energy Supply {UK} / Shell Energy,81169,,
Chorley Borough Council,http://statistics.data.gov.uk/id/local-authority/30UE,Democratic Represent and  Mgnt,1007,Commercial & Property,Electricity,20013,Energy Costs,5006,01-30 November 2020,15/09/2021,0159228,"5,378.31",Revenue,Hudson Energy Supply {UK} / Shell Energy,81169,,
Chorley Borough Council,http://statistics.data.gov.uk/id/local-authority/30UE,Democratic Represent and  Mgnt,1007,Commercial & Property,Electricity,20013,Energy Costs,5006,01-25 January 2021,15/09/2021,0159229,"5,698.06",Revenue,Hudson Energy Supply {UK} / Shell Energy,81169,,
Chorley Borough Council,http://statistics.data.gov.uk/id/local-authority/30UE,Business Support,1095,Commercial & Property,Electricity,20013,Energy Costs,5006,4-30 september 20,29/09/2021,0160533,675.41,Revenue,Hudson Energy Supply {UK} / Shell Energy,81169,,
Chorley Borough Council,http://statistics.data.gov.uk/id/local-authority/30UE,Democratic Represent and  Mgnt,1007,Commercial & Property,Electricity,20013,Energy Costs,5006,1-25 january 2021,29/09/2021,0160534,"6,836.53",Revenue,Hudson Energy Supply {UK} / Shell Energy,81169,,
Chorley Borough Council,http://statistics.data.gov.uk/id/local-authority/30UE,Democratic Represent and  Mgnt,1007,Commercial & Property,Electricity,20013,Energy Costs,5006,,15/09/2021,0160537,"6,399.38",Revenue,Hudson Energy Supply {UK} / Shell Energy,81169,,
Chorley Borough Council,http://statistics.data.gov.uk/id/local-authority/30UE,Democratic Represent and  Mgnt,1007,Commercial & Property,Electricity,20013,Energy Costs,5006,1-30 oct2020,15/09/2021,0160538,"12,678.07",Revenue,Hudson Energy Supply {UK} / Shell Energy,81169,,
Chorley Borough Council,http://statistics.data.gov.uk/id/local-authority/30UE,Business Support,1095,Commercial & Property,Electricity,20013,Energy Costs,5006,01/31/10/2020,15/09/2021,0160543,935.49,Revenue,Hudson Energy Supply {UK} / Shell Energy,81169,,
Chorley Borough Council,http://statistics.data.gov.uk/id/local-authority/30UE,Business Support,1095,Commercial & Property,Electricity,20013,Energy Costs,5006,01/11/2020 - 04/01/2021,15/09/2021,0160544,"1,011.10",Revenue,Hudson Energy Supply {UK} / Shell Energy,81169,,
Chorley Borough Council,http://statistics.data.gov.uk/id/local-authority/30UE,Democratic Represent and  Mgnt,1007,Commercial & Property,Electricity,20013,Energy Costs,5006,01-30/11/2020,15/09/2021,0160545,"1,073.17",Revenue,Hudson Energy Supply {UK} / Shell Energy,81169,,
Chorley Borough Council,http://statistics.data.gov.uk/id/local-authority/30UE,Democratic Represent and  Mgnt,1007,Commercial & Property,Electricity,20013,Energy Costs,5006,01/10/20 - 31/10/2020,15/09/2021,0160546,"1,574.02",Revenue,Hudson Energy Supply {UK} / Shell Energy,81169,,
Chorley Borough Council,http://statistics.data.gov.uk/id/local-authority/30UE,Democratic Represent and  Mgnt,1007,Commercial & Property,Electricity,20013,Energy Costs,5006,01-25/01/2021,15/09/2021,0160547,"1,204.73",Revenue,Hudson Energy Supply {UK} / Shell Energy,81169,,
Chorley Borough Council,http://statistics.data.gov.uk/id/local-authority/30UE,Democratic Represent and  Mgnt,1007,Commercial & Property,Electricity,20013,Energy Costs,5006,01-31/12/2021,15/09/2021,0160548,"1,506.95",Revenue,Hudson Energy Supply {UK} / Shell Energy,81169,,
Chorley Borough Council,http://statistics.data.gov.uk/id/local-authority/30UE,Democratic Represent and  Mgnt,1007,Communities,Electricity,20013,Energy Costs,5006,1st - 31st december 2020,29/09/2021,0161109,"2,044.52",Revenue,Hudson Energy Supply {UK} / Shell Energy,81169,,
Chorley Borough Council,http://statistics.data.gov.uk/id/local-authority/30UE,Democratic Represent and  Mgnt,1007,Communities,Electricity,20013,Energy Costs,5006,1-30 nov 2020,29/09/2021,0161110,"1,355.05",Revenue,Hudson Energy Supply {UK} / Shell Energy,81169,,
Chorley Borough Council,http://statistics.data.gov.uk/id/local-authority/30UE,Democratic Represent and  Mgnt,1007,Communities,Electricity,20013,Energy Costs,5006,1-30 oct 2020,29/09/2021,0161111,"2,136.18",Revenue,Hudson Energy Supply {UK} / Shell Energy,81169,,
Chorley Borough Council,http://statistics.data.gov.uk/id/local-authority/30UE,Democratic Represent and  Mgnt,1007,Communities,Electricity,20013,Energy Costs,5006,1-25 jan 21,29/09/2021,0161112,"1,425.07",Revenue,Hudson Energy Supply {UK} / Shell Energy,81169,,
Chorley Borough Council,http://statistics.data.gov.uk/id/local-authority/30UE,Central Support Services,1009,Customer & Digital,Telephones - Other,40085,Communication and Computing,5028,Hybrit SIP charges August 21,08/09/2021,0160375,585.00,Revenue,Hybrit LLP,77925,,
Chorley Borough Council,http://statistics.data.gov.uk/id/local-authority/30UE,Central Support Services,1009,Communities,Telephones - Other,40085,Communication and Computing,5028,"Anywhere365 Corporate SA (yearly), Extension Window SA, Enterprise feature pack for Chorley Council SA (yearly)",15/09/2021,0160609,"3,958.00",Revenue,Hybrit LLP,77925,,
Chorley Borough Council,http://statistics.data.gov.uk/id/local-authority/30UE,Corporate Management,1008,Policy & Governance,Other Fees,40212,Miscellaneous Expenses,5034,Subsidy for the provision of a meals on wheels service in Chorley up to 15 August 2021,22/09/2021,0160752,"2,248.71",Revenue,I Care GB Ltd,77247,,
Chorley Borough Council,http://statistics.data.gov.uk/id/local-authority/30UE,Elections,1012,Policy & Governance,Training Course Fees,17010,Indirect Employee Expenses,5002,Canvass training,08/09/2021,0159953,600.00,Revenue,IDOX Software Limited,17542,,
Chorley Borough Council,http://statistics.data.gov.uk/id/local-authority/30UE,Control Accounts,Control,System,Manual Control Account,00001,Balance Sheet,Balance,,08/09/2021,0159559,"1,233.45",Revenue,Inland Revenue,17445,,
Chorley Borough Council,http://statistics.data.gov.uk/id/local-authority/30UE,Control Accounts,Control,System,Manual Control Account,00001,Balance Sheet,Balance,,08/09/2021,0160278,762.88,Revenue,Inland Revenue,17445,,
Chorley Borough Council,http://statistics.data.gov.uk/id/local-authority/30UE,Business Support,1095,Commercial & Property,Planned Maintenance,20006,Repairs Maintenance & Alts,5005,EPC for Iceland,29/09/2021,0156608,525.00,Revenue,Inprova Energy Ltd,77722,,
Chorley Borough Council,http://statistics.data.gov.uk/id/local-authority/30UE,Community Development,1097,Commercial & Property,Rent/Hire Of Premises,20017,Premises Rents,5007,ADDRESS REDACTed,15/09/2021,0160715,"7,218.75",Revenue,J R Keys,17124,,
Chorley Borough Council,http://statistics.data.gov.uk/id/local-authority/30UE,Tourism,1039,Policy & Governance,Miscellaneous Expenses,40200,Miscellaneous Expenses,5034,cfs prize money,29/09/2021,0161082,400.00,Revenue,J&A Japonicas,77714,,
Chorley Borough Council,http://statistics.data.gov.uk/id/local-authority/30UE,Central Support Services,1009,Policy & Governance,Consultants` Fees,40077,Services,5027,2019-20 Asset Valuations - remaining balance due which was cancelled on PRD058101,08/09/2021,0160142,"5,402.00",Revenue,Jacobs UK Ltd,78489,,
Chorley Borough Council,http://statistics.data.gov.uk/id/local-authority/30UE,Tourism,1039,Policy & Governance,Exhibitions & Special Events,40158,Miscellaneous Expenses,5034,"Jacqui's Rhythm Katz, Jazz/swing band entertainment for the Chorley Flower Show, 4 sets across Saturday and Sunday",15/09/2021,0160376,400.00,Revenue,Jacqui Sutton,83440,,
Chorley Borough Council,http://statistics.data.gov.uk/id/local-authority/30UE,Tourism,1039,Policy & Governance,Exhibitions & Special Events,40158,Miscellaneous Expenses,5034,Jacqui's Rhythm Katz. Jazz/swing band for Chorley Flower Show. 400 day rate.,15/09/2021,0160376,400.00,Revenue,Jacqui Sutton,83440,,
Chorley Borough Council,http://statistics.data.gov.uk/id/local-authority/30UE,Service Management & Support,1009,Customer & Digital,Vehicles and Plant Maintenance,30045,Direct Transport Costs,5016,"Attend to site to remove broken bolts, Drill and extract broken bolts, Tap Holes, Fit new bolts",08/09/2021,0160304,481.00,Revenue,JJ Bullen {Plant & Equipment Ltd},81179,,
Chorley Borough Council,http://statistics.data.gov.uk/id/local-authority/30UE,Capital,Capital,Policy & Governance,Main Contractor,03007,Capital Expenditure,Capital,purchase of ADDRESS REDACTED,02/09/2021,0158455,"165,000.00",Capital,NAME REDACTED,82949,,
Chorley Borough Council,http://statistics.data.gov.uk/id/local-authority/30UE,Tourism,1039,Policy & Governance,Miscellaneous Expenses,40200,Miscellaneous Expenses,5034,cfs prize money,29/09/2021,0161081,400.00,Revenue,NAME REDACTED,77540,,
Chorley Borough Council,http://statistics.data.gov.uk/id/local-authority/30UE,Service Management & Support,1009,Customer & Digital,Supplies-Grounds Maintenance,40025,"Equipment, Furniture & Materia",5023,1 x pallet of postcrete,22/09/2021,0160849,280.00,Revenue,John H Mayor & Sons Ltd,16635,,
Chorley Borough Council,http://statistics.data.gov.uk/id/local-authority/30UE,Central Support Services,1009,Commercial & Property,Main Contractor,03007,Capital Expenditure,Capital,Alker Lane Design & Build Contract,29/09/2021,0160740,"812,059.38",Revenue,John Turner Construction Group Limited,82376,,
Chorley Borough Council,http://statistics.data.gov.uk/id/local-authority/30UE,Central Support Services,1009,Commercial & Property,Miscellaneous Expenses,40200,Miscellaneous Expenses,5034,"Adlington memorial, Supply and Install Feeder Pillar with 3 way dist board, 6m R/L Column and Fit Lanterns provided",01/09/2021,0160099,"3,386.33",Revenue,Jones Lighting Ltd,82417,,
Chorley Borough Council,http://statistics.data.gov.uk/id/local-authority/30UE,Tourism,1039,Policy & Governance,Publicity - Advertising,40157,Miscellaneous Expenses,5034,"2 half page advert in the below titles, Wigan Observer, Blackpool Gazette, Lytham St Annes Express, Wigan Evening Post",08/09/2021,0159374,"2,092.00",Revenue,JPI Media - Johnston Publishing Ltd,20072,,
Chorley Borough Council,http://statistics.data.gov.uk/id/local-authority/30UE,Capital,Capital,Communities,Main Contractor,03007,Capital Expenditure,Capital,"Changing Facility Planning Application: JYM Submission fee, Planning Portal Service Charge, LPA Planning Fee",22/09/2021,0160282,946.66,Capital,JYM Partnership LLP,18179,,
Chorley Borough Council,http://statistics.data.gov.uk/id/local-authority/30UE,Capital,Capital,Communities,Main Contractor,03007,Capital Expenditure,Capital,"Changing Facility Planning Application: JYM Submission fee, Planning Portal Service Charge, LPA Planning Fee",22/09/2021,0160282,"2,082.00",Capital,JYM Partnership LLP,18179,,
Chorley Borough Council,http://statistics.data.gov.uk/id/local-authority/30UE,Unapportionable Central OHeads,1009,Commercial & Property,General Repairs - Reactive,20004,Repairs Maintenance & Alts,5005,Bus Station building fabric condition survey,08/09/2021,0160407,"2,300.00",Revenue,JYM Partnership LLP,18179,,
Chorley Borough Council,http://statistics.data.gov.uk/id/local-authority/30UE,Capital,Capital,Communities,Grants,03002,Capital Expenditure,Capital,ADDRESS REDACTED,01/09/2021,0160097,665.00,Capital,K Berry Ltd,16421,,
Chorley Borough Council,http://statistics.data.gov.uk/id/local-authority/30UE,Capital,Capital,Communities,Grants,03002,Capital Expenditure,Capital,ADDRESS REDACTED,01/09/2021,0160098,800.00,Capital,K Berry Ltd,16421,,
Chorley Borough Council,http://statistics.data.gov.uk/id/local-authority/30UE,Capital,Capital,Communities,Grants,03002,Capital Expenditure,Capital,ADDRESS REDACTED,22/09/2021,0160722,"4,235.00",Capital,K Berry Ltd,16421,,
Chorley Borough Council,http://statistics.data.gov.uk/id/local-authority/30UE,Capital,Capital,Communities,Grants,03002,Capital Expenditure,Capital,ADDRESS REDACTED,22/09/2021,0160723,"4,565.00",Capital,K Berry Ltd,16421,,
Chorley Borough Council,http://statistics.data.gov.uk/id/local-authority/30UE,Tourism,1039,Policy & Governance,Miscellaneous Expenses,40200,Miscellaneous Expenses,5034,cfs prize money,29/09/2021,0161083,500.00,Revenue,NAME REDACTED,76216,,
Chorley Borough Council,http://statistics.data.gov.uk/id/local-authority/30UE,Central Support Services,1009,Customer & Digital,Professional Fees,40063,Services,5027,Essential Level Membership 1 Year,15/09/2021,0160608,495.00,Revenue,Keep Britain Tidy,22196,,
Chorley Borough Council,http://statistics.data.gov.uk/id/local-authority/30UE,Service Management & Support,1009,Customer & Digital,Protective Clothing,40040,"Clothing, Uniforms and Laundry",5025,"2 x Size 8, 2 x Size 11, 2 x Size 12, Goliath SDR10CSI Black Safety Boot, Portwest Safety spectacles, anti-scratch, anti-fog",08/09/2021,0159764,252.78,Revenue,Key Engineering & Hygene Supplies,51615,,
Chorley Borough Council,http://statistics.data.gov.uk/id/local-authority/30UE,Service Management & Support,1009,Customer & Digital,Protective Clothing,40040,"Clothing, Uniforms and Laundry",5025,,08/09/2021,0159764,46.50,Revenue,Key Engineering & Hygene Supplies,51615,,
Chorley Borough Council,http://statistics.data.gov.uk/id/local-authority/30UE,Central Support Services,1009,Customer & Digital,Computer Equipment-Purchase,40098,Communication and Computing,5028,iPhone SE 64GB Black,29/09/2021,0157124,"3,359.85",Revenue,Kingsfield Computer Products LTD,77551,,
Chorley Borough Council,http://statistics.data.gov.uk/id/local-authority/30UE,Control Accounts,Control,Policy & Governance,General Balances,00100,Balance Sheet,Balance,Monthly Deds from Expenses,29/09/2021,0161152,"2,260.58",Revenue,Labour Councillors Association,17577,,
Chorley Borough Council,http://statistics.data.gov.uk/id/local-authority/30UE,Precepts and Collection Fund,Precepts,Policy & Governance,LCC Precept,02009,Precepts & Collection Fund,Precept,lcc ctax precept,02/09/2021,0159365,"5,460,622.00",Revenue,Lancashire County Council,18386,,
Chorley Borough Council,http://statistics.data.gov.uk/id/local-authority/30UE,Collection Fund Revenue Accoun,,Policy & Governance,NNDR County Share,02036,Precepts & Collection Fund,Precept,lcc brates precepts,02/09/2021,0159365,"137,018.00",Revenue,Lancashire County Council,18386,,
Chorley Borough Council,http://statistics.data.gov.uk/id/local-authority/30UE,Capital,Capital,Communities,Grants,03002,Capital Expenditure,Capital,ADDRESS REDACTED,01/09/2021,0160094,"2,680.33",Capital,Lancashire County Council,17758,,
Chorley Borough Council,http://statistics.data.gov.uk/id/local-authority/30UE,Capital,Capital,Communities,Grants,03002,Capital Expenditure,Capital,ADDRESS REDACTED,01/09/2021,0160095,368.00,Capital,Lancashire County Council,17758,,
Chorley Borough Council,http://statistics.data.gov.uk/id/local-authority/30UE,Capital,Capital,Communities,Grants,03002,Capital Expenditure,Capital,ADDRESS REDACTED,01/09/2021,0160096,"3,012.44",Capital,Lancashire County Council,17758,,
Chorley Borough Council,http://statistics.data.gov.uk/id/local-authority/30UE,Planning Policy,1092,Communities,General Subscriptions,40146,Grants and Subscriptions,5031,FAO NAME REDACTED Memorandum of Agreement 2020/21 - LERN Chorley,08/09/2021,0160378,"3,420.00",Revenue,Lancashire County Council,17758,,
Chorley Borough Council,http://statistics.data.gov.uk/id/local-authority/30UE,Democratic Represent and  Mgnt,1007,Policy & Governance,Tools & Equipment - Maintenance,40005,"Equipment, Furniture & Materia",5023,"Astley Hall Relocations: Revised, Technical work consisting of relocation of paintings and furniture prior to G7",22/09/2021,0160883,"1,232.00",Revenue,Lancashire County Council,17758,,
Chorley Borough Council,http://statistics.data.gov.uk/id/local-authority/30UE,Capital,Capital,Commercial & Property,Other Expenses,03030,Capital Expenditure,Capital,,15/09/2021,0160721,350.00,Capital,Lancashire County Council Highways,18845,,
Chorley Borough Council,http://statistics.data.gov.uk/id/local-authority/30UE,Corporate Management,1008,Customer & Digital,Clinical Waste Collection,50007,Private Contractors,5042,Domestic clinical waste collection services June 2021 to March 2022,08/09/2021,0160285,"2,502.03",Revenue,Lancashire Environmental Services,82309,,
Chorley Borough Council,http://statistics.data.gov.uk/id/local-authority/30UE,Corporate Management,1008,Customer & Digital,Clinical Waste Collection,50007,Private Contractors,5042,Domestic clinical waste collection services June 2021 to March 2022,29/09/2021,0160823,"2,210.44",Revenue,Lancashire Environmental Services,82309,,
Chorley Borough Council,http://statistics.data.gov.uk/id/local-authority/30UE,Unapportionable Central OHeads,1009,Commercial & Property,Planned Maintenance,20006,Repairs Maintenance & Alts,5005,"inv019446, Primrose, Gas boiler service and inspection",01/09/2021,0160169,432.00,Revenue,Lancashire Gas Services Ltd,78192,,
Chorley Borough Council,http://statistics.data.gov.uk/id/local-authority/30UE,Democratic Represent and  Mgnt,1007,Commercial & Property,General Repairs - Reactive,20004,Repairs Maintenance & Alts,5005,"ASLC inv 019183, replace leaking 3 port valve in air handling unit following reports of a leak",08/09/2021,0160454,"1,231.55",Revenue,Lancashire Gas Services Ltd,78192,,
Chorley Borough Council,http://statistics.data.gov.uk/id/local-authority/30UE,Democratic Represent and  Mgnt,1007,Commercial & Property,General Repairs - Reactive,20004,Repairs Maintenance & Alts,5005,"ASLC inv019127, install and replace controller to air conditioner unit as buttons not working  TF13048",15/09/2021,0160494,262.50,Revenue,Lancashire Gas Services Ltd,78192,,
Chorley Borough Council,http://statistics.data.gov.uk/id/local-authority/30UE,Unapportionable Central OHeads,1009,Policy & Governance,Pensions Increase Act Payments,18005,Indirect Employee Expenses,5002,CAY May 21,02/09/2021,0158913,"17,741.01",Revenue,Lancashire Pensions Services DD ONLY,16696,,
Chorley Borough Council,http://statistics.data.gov.uk/id/local-authority/30UE,Other Short Term Creditors,,Policy & Governance,General Balances,00100,Balance Sheet,Balance,EES,02/09/2021,0159363,"45,567.54",Revenue,Lancashire Pensions Services DD ONLY,16696,,
Chorley Borough Council,http://statistics.data.gov.uk/id/local-authority/30UE,Other Short Term Creditors,,Policy & Governance,General Balances,00100,Balance Sheet,Balance,EES,02/09/2021,0159940,"45,664.56",Revenue,Lancashire Pensions Services DD ONLY,16696,,
Chorley Borough Council,http://statistics.data.gov.uk/id/local-authority/30UE,Unapportionable Central OHeads,1009,Policy & Governance,Pensions Increase Act Payments,18005,Indirect Employee Expenses,5002,CAY JUNE,02/09/2021,0159941,"17,332.61",Revenue,Lancashire Pensions Services DD ONLY,16696,,
Chorley Borough Council,http://statistics.data.gov.uk/id/local-authority/30UE,Precepts and Collection Fund,Precepts,Policy & Governance,LCFA Precept,02011,Precepts & Collection Fund,Precept,LCFA ctax precepts,02/09/2021,0159362,"271,012.00",Revenue,Lancs Combined Fire Authority,17768,,
Chorley Borough Council,http://statistics.data.gov.uk/id/local-authority/30UE,Collection Fund Revenue Accoun,,Policy & Governance,NNDR Fire Share,02037,Precepts & Collection Fund,Precept,LCFA brates precepts,02/09/2021,0159362,"14,851.00",Revenue,Lancs Combined Fire Authority,17768,,
Chorley Borough Council,http://statistics.data.gov.uk/id/local-authority/30UE,Planning Policy,1092,Communities,Consultants` Fees,40077,Services,5027,Land Use Study for Central Lancashire Local Plan,08/09/2021,0160325,"14,939.00",Revenue,Land Use Consultants (LUC) Ltd,81849,,
Chorley Borough Council,http://statistics.data.gov.uk/id/local-authority/30UE,Unapportionable Central OHeads,1009,Communities,General Repairs - Reactive,20004,Repairs Maintenance & Alts,5005,"Birkacre Reservoir Yarrow Valley Country Park Off Birkacre Road, PR7 3QL, Supply a Mainline Pan & Tilt with on-board CCTV",01/09/2021,0158923,"1,045.00",Revenue,Lanes Group plc,20269,,
Chorley Borough Council,http://statistics.data.gov.uk/id/local-authority/30UE,Capital,Capital,Communities,Main Contractor,03007,Capital Expenditure,Capital,"Design and Construction New 106 x 70 Artificial Grass Pitch, New Fencing, Hardstanding, Floodlighting, Track Works, Westway",02/09/2021,0158932,"290,761.03",Capital,Lano Sports,80704,,
Chorley Borough Council,http://statistics.data.gov.uk/id/local-authority/30UE,Central Support Services,1009,Policy & Governance,Car Leasing Payment,14100,Direct Employee Expenses,5001,VIN REDACTED,22/09/2021,0160070,"2,435.27",Revenue,LeasePlan UK Ltd T/A Automotive Leasing,65197,,
Chorley Borough Council,http://statistics.data.gov.uk/id/local-authority/30UE,Central Support Services,1009,Policy & Governance,Car Leasing Payment,14100,Direct Employee Expenses,5001,vat,22/09/2021,0160070,187.43,Revenue,LeasePlan UK Ltd T/A Automotive Leasing,65197,,
Chorley Borough Council,http://statistics.data.gov.uk/id/local-authority/30UE,Control Accounts,Control,Policy & Governance,Manual Control Account,00001,Balance Sheet,Balance,-vat,22/09/2021,0160070,-187.43,Revenue,LeasePlan UK Ltd T/A Automotive Leasing,65197,,
Chorley Borough Council,http://statistics.data.gov.uk/id/local-authority/30UE,Unapportionable Central OHeads,1009,Policy & Governance,Car Leasing Payment,14100,Direct Employee Expenses,5001,VIN REDACTED,22/09/2021,0160071,"2,651.91",Revenue,LeasePlan UK Ltd T/A Automotive Leasing,65197,,
Chorley Borough Council,http://statistics.data.gov.uk/id/local-authority/30UE,Unapportionable Central OHeads,1009,Policy & Governance,Car Leasing Payment,14100,Direct Employee Expenses,5001,vat,22/09/2021,0160071,222.09,Revenue,LeasePlan UK Ltd T/A Automotive Leasing,65197,,
Chorley Borough Council,http://statistics.data.gov.uk/id/local-authority/30UE,Control Accounts,Control,Policy & Governance,Manual Control Account,00001,Balance Sheet,Balance,-vat,22/09/2021,0160071,-222.09,Revenue,LeasePlan UK Ltd T/A Automotive Leasing,65197,,
Chorley Borough Council,http://statistics.data.gov.uk/id/local-authority/30UE,Democratic Represent and  Mgnt,1007,Policy & Governance,Car Leasing Payment,14100,Direct Employee Expenses,5001,VIN REDACTED,22/09/2021,0160067,377.19,Revenue,Lex Autolease Ltd,70682,,
Chorley Borough Council,http://statistics.data.gov.uk/id/local-authority/30UE,Democratic Represent and  Mgnt,1007,Policy & Governance,Car Leasing Payment,14100,Direct Employee Expenses,5001,vat,22/09/2021,0160067,34.43,Revenue,Lex Autolease Ltd,70682,,
Chorley Borough Council,http://statistics.data.gov.uk/id/local-authority/30UE,Control Accounts,Control,Policy & Governance,Manual Control Account,00001,Balance Sheet,Balance,-vat,22/09/2021,0160067,-34.43,Revenue,Lex Autolease Ltd,70682,,
Chorley Borough Council,http://statistics.data.gov.uk/id/local-authority/30UE,Unapportionable Central OHeads,1009,Policy & Governance,Publications,40054,"Printing, Stationery & General",5026,Stones Justice Manual & CD,15/09/2021,0159612,458.34,Revenue,Lexis Nexis UK,16688,,
Chorley Borough Council,http://statistics.data.gov.uk/id/local-authority/30UE,Unapportionable Central OHeads,1009,Policy & Governance,Publications,40054,"Printing, Stationery & General",5026,zero rated item,15/09/2021,0159612,431.65,Revenue,Lexis Nexis UK,16688,,
Chorley Borough Council,http://statistics.data.gov.uk/id/local-authority/30UE,Unapportionable Central OHeads,1009,Policy & Governance,Publications,40054,"Printing, Stationery & General",5026,carriage,15/09/2021,0159612,7.00,Revenue,Lexis Nexis UK,16688,,
Chorley Borough Council,http://statistics.data.gov.uk/id/local-authority/30UE,Business Support,1095,Commercial & Property,Cleaning/Attendants' Services,20041,Cleaning and Domestic Supplies,5012,"Carpet Cleaning on 31st August 2021, price as quoted by email from NAME REDACTED 03/09/21",15/09/2021,0160591,550.00,Revenue,Leyland Cleaning Services Limited,21612,,
Chorley Borough Council,http://statistics.data.gov.uk/id/local-authority/30UE,Business Support,1095,Commercial & Property,Cleaning/Attendants' Services,20041,Cleaning and Domestic Supplies,5012,"Cleaning of carpets at Strawberry Fields: 31/08/21 - Office 31 01/09/21 - Offices 16, 17 and 33, plus part of corridor",22/09/2021,0160962,780.00,Revenue,Leyland Cleaning Services Limited,21612,,
Chorley Borough Council,http://statistics.data.gov.uk/id/local-authority/30UE,Unapportionable Central OHeads,1009,Customer & Digital,Professional Fees,14011,Direct Employee Expenses,5001,Empty Homes Review 2021,29/09/2021,0160315,"9,257.92",Revenue,Liberata (Capacity Grid),67989,,
Chorley Borough Council,http://statistics.data.gov.uk/id/local-authority/30UE,Unapportionable Central OHeads,1009,Customer & Digital,Professional Fees,14011,Direct Employee Expenses,5001,Empty Homes Review 2021,22/09/2021,0160339,"1,412.94",Revenue,Liberata (Capacity Grid),67989,,
Chorley Borough Council,http://statistics.data.gov.uk/id/local-authority/30UE,Unapportionable Central OHeads,1009,Commercial & Property,Planned Maintenance,20006,Repairs Maintenance & Alts,5005,Test & Inspections of the lightning conductor systems fitted to Chorley Town Hall,08/09/2021,0160301,240.00,Revenue,Lightning Consultants (UK) Ltd,17446,,
Chorley Borough Council,http://statistics.data.gov.uk/id/local-authority/30UE,Unapportionable Central OHeads,1009,Commercial & Property,Planned Maintenance,20006,Repairs Maintenance & Alts,5005,Test & Inspections of the lightning conductor systems fitted to Astley Hall,08/09/2021,0160301,240.00,Revenue,Lightning Consultants (UK) Ltd,17446,,
Chorley Borough Council,http://statistics.data.gov.uk/id/local-authority/30UE,Capital,Capital,Commercial & Property,Main Contractor,03007,Capital Expenditure,Capital,Project management services for Astley Hall Restoration project,08/09/2021,0160031,"3,235.00",Capital,Linchpin Ltd,80779,,
Chorley Borough Council,http://statistics.data.gov.uk/id/local-authority/30UE,Capital,Capital,Commercial & Property,Main Contractor,03007,Capital Expenditure,Capital,Project management services for Astley Hall Restoration project,15/09/2021,0160380,"2,186.00",Capital,Linchpin Ltd,80779,,
Chorley Borough Council,http://statistics.data.gov.uk/id/local-authority/30UE,Corporate Management,1008,Policy & Governance,Treasury Management Service,40065,Services,5027,Treasury Management Services for the period 01/04/2021 - 30/09/2021,08/09/2021,0160338,"7,800.00",Revenue,Link Treasury Services Limited,16428,,
Chorley Borough Council,http://statistics.data.gov.uk/id/local-authority/30UE,Corporate Management,1008,Policy & Governance,Miscellaneous Expenses,40200,Miscellaneous Expenses,5034,2 x Half page adverts in Northern Life Magazine to promote the Markets and Market Walk,15/09/2021,0159982,300.00,Revenue,Loop Publishing Ltd,18770,,
Chorley Borough Council,http://statistics.data.gov.uk/id/local-authority/30UE,Corporate Management,1008,Commercial & Property,Exhibitions & Special Events,40158,Miscellaneous Expenses,5034,"Supply Entertainment on Fun Thursdays from 22nd July to 26th August inclusive, 500 per day x 6 days, Total 3000",29/09/2021,0161171,"3,000.00",Revenue,Louby Lou Ltd,76335,,
Chorley Borough Council,http://statistics.data.gov.uk/id/local-authority/30UE,Democratic Represent and  Mgnt,1007,Communities,Other Materials,40032,"Equipment, Furniture & Materia",5023,"465022 All seasons Leisure Centre Latex Cap-R2, 1 PC 750 PC, 465022 Brinscall Swimming Pool Latex Caps-R2",08/09/2021,0160381,675.00,Revenue,Mares S.p.A,82058,,
Chorley Borough Council,http://statistics.data.gov.uk/id/local-authority/30UE,Central Support Services,1009,Communities,Miscellaneous Expenses,40200,Miscellaneous Expenses,5034,PIVOT CASE - House Clearance for hoarding,22/09/2021,0160745,300.00,Revenue,NAME REDACTED,82940,,
Chorley Borough Council,http://statistics.data.gov.uk/id/local-authority/30UE,Tourism,1039,Policy & Governance,Publicity - Advertising,40157,Miscellaneous Expenses,5034,Solus email for Chorley Flower Show 2021.,15/09/2021,0160162,495.00,Revenue,Marketing Lancashire,65208,,
Chorley Borough Council,http://statistics.data.gov.uk/id/local-authority/30UE,Corporate Management,1008,Policy & Governance,Agency Staff,13000,Direct Employee Expenses,5001,NAME REDACTED,01/09/2021,0160091,540.61,Revenue,Matrix SCM Ltd,22128,,
Chorley Borough Council,http://statistics.data.gov.uk/id/local-authority/30UE,Corporate Management,1008,Policy & Governance,Agency Staff,13000,Direct Employee Expenses,5001,NAME REDACTED,01/09/2021,0160091,738.80,Revenue,Matrix SCM Ltd,22128,,
Chorley Borough Council,http://statistics.data.gov.uk/id/local-authority/30UE,Corporate Management,1008,Policy & Governance,Agency Staff,13000,Direct Employee Expenses,5001,NAME REDACTED,15/09/2021,0160473,558.99,Revenue,Matrix SCM Ltd,22128,,
Chorley Borough Council,http://statistics.data.gov.uk/id/local-authority/30UE,Corporate Management,1008,Policy & Governance,Agency Staff,13000,Direct Employee Expenses,5001,NAME REDACTED,15/09/2021,0160473,738.80,Revenue,Matrix SCM Ltd,22128,,
Chorley Borough Council,http://statistics.data.gov.uk/id/local-authority/30UE,Corporate Management,1008,Policy & Governance,Agency Staff,13000,Direct Employee Expenses,5001,NAME REDACTED,15/09/2021,0160474,592.10,Revenue,Matrix SCM Ltd,22128,,
Chorley Borough Council,http://statistics.data.gov.uk/id/local-authority/30UE,Corporate Management,1008,Policy & Governance,Agency Staff,13000,Direct Employee Expenses,5001,NAME REDACTED,15/09/2021,0160474,738.80,Revenue,Matrix SCM Ltd,22128,,
Chorley Borough Council,http://statistics.data.gov.uk/id/local-authority/30UE,Corporate Management,1008,Policy & Governance,Agency Staff,13000,Direct Employee Expenses,5001,NAME REDACTED,22/09/2021,0160720,463.37,Revenue,Matrix SCM Ltd,22128,,
Chorley Borough Council,http://statistics.data.gov.uk/id/local-authority/30UE,Corporate Management,1008,Policy & Governance,Agency Staff,13000,Direct Employee Expenses,5001,NAME REDACTED,22/09/2021,0160720,738.80,Revenue,Matrix SCM Ltd,22128,,
Chorley Borough Council,http://statistics.data.gov.uk/id/local-authority/30UE,Unapportionable Central OHeads,1009,Commercial & Property,Planned Maintenance,20006,Repairs Maintenance & Alts,5005,"Legionella monitoring, Astley Hall, Coach House and Farmhouse",22/09/2021,0160794,75.00,Revenue,Maxigiene Environmental Services Ltd,67160,,
Chorley Borough Council,http://statistics.data.gov.uk/id/local-authority/30UE,Unapportionable Central OHeads,1009,Commercial & Property,Planned Maintenance,20006,Repairs Maintenance & Alts,5005,"Legionella monitoring, Parks Buildings -  Devonshire rec, harpers rec",22/09/2021,0160794,40.00,Revenue,Maxigiene Environmental Services Ltd,67160,,
Chorley Borough Council,http://statistics.data.gov.uk/id/local-authority/30UE,Unapportionable Central OHeads,1009,Commercial & Property,Planned Maintenance,20006,Repairs Maintenance & Alts,5005,"Legionella monitoring, Community centres",22/09/2021,0160794,169.16,Revenue,Maxigiene Environmental Services Ltd,67160,,
Chorley Borough Council,http://statistics.data.gov.uk/id/local-authority/30UE,Unapportionable Central OHeads,1009,Commercial & Property,Planned Maintenance,20006,Repairs Maintenance & Alts,5005,"Legionella monitoring, WC`s including cemetery wc",22/09/2021,0160794,65.00,Revenue,Maxigiene Environmental Services Ltd,67160,,
Chorley Borough Council,http://statistics.data.gov.uk/id/local-authority/30UE,Unapportionable Central OHeads,1009,Commercial & Property,Planned Maintenance,20006,Repairs Maintenance & Alts,5005,"Legionella monitoring , sports pitches/pavilions",22/09/2021,0160794,72.08,Revenue,Maxigiene Environmental Services Ltd,67160,,
Chorley Borough Council,http://statistics.data.gov.uk/id/local-authority/30UE,Unapportionable Central OHeads,1009,Commercial & Property,Planned Maintenance,20006,Repairs Maintenance & Alts,5005,"Legionella monitoring, Bengal St",22/09/2021,0160794,25.00,Revenue,Maxigiene Environmental Services Ltd,67160,,
Chorley Borough Council,http://statistics.data.gov.uk/id/local-authority/30UE,Unapportionable Central OHeads,1009,Commercial & Property,Planned Maintenance,20006,Repairs Maintenance & Alts,5005,"Legionella monitoring, chorley cem",22/09/2021,0160794,20.00,Revenue,Maxigiene Environmental Services Ltd,67160,,
Chorley Borough Council,http://statistics.data.gov.uk/id/local-authority/30UE,Community Development,1097,Commercial & Property,Planned Maintenance,20006,Repairs Maintenance & Alts,5005,"Legionella monitoring, CAB (CIC)",22/09/2021,0160794,20.00,Revenue,Maxigiene Environmental Services Ltd,67160,,
Chorley Borough Council,http://statistics.data.gov.uk/id/local-authority/30UE,Business Support,1095,Commercial & Property,Planned Maintenance,20006,Repairs Maintenance & Alts,5005,"Legionella monitoring, MW Mgt",22/09/2021,0160794,20.00,Revenue,Maxigiene Environmental Services Ltd,67160,,
Chorley Borough Council,http://statistics.data.gov.uk/id/local-authority/30UE,Unapportionable Central OHeads,1009,Commercial & Property,Planned Maintenance,20006,Repairs Maintenance & Alts,5005,"Legionella monitoring, Cotswold House",22/09/2021,0160794,20.00,Revenue,Maxigiene Environmental Services Ltd,67160,,
Chorley Borough Council,http://statistics.data.gov.uk/id/local-authority/30UE,Unapportionable Central OHeads,1009,Commercial & Property,Planned Maintenance,20006,Repairs Maintenance & Alts,5005,"Legionella monitoring, Market",22/09/2021,0160794,20.00,Revenue,Maxigiene Environmental Services Ltd,67160,,
Chorley Borough Council,http://statistics.data.gov.uk/id/local-authority/30UE,Unapportionable Central OHeads,1009,Commercial & Property,Planned Maintenance,20006,Repairs Maintenance & Alts,5005,"Legionella monitoring, Primrose",22/09/2021,0160794,30.00,Revenue,Maxigiene Environmental Services Ltd,67160,,
Chorley Borough Council,http://statistics.data.gov.uk/id/local-authority/30UE,Business Support,1095,Commercial & Property,Planned Maintenance,20006,Repairs Maintenance & Alts,5005,"Legionella monitoring, DOP",22/09/2021,0160794,30.00,Revenue,Maxigiene Environmental Services Ltd,67160,,
Chorley Borough Council,http://statistics.data.gov.uk/id/local-authority/30UE,Unapportionable Central OHeads,1009,Commercial & Property,Planned Maintenance,20006,Repairs Maintenance & Alts,5005,"Legionella monitoring, Town Hall",22/09/2021,0160794,25.00,Revenue,Maxigiene Environmental Services Ltd,67160,,
Chorley Borough Council,http://statistics.data.gov.uk/id/local-authority/30UE,Unapportionable Central OHeads,1009,Commercial & Property,Planned Maintenance,20006,Repairs Maintenance & Alts,5005,"Legionella monitoring, Union St",22/09/2021,0160794,25.00,Revenue,Maxigiene Environmental Services Ltd,67160,,
Chorley Borough Council,http://statistics.data.gov.uk/id/local-authority/30UE,Business Support,1095,Policy & Governance,Professional Fees,40063,Services,5027,Review of the service charge accounts for Market Walk and Market Walk Extension for 20/21,08/09/2021,0160326,"1,050.00",Revenue,Menzies LLP,76095,,
Chorley Borough Council,http://statistics.data.gov.uk/id/local-authority/30UE,Business Support,1095,Policy & Governance,Professional Fees,40063,Services,5027,Accounting Fee DOP Service charge. Period to March2020 500. Year to March2021 950.,08/09/2021,0160327,"1,450.00",Revenue,Menzies LLP,76095,,
Chorley Borough Council,http://statistics.data.gov.uk/id/local-authority/30UE,Unapportionable Central OHeads,1009,Commercial & Property,General Repairs - Reactive,20004,Repairs Maintenance & Alts,5005,"Ref: Chorley Cemetery, Your Order No 12720, To fit a new section of 150mm S/W drainage connecting two inspection chambers",01/09/2021,0158244,650.00,Revenue,Michael Roe,78294,,
Chorley Borough Council,http://statistics.data.gov.uk/id/local-authority/30UE,Unapportionable Central OHeads,1009,Commercial & Property,General Repairs - Reactive,20004,Repairs Maintenance & Alts,5005,"Town Hall, Clear blocked drains",01/09/2021,0160160,280.00,Revenue,Michael Roe,78294,,
Chorley Borough Council,http://statistics.data.gov.uk/id/local-authority/30UE,Unapportionable Central OHeads,1009,Commercial & Property,General Repairs - Reactive,20004,Repairs Maintenance & Alts,5005,"Flat Iron Market, 31/07/2021 Attend site and clear blocked foul drain to the temporary toilet block",01/09/2021,0160203,280.00,Revenue,Michael Roe,78294,,
Chorley Borough Council,http://statistics.data.gov.uk/id/local-authority/30UE,Unapportionable Central OHeads,1009,Commercial & Property,General Repairs - Reactive,20004,Repairs Maintenance & Alts,5005,"Clear blocked drains behind Flame and Beauty - Market st, TF13432",08/09/2021,0160382,280.00,Revenue,Michael Roe,78294,,
Chorley Borough Council,http://statistics.data.gov.uk/id/local-authority/30UE,Capital,Capital,Communities,Main Contractor,03007,Capital Expenditure,Capital,Pathways works at Anderton primary School in accordance with quote dated 17/08/2021,15/09/2021,0160727,"3,700.00",Capital,Michael Roe,78294,,
Chorley Borough Council,http://statistics.data.gov.uk/id/local-authority/30UE,Business Support,1095,Commercial & Property,Promotional Expenses,40159,Miscellaneous Expenses,5034,Catering for Wednesday 15th September - 50 people @ 7.50,29/09/2021,0161018,375.00,Revenue,Mike Bryan,77185,,
Chorley Borough Council,http://statistics.data.gov.uk/id/local-authority/30UE,Collection Fund Revenue Accoun,,Policy & Governance,Transitional Protection,02033,Precepts & Collection Fund,Precept,trans protn contrib,02/09/2021,0158904,"3,838.00",Revenue,Ministry of Housing Communities & Local Government,16280,,
Chorley Borough Council,http://statistics.data.gov.uk/id/local-authority/30UE,Collection Fund Revenue Accoun,,Policy & Governance,NNDR Central Share,02034,Precepts & Collection Fund,Precept,central share BR,02/09/2021,0158904,"1,157,638.00",Revenue,Ministry of Housing Communities & Local Government,16280,,
Chorley Borough Council,http://statistics.data.gov.uk/id/local-authority/30UE,Collection Fund Revenue Accoun,,Policy & Governance,NNDR Central Share,02034,Precepts & Collection Fund,Precept,deficit coll,02/09/2021,0158904,"-527,077.00",Revenue,Ministry of Housing Communities & Local Government,16280,,
Chorley Borough Council,http://statistics.data.gov.uk/id/local-authority/30UE,Collection Fund Revenue Accoun,,Policy & Governance,Transitional Protection,02033,Precepts & Collection Fund,Precept,trans protn cont,02/09/2021,0159939,"3,839.00",Revenue,Ministry of Housing Communities & Local Government,16280,,
Chorley Borough Council,http://statistics.data.gov.uk/id/local-authority/30UE,Collection Fund Revenue Accoun,,Policy & Governance,NNDR Central Share,02034,Precepts & Collection Fund,Precept,central share br,02/09/2021,0159939,"1,157,637.00",Revenue,Ministry of Housing Communities & Local Government,16280,,
Chorley Borough Council,http://statistics.data.gov.uk/id/local-authority/30UE,Collection Fund Revenue Accoun,,Policy & Governance,NNDR Central Share,02034,Precepts & Collection Fund,Precept,deficit coll fund,02/09/2021,0159939,"-527,075.00",Revenue,Ministry of Housing Communities & Local Government,16280,,
Chorley Borough Council,http://statistics.data.gov.uk/id/local-authority/30UE,Capital,Capital,Communities,Grants,03002,Capital Expenditure,Capital,ADDRESS REDACTED,08/09/2021,0160471,"6,147.74",Capital,Mint Northwest Ltd,65607,,
Chorley Borough Council,http://statistics.data.gov.uk/id/local-authority/30UE,Capital,Capital,Communities,Grants,03002,Capital Expenditure,Capital,ADDRESS REDACTED,08/09/2021,0160472,"5,137.81",Capital,Mint Northwest Ltd,65607,,
Chorley Borough Council,http://statistics.data.gov.uk/id/local-authority/30UE,Capital,Capital,Communities,Grants,03002,Capital Expenditure,Capital,ADDRESS REDACTED,08/09/2021,0160477,"3,770.73",Capital,Mint Northwest Ltd,65607,,
Chorley Borough Council,http://statistics.data.gov.uk/id/local-authority/30UE,Capital,Capital,Communities,Grants,03002,Capital Expenditure,Capital,ADDRESS REDACTED,08/09/2021,0160479,"5,086.91",Capital,Mint Northwest Ltd,65607,,
Chorley Borough Council,http://statistics.data.gov.uk/id/local-authority/30UE,Capital,Capital,Communities,Grants,03002,Capital Expenditure,Capital,ADDRESS REDACTED,15/09/2021,0160559,"7,302.81",Capital,Mint Northwest Ltd,65607,,
Chorley Borough Council,http://statistics.data.gov.uk/id/local-authority/30UE,Capital,Capital,Communities,Grants,03002,Capital Expenditure,Capital,ADDRESS REDACTED,22/09/2021,0160719,"4,944.39",Capital,Mint Northwest Ltd,65607,,
Chorley Borough Council,http://statistics.data.gov.uk/id/local-authority/30UE,Capital,Capital,Communities,Grants,03002,Capital Expenditure,Capital,ADDRESS REDACTED,29/09/2021,0161060,"4,617.64",Capital,Mint Northwest Ltd,65607,,
Chorley Borough Council,http://statistics.data.gov.uk/id/local-authority/30UE,Planning Policy,1092,Commercial & Property,Legal Fees,40171,Miscellaneous Expenses,5034,Barrister fees for Land at South Lodge as per NAME REDACTED instruction,29/09/2021,0161117,390.00,Revenue,Miss Rebecca Cattermole,78532,,
Chorley Borough Council,http://statistics.data.gov.uk/id/local-authority/30UE,Capital,Capital,Commercial & Property,Other Capital Related Fees,03024,Capital Expenditure,Capital,"Covered Market Improvement works: Secondary Steel & Cladding: manufacture, supply, installation of sections together",29/09/2021,0161122,"5,000.00",Capital,Morgan Brothers Metalwork Solutions,76663,,
Chorley Borough Council,http://statistics.data.gov.uk/id/local-authority/30UE,Capital,Capital,Commercial & Property,Other Capital Related Fees,03024,Capital Expenditure,Capital,"Glazing Screen, manufacture, supply and installation of 2No frameless/sealed glazed screens to our pre-installed arch way.",29/09/2021,0161122,"2,620.00",Capital,Morgan Brothers Metalwork Solutions,76663,,
Chorley Borough Council,http://statistics.data.gov.uk/id/local-authority/30UE,Development Control,1091,Policy & Governance,Legal Fees,40171,Miscellaneous Expenses,5034,"Professional Fees of Ian Ponter, Advising in Conference, (with NAME REDACTED) - 2hrs prep and duration, 1hr ",29/09/2021,0160873,900.00,Revenue,Mr Ian Ponter,19968,,
Chorley Borough Council,http://statistics.data.gov.uk/id/local-authority/30UE,Development Control,1091,Policy & Governance,Legal Fees,40171,Miscellaneous Expenses,5034,"Professional Fees of Ian Ponter, Advising in Conference, (with NAME REDACTED) - 2hrs prep and duration, 1hr ",29/09/2021,0160961,"1,350.00",Revenue,Mr Ian Ponter,19968,,
Chorley Borough Council,http://statistics.data.gov.uk/id/local-authority/30UE,Tourism,1039,Policy & Governance,Miscellaneous Expenses,40200,Miscellaneous Expenses,5034,cfs prize money,29/09/2021,0161085,250.00,Revenue,National Begonia Society,76965,,
Chorley Borough Council,http://statistics.data.gov.uk/id/local-authority/30UE,Central Support Services,1009,Customer & Digital,Computer - Support Services,40111,Communication and Computing,5028,"NEC, Property Services Scanning, Indexed as individual documents with each document assigned the document type as per list",15/09/2021,0160287,600.00,Revenue,NEC Software Solutions UK Ltd,18285,,
Chorley Borough Council,http://statistics.data.gov.uk/id/local-authority/30UE,Central Support Services,1009,Customer & Digital,Computer - Support Services,40111,Communication and Computing,5028,"NEC, Property Services Scanning, Indexed as individual documents with each document assigned the document type as per list",15/09/2021,0160384,"7,011.60",Revenue,NEC Software Solutions UK Ltd,18285,,
Chorley Borough Council,http://statistics.data.gov.uk/id/local-authority/30UE,Central Support Services,1009,Commercial & Property,Professional Fees,40063,Services,5027,"Alker Lane BAPA: initial meetings, site attendance and discussions",29/09/2021,0160778,"1,245.60",Revenue,Network Rail Infrastructure Ltd,20759,,
Chorley Borough Council,http://statistics.data.gov.uk/id/local-authority/30UE,Business Support,1095,Commercial & Property,Security Service,40062,Services,5027,"Evening Site Security Services, Market Walk Shopping Centre, 5pm until midnight, 7 days. 1st April 2021 to End March 2022",29/09/2021,0160090,575.75,Revenue,New Concept Security NW Ltd T/A New Concept Goup,80488,,
Chorley Borough Council,http://statistics.data.gov.uk/id/local-authority/30UE,Business Support,1095,Commercial & Property,Security Service,40062,Services,5027,"Evening Site Security Services, Market Walk Shopping Centre, 5pm until midnight, 7 days. 1st April 2021 to End March 2022",08/09/2021,0160294,575.75,Revenue,New Concept Security NW Ltd T/A New Concept Goup,80488,,
Chorley Borough Council,http://statistics.data.gov.uk/id/local-authority/30UE,Capital,Capital,Commercial & Property,Other Capital Related Fees,03024,Capital Expenditure,Capital,Service requirements changed to 24 hour cover at Westway,08/09/2021,0160323,"2,016.00",Capital,New Concept Security NW Ltd T/A New Concept Goup,80488,,
Chorley Borough Council,http://statistics.data.gov.uk/id/local-authority/30UE,Capital,Capital,Commercial & Property,Other Capital Related Fees,03024,Capital Expenditure,Capital,Service requirements changed to 24 hour cover at Westway,29/09/2021,0160645,"1,704.00",Capital,New Concept Security NW Ltd T/A New Concept Goup,80488,,
Chorley Borough Council,http://statistics.data.gov.uk/id/local-authority/30UE,Business Support,1095,Commercial & Property,Security Service,40062,Services,5027,"Evening Site Security Services, Market Walk Shopping Centre, 5pm until midnight, 7 days. 1st April 2021 to End March 2022",29/09/2021,0160646,493.50,Revenue,New Concept Security NW Ltd T/A New Concept Goup,80488,,
Chorley Borough Council,http://statistics.data.gov.uk/id/local-authority/30UE,Business Support,1095,Commercial & Property,Security Service,40062,Services,5027,"Evening Site Security Services, Market Walk Shopping Centre, 5pm until midnight, 7 days. 1st April 2021 to End March 2022",29/09/2021,0160841,575.75,Revenue,New Concept Security NW Ltd T/A New Concept Goup,80488,,
Chorley Borough Council,http://statistics.data.gov.uk/id/local-authority/30UE,Central Support Services,1009,Customer & Digital,Signs:Provision & Maintenance,20065,Grounds Maintenance Costs,5013,"Waste & Recycled A2 Signage-2021, Quantity: 20, A3 Signage-2021, Quantity: 10, A2 Signage-2021 - STANDARD Quantity: 20",22/09/2021,0159355,852.95,Revenue,Normanton Screenprint,83123,,
Chorley Borough Council,http://statistics.data.gov.uk/id/local-authority/30UE,Democratic Represent and  Mgnt,1007,Policy & Governance,Use Of Transport - Mayoral Car,30015,Transport Recharges,5017,Continuing hire of VIN REDACTED,22/09/2021,0159349,480.20,Revenue,Northgate Vehicle Hire (NW) Ltd,17360,,
Chorley Borough Council,http://statistics.data.gov.uk/id/local-authority/30UE,Democratic Represent and  Mgnt,1007,Policy & Governance,Use Of Transport - Mayoral Car,30015,Transport Recharges,5017,Hire of VIN REDACTED,22/09/2021,0159712,378.25,Revenue,Northgate Vehicle Hire (NW) Ltd,17360,,
Chorley Borough Council,http://statistics.data.gov.uk/id/local-authority/30UE,Corporate Management,1008,Customer & Digital,Miscellaneous Expenses,40200,Miscellaneous Expenses,5034,Extension of hired vehicles during covid 19 period.,22/09/2021,0160566,594.16,Revenue,Northgate Vehicle Hire (NW) Ltd,17360,,
Chorley Borough Council,http://statistics.data.gov.uk/id/local-authority/30UE,Unapportionable Central OHeads,1009,Policy & Governance,Exhibitions & Special Events,40158,Miscellaneous Expenses,5034,"Portable toilets for Picnic in the Park. 3x standard WC, 1x disabled access with baby changing + delivery and collection.",15/09/2021,0160463,345.00,Revenue,Northwest Portables,74432,,
Chorley Borough Council,http://statistics.data.gov.uk/id/local-authority/30UE,Democratic Represent and  Mgnt,1007,Commercial & Property,Electricity,20013,Energy Costs,5006,HARPERS LANE RECREAT,08/09/2021,0160456,21.11,Revenue,Npower Commercial Gas,16814,,
Chorley Borough Council,http://statistics.data.gov.uk/id/local-authority/30UE,Service Management & Support,1009,Commercial & Property,Electricity,20013,Energy Costs,5006,GILLETT PLAYING FIEL,08/09/2021,0160456,7.45,Revenue,Npower Commercial Gas,16814,,
Chorley Borough Council,http://statistics.data.gov.uk/id/local-authority/30UE,Democratic Represent and  Mgnt,1007,Commercial & Property,Electricity,20013,Energy Costs,5006,KING GEORGE V PLAYING FIELDS,08/09/2021,0160456,9.18,Revenue,Npower Commercial Gas,16814,,
Chorley Borough Council,http://statistics.data.gov.uk/id/local-authority/30UE,Democratic Represent and  Mgnt,1007,Commercial & Property,Electricity,20013,Energy Costs,5006,ASTLEY HALL FARM HOU,08/09/2021,0160456,268.78,Revenue,Npower Commercial Gas,16814,,
Chorley Borough Council,http://statistics.data.gov.uk/id/local-authority/30UE,Democratic Represent and  Mgnt,1007,Commercial & Property,Electricity,20013,Energy Costs,5006,ASTLEY HALL,08/09/2021,0160456,635.26,Revenue,Npower Commercial Gas,16814,,
Chorley Borough Council,http://statistics.data.gov.uk/id/local-authority/30UE,Democratic Represent and  Mgnt,1007,Commercial & Property,Electricity,20013,Energy Costs,5006,EAVES GREEN COMMUNIT,08/09/2021,0160456,142.72,Revenue,Npower Commercial Gas,16814,,
Chorley Borough Council,http://statistics.data.gov.uk/id/local-authority/30UE,Community Development,1097,Commercial & Property,Electricity,20013,Energy Costs,5006,FIRST FLOOR INFORMAT,08/09/2021,0160456,39.77,Revenue,Npower Commercial Gas,16814,,
Chorley Borough Council,http://statistics.data.gov.uk/id/local-authority/30UE,Community Development,1097,Commercial & Property,Electricity,20013,Energy Costs,5006,TOP FLOOR INFORMATIO,08/09/2021,0160456,47.56,Revenue,Npower Commercial Gas,16814,,
Chorley Borough Council,http://statistics.data.gov.uk/id/local-authority/30UE,Community Development,1097,Commercial & Property,Electricity,20013,Energy Costs,5006,GROUND FLOOR INFORMA,08/09/2021,0160456,32.18,Revenue,Npower Commercial Gas,16814,,
Chorley Borough Council,http://statistics.data.gov.uk/id/local-authority/30UE,Democratic Represent and  Mgnt,1007,Commercial & Property,Electricity,20013,Energy Costs,5006,CORONATION RECREATIO,08/09/2021,0160456,21.97,Revenue,Npower Commercial Gas,16814,,
Chorley Borough Council,http://statistics.data.gov.uk/id/local-authority/30UE,Democratic Represent and  Mgnt,1007,Commercial & Property,Electricity,20013,Energy Costs,5006,ASTLEY VILLAGE COMMU,08/09/2021,0160456,72.71,Revenue,Npower Commercial Gas,16814,,
Chorley Borough Council,http://statistics.data.gov.uk/id/local-authority/30UE,Democratic Represent and  Mgnt,1007,Commercial & Property,Electricity,20013,Energy Costs,5006,ASTLEY HALL COACH HO,08/09/2021,0160456,"1,383.07",Revenue,Npower Commercial Gas,16814,,
Chorley Borough Council,http://statistics.data.gov.uk/id/local-authority/30UE,Democratic Represent and  Mgnt,1007,Commercial & Property,Electricity,20013,Energy Costs,5006,ASTLEY HALL COTTAGE,08/09/2021,0160456,59.92,Revenue,Npower Commercial Gas,16814,,
Chorley Borough Council,http://statistics.data.gov.uk/id/local-authority/30UE,Corporate Management,1008,Commercial & Property,Electricity,20013,Energy Costs,5006,CEMETERIES OFFICE,08/09/2021,0160456,37.21,Revenue,Npower Commercial Gas,16814,,
Chorley Borough Council,http://statistics.data.gov.uk/id/local-authority/30UE,Democratic Represent and  Mgnt,1007,Commercial & Property,Electricity,20013,Energy Costs,5006,ASTLEY PARK PAVILION/CHANGING,08/09/2021,0160456,144.01,Revenue,Npower Commercial Gas,16814,,
Chorley Borough Council,http://statistics.data.gov.uk/id/local-authority/30UE,Economic Development,1096,Commercial & Property,Electricity,20013,Energy Costs,5006,"MARKET COMPACTOR, RE",08/09/2021,0160456,13.06,Revenue,Npower Commercial Gas,16814,,
Chorley Borough Council,http://statistics.data.gov.uk/id/local-authority/30UE,Democratic Represent and  Mgnt,1007,Commercial & Property,Electricity,20013,Energy Costs,5006,KING GEORGE V CHANGING ROOMS,08/09/2021,0160456,22.26,Revenue,Npower Commercial Gas,16814,,
Chorley Borough Council,http://statistics.data.gov.uk/id/local-authority/30UE,Homelessness,1075,Commercial & Property,Electricity,20013,Energy Costs,5006,COTSWOLD HOUSE COMMUNAL ROOMS,08/09/2021,0160456,540.27,Revenue,Npower Commercial Gas,16814,,
Chorley Borough Council,http://statistics.data.gov.uk/id/local-authority/30UE,Homelessness,1075,Commercial & Property,Electricity,20013,Energy Costs,5006,COTSWOLD HOUSE TWO STORY WING,08/09/2021,0160456,235.30,Revenue,Npower Commercial Gas,16814,,
Chorley Borough Council,http://statistics.data.gov.uk/id/local-authority/30UE,Homelessness,1075,Commercial & Property,Electricity,20013,Energy Costs,5006,COTSWOLD HOUSE SINGL,08/09/2021,0160456,88.67,Revenue,Npower Commercial Gas,16814,,
Chorley Borough Council,http://statistics.data.gov.uk/id/local-authority/30UE,Business Support,1095,Commercial & Property,Electricity,20013,Energy Costs,5006,LANDLORDS COMMUNAL AREA,08/09/2021,0160456,604.05,Revenue,Npower Commercial Gas,16814,,
Chorley Borough Council,http://statistics.data.gov.uk/id/local-authority/30UE,Recreation & Sport,1037,Commercial & Property,Electricity,20013,Energy Costs,5006,BUTTERMERE COMMUNITY,08/09/2021,0160456,87.09,Revenue,Npower Commercial Gas,16814,,
Chorley Borough Council,http://statistics.data.gov.uk/id/local-authority/30UE,Recreation & Sport,1037,Commercial & Property,Electricity,20013,Energy Costs,5006,LANCASTER WAY COMMUN,08/09/2021,0160456,74.58,Revenue,Npower Commercial Gas,16814,,
Chorley Borough Council,http://statistics.data.gov.uk/id/local-authority/30UE,Parking Services,1066,Commercial & Property,Electricity,20013,Energy Costs,5006,CAR PARK UNION ST,08/09/2021,0160456,520.43,Revenue,Npower Commercial Gas,16814,,
Chorley Borough Council,http://statistics.data.gov.uk/id/local-authority/30UE,Parking Services,1066,Commercial & Property,Electricity,20013,Energy Costs,5006,ARLEY STREET CAR PAR,08/09/2021,0160456,7.45,Revenue,Npower Commercial Gas,16814,,
Chorley Borough Council,http://statistics.data.gov.uk/id/local-authority/30UE,Parking Services,1066,Commercial & Property,Electricity,20013,Energy Costs,5006,OAK HOUSE CAR PARK,08/09/2021,0160456,135.24,Revenue,Npower Commercial Gas,16814,,
Chorley Borough Council,http://statistics.data.gov.uk/id/local-authority/30UE,Parking Services,1066,Commercial & Property,Electricity,20013,Energy Costs,5006,FRIDAY STREET,08/09/2021,0160456,243.84,Revenue,Npower Commercial Gas,16814,,
Chorley Borough Council,http://statistics.data.gov.uk/id/local-authority/30UE,Central Support Services,1009,Commercial & Property,Electricity,20013,Energy Costs,5006,CCTV FEEDER PILLAR STEELEY LANE,08/09/2021,0160456,11.33,Revenue,Npower Commercial Gas,16814,,
Chorley Borough Council,http://statistics.data.gov.uk/id/local-authority/30UE,Central Support Services,1009,Commercial & Property,Electricity,20013,Energy Costs,5006,CCTV FEEDER PILLAR 2 MOSS LANE,08/09/2021,0160456,13.85,Revenue,Npower Commercial Gas,16814,,
Chorley Borough Council,http://statistics.data.gov.uk/id/local-authority/30UE,Democratic Represent and  Mgnt,1007,Commercial & Property,Electricity,20013,Energy Costs,5006,RANGLETTS RECREATION,08/09/2021,0160456,19.38,Revenue,Npower Commercial Gas,16814,,
Chorley Borough Council,http://statistics.data.gov.uk/id/local-authority/30UE,Central Support Services,1009,Commercial & Property,Electricity,20013,Energy Costs,5006,CCTV FEEDER PILLAR 2 MOSS LANE 1,08/09/2021,0160456,9.78,Revenue,Npower Commercial Gas,16814,,
Chorley Borough Council,http://statistics.data.gov.uk/id/local-authority/30UE,Business Support,1095,Commercial & Property,Electricity,20013,Energy Costs,5006,UNIT 2 MARKET WALK EXTENSION,08/09/2021,0160456,808.54,Revenue,Npower Commercial Gas,16814,,
Chorley Borough Council,http://statistics.data.gov.uk/id/local-authority/30UE,Central Support Services,1009,Commercial & Property,Electricity,20013,Energy Costs,5006,"CCTV SPENDMORE LANE, BAKER ST JNCT",08/09/2021,0160456,7.45,Revenue,Npower Commercial Gas,16814,,
Chorley Borough Council,http://statistics.data.gov.uk/id/local-authority/30UE,Democratic Represent and  Mgnt,1007,Commercial & Property,Electricity,20013,Energy Costs,5006,HARPERS LANE RECREAT,08/09/2021,0160457,16.69,Revenue,Npower Commercial Gas,16814,,
Chorley Borough Council,http://statistics.data.gov.uk/id/local-authority/30UE,Service Management & Support,1009,Commercial & Property,Electricity,20013,Energy Costs,5006,GILLETT PLAYING FIEL,08/09/2021,0160457,7.20,Revenue,Npower Commercial Gas,16814,,
Chorley Borough Council,http://statistics.data.gov.uk/id/local-authority/30UE,Democratic Represent and  Mgnt,1007,Commercial & Property,Electricity,20013,Energy Costs,5006,KING GEORGE V PLAYING FIELDS,08/09/2021,0160457,10.65,Revenue,Npower Commercial Gas,16814,,
Chorley Borough Council,http://statistics.data.gov.uk/id/local-authority/30UE,Democratic Represent and  Mgnt,1007,Commercial & Property,Electricity,20013,Energy Costs,5006,ASTLEY HALL FARM HOU,08/09/2021,0160457,229.75,Revenue,Npower Commercial Gas,16814,,
Chorley Borough Council,http://statistics.data.gov.uk/id/local-authority/30UE,Democratic Represent and  Mgnt,1007,Commercial & Property,Electricity,20013,Energy Costs,5006,ASTLEY HALL,08/09/2021,0160457,614.71,Revenue,Npower Commercial Gas,16814,,
Chorley Borough Council,http://statistics.data.gov.uk/id/local-authority/30UE,Democratic Represent and  Mgnt,1007,Commercial & Property,Electricity,20013,Energy Costs,5006,EAVES GREEN COMMUNIT,08/09/2021,0160457,126.80,Revenue,Npower Commercial Gas,16814,,
Chorley Borough Council,http://statistics.data.gov.uk/id/local-authority/30UE,Community Development,1097,Commercial & Property,Electricity,20013,Energy Costs,5006,FIRST FLOOR INFORMAT,08/09/2021,0160457,33.38,Revenue,Npower Commercial Gas,16814,,
Chorley Borough Council,http://statistics.data.gov.uk/id/local-authority/30UE,Community Development,1097,Commercial & Property,Electricity,20013,Energy Costs,5006,TOP FLOOR INFORMATIO,08/09/2021,0160457,20.28,Revenue,Npower Commercial Gas,16814,,
Chorley Borough Council,http://statistics.data.gov.uk/id/local-authority/30UE,Community Development,1097,Commercial & Property,Electricity,20013,Energy Costs,5006,GROUND FLOOR INFORMA,08/09/2021,0160457,33.22,Revenue,Npower Commercial Gas,16814,,
Chorley Borough Council,http://statistics.data.gov.uk/id/local-authority/30UE,Democratic Represent and  Mgnt,1007,Commercial & Property,Electricity,20013,Energy Costs,5006,CORONATION RECREATIO,08/09/2021,0160457,20.86,Revenue,Npower Commercial Gas,16814,,
Chorley Borough Council,http://statistics.data.gov.uk/id/local-authority/30UE,Democratic Represent and  Mgnt,1007,Commercial & Property,Electricity,20013,Energy Costs,5006,ASTLEY VILLAGE COMMU,08/09/2021,0160457,96.47,Revenue,Npower Commercial Gas,16814,,
Chorley Borough Council,http://statistics.data.gov.uk/id/local-authority/30UE,Democratic Represent and  Mgnt,1007,Commercial & Property,Electricity,20013,Energy Costs,5006,ASTLEY HALL COACH HO,08/09/2021,0160457,"1,156.17",Revenue,Npower Commercial Gas,16814,,
Chorley Borough Council,http://statistics.data.gov.uk/id/local-authority/30UE,Democratic Represent and  Mgnt,1007,Commercial & Property,Electricity,20013,Energy Costs,5006,ASTLEY HALL COTTAGE,08/09/2021,0160457,54.06,Revenue,Npower Commercial Gas,16814,,
Chorley Borough Council,http://statistics.data.gov.uk/id/local-authority/30UE,Corporate Management,1008,Commercial & Property,Electricity,20013,Energy Costs,5006,CEMETERIES OFFICE,08/09/2021,0160457,38.11,Revenue,Npower Commercial Gas,16814,,
Chorley Borough Council,http://statistics.data.gov.uk/id/local-authority/30UE,Democratic Represent and  Mgnt,1007,Commercial & Property,Electricity,20013,Energy Costs,5006,ASTLEY PARK PAVILION/CHANGING,08/09/2021,0160457,131.83,Revenue,Npower Commercial Gas,16814,,
Chorley Borough Council,http://statistics.data.gov.uk/id/local-authority/30UE,Economic Development,1096,Commercial & Property,Electricity,20013,Energy Costs,5006,"MARKET COMPACTOR, RE",08/09/2021,0160457,12.66,Revenue,Npower Commercial Gas,16814,,
Chorley Borough Council,http://statistics.data.gov.uk/id/local-authority/30UE,Democratic Represent and  Mgnt,1007,Commercial & Property,Electricity,20013,Energy Costs,5006,KING GEORGE V CHANGING ROOMS,08/09/2021,0160457,9.36,Revenue,Npower Commercial Gas,16814,,
Chorley Borough Council,http://statistics.data.gov.uk/id/local-authority/30UE,Homelessness,1075,Commercial & Property,Electricity,20013,Energy Costs,5006,COTSWOLD HOUSE COMMUNAL ROOMS,08/09/2021,0160457,522.75,Revenue,Npower Commercial Gas,16814,,
Chorley Borough Council,http://statistics.data.gov.uk/id/local-authority/30UE,Homelessness,1075,Commercial & Property,Electricity,20013,Energy Costs,5006,COTSWOLD HOUSE TWO STORY WING,08/09/2021,0160457,227.63,Revenue,Npower Commercial Gas,16814,,
Chorley Borough Council,http://statistics.data.gov.uk/id/local-authority/30UE,Homelessness,1075,Commercial & Property,Electricity,20013,Energy Costs,5006,COTSWOLD HOUSE SINGL,08/09/2021,0160457,65.99,Revenue,Npower Commercial Gas,16814,,
Chorley Borough Council,http://statistics.data.gov.uk/id/local-authority/30UE,Business Support,1095,Commercial & Property,Electricity,20013,Energy Costs,5006,LANDLORDS COMMUNAL AREA,08/09/2021,0160457,684.40,Revenue,Npower Commercial Gas,16814,,
Chorley Borough Council,http://statistics.data.gov.uk/id/local-authority/30UE,Recreation & Sport,1037,Commercial & Property,Electricity,20013,Energy Costs,5006,BUTTERMERE COMMUNITY,08/09/2021,0160457,84.68,Revenue,Npower Commercial Gas,16814,,
Chorley Borough Council,http://statistics.data.gov.uk/id/local-authority/30UE,Recreation & Sport,1037,Commercial & Property,Electricity,20013,Energy Costs,5006,LANCASTER WAY COMMUN,08/09/2021,0160457,70.45,Revenue,Npower Commercial Gas,16814,,
Chorley Borough Council,http://statistics.data.gov.uk/id/local-authority/30UE,Parking Services,1066,Commercial & Property,Electricity,20013,Energy Costs,5006,CAR PARK UNION ST,08/09/2021,0160457,455.49,Revenue,Npower Commercial Gas,16814,,
Chorley Borough Council,http://statistics.data.gov.uk/id/local-authority/30UE,Parking Services,1066,Commercial & Property,Electricity,20013,Energy Costs,5006,ARLEY STREET CAR PAR,08/09/2021,0160457,7.20,Revenue,Npower Commercial Gas,16814,,
Chorley Borough Council,http://statistics.data.gov.uk/id/local-authority/30UE,Parking Services,1066,Commercial & Property,Electricity,20013,Energy Costs,5006,OAK HOUSE CAR PARK,08/09/2021,0160457,274.16,Revenue,Npower Commercial Gas,16814,,
Chorley Borough Council,http://statistics.data.gov.uk/id/local-authority/30UE,Parking Services,1066,Commercial & Property,Electricity,20013,Energy Costs,5006,FRIDAY STREET,08/09/2021,0160457,225.98,Revenue,Npower Commercial Gas,16814,,
Chorley Borough Council,http://statistics.data.gov.uk/id/local-authority/30UE,Central Support Services,1009,Commercial & Property,Electricity,20013,Energy Costs,5006,CCTV FEEDER PILLAR STEELEY LANE,08/09/2021,0160457,10.79,Revenue,Npower Commercial Gas,16814,,
Chorley Borough Council,http://statistics.data.gov.uk/id/local-authority/30UE,Central Support Services,1009,Commercial & Property,Electricity,20013,Energy Costs,5006,CCTV FEEDER PILLAR 2 MOSS LANE,08/09/2021,0160457,13.01,Revenue,Npower Commercial Gas,16814,,
Chorley Borough Council,http://statistics.data.gov.uk/id/local-authority/30UE,Democratic Represent and  Mgnt,1007,Commercial & Property,Electricity,20013,Energy Costs,5006,RANGLETTS RECREATION,08/09/2021,0160457,15.25,Revenue,Npower Commercial Gas,16814,,
Chorley Borough Council,http://statistics.data.gov.uk/id/local-authority/30UE,Central Support Services,1009,Commercial & Property,Electricity,20013,Energy Costs,5006,CCTV FEEDER PILLAR 2 MOSS LANE 1,08/09/2021,0160457,9.38,Revenue,Npower Commercial Gas,16814,,
Chorley Borough Council,http://statistics.data.gov.uk/id/local-authority/30UE,Community Development,1097,Commercial & Property,Electricity,20013,Energy Costs,5006,UNIT 2 MARKET WALK EXTENSION,08/09/2021,0160457,792.45,Revenue,Npower Commercial Gas,16814,,
Chorley Borough Council,http://statistics.data.gov.uk/id/local-authority/30UE,Central Support Services,1009,Commercial & Property,Electricity,20013,Energy Costs,5006,"CCTV SPENDMORE LANE, BAKER ST JNCT",08/09/2021,0160457,7.20,Revenue,Npower Commercial Gas,16814,,
Chorley Borough Council,http://statistics.data.gov.uk/id/local-authority/30UE,Unapportionable Central OHeads,1009,Commercial & Property,Electricity,20013,Energy Costs,5006,"CIVIC OFFICES, UNION STREET",08/09/2021,0160459,"2,818.46",Revenue,Npower Commercial Gas,16814,,
Chorley Borough Council,http://statistics.data.gov.uk/id/local-authority/30UE,Unapportionable Central OHeads,1009,Commercial & Property,Electricity,20013,Energy Costs,5006,BENGAL STREET DEPOT,08/09/2021,0160459,637.98,Revenue,Npower Commercial Gas,16814,,
Chorley Borough Council,http://statistics.data.gov.uk/id/local-authority/30UE,Democratic Represent and  Mgnt,1007,Commercial & Property,Electricity,20013,Energy Costs,5006,CLAYTON BROOK VILLAGE HALL,08/09/2021,0160459,131.75,Revenue,Npower Commercial Gas,16814,,
Chorley Borough Council,http://statistics.data.gov.uk/id/local-authority/30UE,Business Support,1095,Commercial & Property,Electricity,20013,Energy Costs,5006,"LANDLORD, PRIMROSE GARDENS",08/09/2021,0160459,"1,110.34",Revenue,Npower Commercial Gas,16814,,
Chorley Borough Council,http://statistics.data.gov.uk/id/local-authority/30UE,Central Support Services,1009,Commercial & Property,Electricity,20013,Energy Costs,5006,WEST WAY SPORTS HUB,08/09/2021,0160459,32.91,Revenue,Npower Commercial Gas,16814,,
Chorley Borough Council,http://statistics.data.gov.uk/id/local-authority/30UE,Business Support,1095,Commercial & Property,Electricity,20013,Energy Costs,5006,"STRAWBERRY FIELDS, DIGITAL HUB",08/09/2021,0160459,"3,581.71",Revenue,Npower Commercial Gas,16814,,
Chorley Borough Council,http://statistics.data.gov.uk/id/local-authority/30UE,Business Support,1095,Commercial & Property,Electricity,20013,Energy Costs,5006,MARKET WALK EXTENSION,08/09/2021,0160459,"-6,858.21",Revenue,Npower Commercial Gas,16814,,
Chorley Borough Council,http://statistics.data.gov.uk/id/local-authority/30UE,Democratic Represent and  Mgnt,1007,Commercial & Property,Electricity,20013,Energy Costs,5006,ALL SEASONS LEISURE CENTRE,08/09/2021,0160459,"6,607.09",Revenue,Npower Commercial Gas,16814,,
Chorley Borough Council,http://statistics.data.gov.uk/id/local-authority/30UE,Democratic Represent and  Mgnt,1007,Commercial & Property,Electricity,20013,Energy Costs,5006,BRINSCALL BATHS,08/09/2021,0160459,"1,113.69",Revenue,Npower Commercial Gas,16814,,
Chorley Borough Council,http://statistics.data.gov.uk/id/local-authority/30UE,Democratic Represent and  Mgnt,1007,Commercial & Property,Electricity,20013,Energy Costs,5006,CLAYTON GREEN SPORTS CENTRE,08/09/2021,0160459,836.14,Revenue,Npower Commercial Gas,16814,,
Chorley Borough Council,http://statistics.data.gov.uk/id/local-authority/30UE,Central Support Services,1009,Commercial & Property,Electricity,20013,Energy Costs,5006,TOWN HALL,08/09/2021,0160460,"1,967.62",Revenue,Npower Commercial Gas,16814,,
Chorley Borough Council,http://statistics.data.gov.uk/id/local-authority/30UE,Parking Services,1066,Commercial & Property,External Contractors,50008,Private Contractors,5042,"Provision of off street car park enforcement, cash collection, cash counting facilities and third party bulk cash collections",08/09/2021,0160292,"5,073.11",Revenue,NSL Limited,67253,,
Chorley Borough Council,http://statistics.data.gov.uk/id/local-authority/30UE,Service Management & Support,1009,Customer & Digital,Grounds Maintenance Contractor,20043,Grounds Maintenance Costs,5013,Paint railings and gates at Ackhurst Lodge Entrance,01/09/2021,0160013,"1,000.00",Revenue,Nuchoice Limited,75454,,
Chorley Borough Council,http://statistics.data.gov.uk/id/local-authority/30UE,Service Management & Support,1009,Customer & Digital,Grounds Maintenance Contractor,20043,Grounds Maintenance Costs,5013,Paint the railings next to the Astley lake and the hand rails leading to the lake,01/09/2021,0160014,"1,220.00",Revenue,Nuchoice Limited,75454,,
Chorley Borough Council,http://statistics.data.gov.uk/id/local-authority/30UE,Service Management & Support,1009,Customer & Digital,Supplies-Grounds Maintenance,40025,"Equipment, Furniture & Materia",5023,Supply paint & paint street furniture in Astley Park,22/09/2021,0160817,650.00,Revenue,Nuchoice Limited,75454,,
Chorley Borough Council,http://statistics.data.gov.uk/id/local-authority/30UE,Planning Policy,1092,Communities,Operational Employees Salaries,10000,Direct Employee Expenses,5001,Temporary Agency Staff (Standard Hours) for work on the Central Lancashire Local Plan,01/09/2021,0159993,"1,639.59",Revenue,Park Avenue Recruitment Ltd,82305,,
Chorley Borough Council,http://statistics.data.gov.uk/id/local-authority/30UE,Planning Policy,1092,Communities,Operational Employees Salaries,10000,Direct Employee Expenses,5001,Temporary Agency Staff (Standard Hours) for work on the Central Lancashire Local Plan,01/09/2021,0160015,"1,604.76",Revenue,Park Avenue Recruitment Ltd,82305,,
Chorley Borough Council,http://statistics.data.gov.uk/id/local-authority/30UE,Planning Policy,1092,Communities,Operational Employees Salaries,10000,Direct Employee Expenses,5001,Temporary Agency Staff (Standard Hours) for work on the Central Lancashire Local Plan,01/09/2021,0160016,"1,644.50",Revenue,Park Avenue Recruitment Ltd,82305,,
Chorley Borough Council,http://statistics.data.gov.uk/id/local-authority/30UE,Planning Policy,1092,Communities,Operational Employees Salaries,10000,Direct Employee Expenses,5001,Temporary Agency Staff (Standard Hours) for work on the Central Lancashire Local Plan,01/09/2021,0160017,"1,621.50",Revenue,Park Avenue Recruitment Ltd,82305,,
Chorley Borough Council,http://statistics.data.gov.uk/id/local-authority/30UE,Planning Policy,1092,Communities,Operational Employees Salaries,10000,Direct Employee Expenses,5001,Temporary Agency Staff (Standard Hours) for work on the Central Lancashire Local Plan,01/09/2021,0160018,"1,651.63",Revenue,Park Avenue Recruitment Ltd,82305,,
Chorley Borough Council,http://statistics.data.gov.uk/id/local-authority/30UE,Planning Policy,1092,Communities,Operational Employees Salaries,10000,Direct Employee Expenses,5001,Temporary Agency Staff (Standard Hours) for work on the Central Lancashire Local Plan,08/09/2021,0160461,"1,437.50",Revenue,Park Avenue Recruitment Ltd,82305,,
Chorley Borough Council,http://statistics.data.gov.uk/id/local-authority/30UE,Planning Policy,1092,Communities,Operational Employees Salaries,10000,Direct Employee Expenses,5001,Temporary Agency Staff (Standard Hours) for work on the Central Lancashire Local Plan,15/09/2021,0160462,"3,079.66",Revenue,Park Avenue Recruitment Ltd,82305,,
Chorley Borough Council,http://statistics.data.gov.uk/id/local-authority/30UE,Planning Policy,1092,Communities,Operational Employees Salaries,10000,Direct Employee Expenses,5001,Temporary Agency Staff (Standard Hours) for work on the Central Lancashire Local Plan,15/09/2021,0160654,"1,371.70",Revenue,Park Avenue Recruitment Ltd,82305,,
Chorley Borough Council,http://statistics.data.gov.uk/id/local-authority/30UE,Planning Policy,1092,Communities,Operational Employees Salaries,10000,Direct Employee Expenses,5001,Temporary Agency Staff (Standard Hours) for work on the Central Lancashire Local Plan,15/09/2021,0160664,"1,138.50",Revenue,Park Avenue Recruitment Ltd,82305,,
Chorley Borough Council,http://statistics.data.gov.uk/id/local-authority/30UE,Planning Policy,1092,Communities,Operational Employees Salaries,10000,Direct Employee Expenses,5001,Temporary Agency Staff (Standard Hours) for work on the Central Lancashire Local Plan,29/09/2021,0160840,"1,115.50",Revenue,Park Avenue Recruitment Ltd,82305,,
Chorley Borough Council,http://statistics.data.gov.uk/id/local-authority/30UE,Planning Policy,1092,Communities,Operational Employees Salaries,10000,Direct Employee Expenses,5001,Temporary Agency Staff (Standard Hours) for work on the Central Lancashire Local Plan,29/09/2021,0160948,"1,547.14",Revenue,Park Avenue Recruitment Ltd,82305,,
Chorley Borough Council,http://statistics.data.gov.uk/id/local-authority/30UE,Capital,Capital,Communities,Other Capital Grants/Loans,03000,Capital Expenditure,Capital,"2nd phase of development project, Duxbury Park. 50% of value to be repaid through increased rent collection. Parkwood Leisure.",22/09/2021,0160947,"84,000.00",Capital,Parkwood Leisure,82926,,
Chorley Borough Council,http://statistics.data.gov.uk/id/local-authority/30UE,Economic Development,1096,Commercial & Property,Fixtures & Fittings - Purchase,20027,Fixtures and Fittings,5010,Please supply equipment as per quote ref: 2295363,01/09/2021,0159977,264.03,Revenue,Pattersons Holdings (Bristol),77537,,
Chorley Borough Council,http://statistics.data.gov.uk/id/local-authority/30UE,Business Support,1095,Commercial & Property,Cleaning Materials,40019,"Equipment, Furniture & Materia",5023,"blue roll X3, multi purpose cleaner X4, thick bleach X4, cranberry air freshener X12, refuse sacks black X2 boxes, Excel mop head",22/09/2021,0160020,319.96,Revenue,Pattersons Holdings (Bristol),77537,,
Chorley Borough Council,http://statistics.data.gov.uk/id/local-authority/30UE,Corporate Management,1008,Policy & Governance,Cleaning Materials,40019,"Equipment, Furniture & Materia",5023,"Stock Code: CP-02411, Jangro Blue Centrefeed 150m 2ply (Case of 6)",22/09/2021,0160387,77.70,Revenue,Pattersons Holdings (Bristol),77537,,
Chorley Borough Council,http://statistics.data.gov.uk/id/local-authority/30UE,Corporate Management,1008,Policy & Governance,Cleaning Materials,40019,"Equipment, Furniture & Materia",5023,"BC015-5 Thick Bleach, 2.33 per 5 litres, QTY 4 x 5litres, Total 9.32",22/09/2021,0160387,9.32,Revenue,Pattersons Holdings (Bristol),77537,,
Chorley Borough Council,http://statistics.data.gov.uk/id/local-authority/30UE,Corporate Management,1008,Policy & Governance,Cleaning Materials,40019,"Equipment, Furniture & Materia",5023,"CM180 Black Bin Liners, 12.57 per box, QTY 10 boxes, Total 125.70",22/09/2021,0160387,125.70,Revenue,Pattersons Holdings (Bristol),77537,,
Chorley Borough Council,http://statistics.data.gov.uk/id/local-authority/30UE,Corporate Management,1008,Policy & Governance,Cleaning Materials,40019,"Equipment, Furniture & Materia",5023,"Stock Code: TEMP015, DISPOSABLE FACE MASK TYPE IIR 3 PLY (50) , 11.11 per pack, QTY 10 packs, Total 111.10",22/09/2021,0160387,32.00,Revenue,Pattersons Holdings (Bristol),77537,,
Chorley Borough Council,http://statistics.data.gov.uk/id/local-authority/30UE,Corporate Management,1008,Policy & Governance,Cleaning Materials,40019,"Equipment, Furniture & Materia",5023,"Stock Code: HN202, Jangro White Plastic Toilet Brush & Holder, 2.37 each, QTY 10, Total 23.70",22/09/2021,0160387,21.33,Revenue,Pattersons Holdings (Bristol),77537,,
Chorley Borough Council,http://statistics.data.gov.uk/id/local-authority/30UE,Unapportionable Central OHeads,1009,Policy & Governance,Exhibitions & Special Events,40158,Miscellaneous Expenses,5034,Photography at events throughout 2021,08/09/2021,0160391,250.00,Revenue,Paul Heyes Photographer,20909,,
Chorley Borough Council,http://statistics.data.gov.uk/id/local-authority/30UE,Unapportionable Central OHeads,1009,Commercial & Property,General Repairs - Reactive,20004,Repairs Maintenance & Alts,5005,"Town Hall, Clock Tower Lights, PC based controller allowing iPad access within the computer network. scheduled colour changes",22/09/2021,0160392,"1,015.00",Revenue,Paul K Sound & Vision,16607,,
Chorley Borough Council,http://statistics.data.gov.uk/id/local-authority/30UE,Tourism,1039,Policy & Governance,Exhibitions & Special Events,40158,Miscellaneous Expenses,5034,DJ Set,15/09/2021,0160651,300.00,Revenue,Paul K Sound & Vision,16607,,
Chorley Borough Council,http://statistics.data.gov.uk/id/local-authority/30UE,Unapportionable Central OHeads,1009,Policy & Governance,Exhibitions & Special Events,40158,Miscellaneous Expenses,5034,"Staging, PA and Lighting for Picnic",15/09/2021,0160652,525.00,Revenue,Paul K Sound & Vision,16607,,
Chorley Borough Council,http://statistics.data.gov.uk/id/local-authority/30UE,Unapportionable Central OHeads,1009,Commercial & Property,Planned Maintenance,20006,Repairs Maintenance & Alts,5005,"Town Hall, Fire extinguisher checks",22/09/2021,0160806,482.00,Revenue,Pennine Fire & Safety Limited,69643,,
Chorley Borough Council,http://statistics.data.gov.uk/id/local-authority/30UE,Unapportionable Central OHeads,1009,Policy & Governance,HR Approved Occ Health Fees,15201,Indirect Employee Expenses,5002,Flu Vaccines for staff,22/09/2021,0160775,"4,300.00",Revenue,People Asset Management Limited,76487,,
Chorley Borough Council,http://statistics.data.gov.uk/id/local-authority/30UE,Other Short Term Creditors,,Policy & Governance,General Balances,00100,Balance Sheet,Balance,peoples pension - june 21,02/09/2021,0158901,"2,022.49",Revenue,Peoples Pension B&CE,81827,,
Chorley Borough Council,http://statistics.data.gov.uk/id/local-authority/30UE,Corporate Management,1008,Customer & Digital,Printing,40043,"Printing, Stationery & General",5026,Garden waste collection subscription permits 2021-22,01/09/2021,0159954,779.87,Revenue,Permiserv Ltd,77202,,
Chorley Borough Council,http://statistics.data.gov.uk/id/local-authority/30UE,Corporate Management,1008,Customer & Digital,Printing,40043,"Printing, Stationery & General",5026,Garden waste collection subscription permits 2021/22 (Aug-Mar),22/09/2021,0160589,384.93,Revenue,Permiserv Ltd,77202,,
Chorley Borough Council,http://statistics.data.gov.uk/id/local-authority/30UE,Democratic Represent and  Mgnt,1007,Policy & Governance,Exhibitions & Special Events,40158,Miscellaneous Expenses,5034,50x limited edition pen sets for Astley Hall shop @ 13.85 each. 692.50 total,15/09/2021,0160393,692.50,Revenue,Pheonix Woodcraft,81323,,
Chorley Borough Council,http://statistics.data.gov.uk/id/local-authority/30UE,Central Support Services,1009,Customer & Digital,IT Software - Annual Licences,40101,Communication and Computing,5028,"350 x Phone System Shared Server All Language Subscription Licence, 20 x Audio Conferencing Shared Server Subscription",22/09/2021,0159724,"17,901.30",Revenue,Phoenix Software Ltd,17046,,
Chorley Borough Council,http://statistics.data.gov.uk/id/local-authority/30UE,Service Management & Support,1009,Customer & Digital,Diesel/Derv,30007,Direct Transport Costs,5016,2000 Litres Derv - Deliver to Bengal Street Depot 19.08.2021,22/09/2021,0160086,"2,134.00",Revenue,Pilkington Oils,18075,,
Chorley Borough Council,http://statistics.data.gov.uk/id/local-authority/30UE,Service Management & Support,1009,Customer & Digital,Diesel/Derv,30007,Direct Transport Costs,5016,"as procured via the chest, Delivery of 6500 litres of road diesel, Delivery of 3800 litres of gas oil",22/09/2021,0160280,"6,695.00",Revenue,Pilkington Oils,18075,,
Chorley Borough Council,http://statistics.data.gov.uk/id/local-authority/30UE,Service Management & Support,1009,Customer & Digital,Diesel/Derv,30007,Direct Transport Costs,5016,"as procured via the chest, Delivery of 6500 litres of road diesel, Delivery of 3800 litres of gas oil",22/09/2021,0160394,"2,166.00",Revenue,Pilkington Oils,18075,,
Chorley Borough Council,http://statistics.data.gov.uk/id/local-authority/30UE,Service Management & Support,1009,Customer & Digital,Supplies-Grounds Maintenance,40025,"Equipment, Furniture & Materia",5023,"Product code- 46205- Quantity x 1, Hydraulic Oil 46 205 litres",22/09/2021,0160809,360.80,Revenue,Pilkington Oils,18075,,
Chorley Borough Council,http://statistics.data.gov.uk/id/local-authority/30UE,Precepts and Collection Fund,Precepts,Policy & Governance,LPA Precept,02010,Precepts & Collection Fund,Precept,pcc council tax precepts,02/09/2021,0159341,"849,159.00",Revenue,Police & Crime Commissioner,17438,,
Chorley Borough Council,http://statistics.data.gov.uk/id/local-authority/30UE,Unapportionable Central OHeads,1009,Commercial & Property,General Repairs - Reactive,20004,Repairs Maintenance & Alts,5005,"All Seasons Leisure Centre, Re: MP cloudy (11/8/21 - SR4110), 2L Algae Eliminator x 12, 25kg Sodium Chloride (granular salt)",29/09/2021,0160874,285.00,Revenue,Pool Technical Services Ltd,81000,,
Chorley Borough Council,http://statistics.data.gov.uk/id/local-authority/30UE,Tourism,1039,Policy & Governance,Supplies-Grounds Maintenance,40025,"Equipment, Furniture & Materia",5023,"1 Unit(s) New print applied over the previous A0 boards, Light block adhesive, matte laminate, A1 size, 6mm correx, no drill holes",08/09/2021,0159337,287.86,Revenue,Poppy Signs Ltd,21898,,
Chorley Borough Council,http://statistics.data.gov.uk/id/local-authority/30UE,Tourism,1039,Policy & Governance,Supplies-Grounds Maintenance,40025,"Equipment, Furniture & Materia",5023,"1 Unit(s) Batch of 98 signs; 16 pictures - no drill holes 82 yellow direction signs, with drill holes supplied with cable ties.",08/09/2021,0159339,874.97,Revenue,Poppy Signs Ltd,21898,,
Chorley Borough Council,http://statistics.data.gov.uk/id/local-authority/30UE,Tourism,1039,Policy & Governance,Supplies-Grounds Maintenance,40025,"Equipment, Furniture & Materia",5023,"1 Unit(s) Recycling/waste boards - DOUBLE SIDED, A2 Correx signs, single-sided direct UV print to 6mm fluted board",08/09/2021,0159496,529.36,Revenue,Poppy Signs Ltd,21898,,
Chorley Borough Council,http://statistics.data.gov.uk/id/local-authority/30UE,Tourism,1039,Policy & Governance,Supplies-Grounds Maintenance,40025,"Equipment, Furniture & Materia",5023,"1 Unit(s) Design, manufacture and supply only: UV laminated digitally printed and contour-cut. Delivery to Bengal Street Depot.",08/09/2021,0159581,307.36,Revenue,Poppy Signs Ltd,21898,,
Chorley Borough Council,http://statistics.data.gov.uk/id/local-authority/30UE,Capital,Capital,Communities,Other Materials,03017,Capital Expenditure,Capital,Signage for Westway Sports Hub in accordance with Quotation REF15822/1,15/09/2021,0160141,"2,687.40",Capital,Poppy Signs Ltd,21898,,
Chorley Borough Council,http://statistics.data.gov.uk/id/local-authority/30UE,Unapportionable Central OHeads,1009,Commercial & Property,General Repairs - Reactive,20004,Repairs Maintenance & Alts,5005,"Eaves Green Community Centre Signage, 1 Unit(s) Front Elevation above entrance. Manufacture, supply and install",01/09/2021,0160260,588.22,Revenue,Poppy Signs Ltd,21898,,
Chorley Borough Council,http://statistics.data.gov.uk/id/local-authority/30UE,Democratic Represent and  Mgnt,1007,Policy & Governance,Tools & Equipment - Purchase,40003,"Equipment, Furniture & Materia",5023,"1 Unit(s) Batch of 50 pedestrian barrier covers, fit and fixings identical to previous, Single artwork, printed both sides",29/09/2021,0160955,"3,560.20",Revenue,Poppy Signs Ltd,21898,,
Chorley Borough Council,http://statistics.data.gov.uk/id/local-authority/30UE,Corporate Management,1008,Policy & Governance,Corp Training Organisational Development,17006,Indirect Employee Expenses,5002,"45 min, managers, �Successfully Managing a Hybrid Team�, 30 min, employees, �Tips & Techniques to Adapt to Hybrid Working�",08/09/2021,0160330,600.00,Revenue,Potential Unearthed,22243,,
Chorley Borough Council,http://statistics.data.gov.uk/id/local-authority/30UE,Corporate Management,1008,Customer & Digital,HR Recruitment - Advertising,15300,Indirect Employee Expenses,5002,Licensing Enforcement Vacancy Advertisement  to run 17.09.2021 - 08.10.2021,22/09/2021,0160908,498.00,Revenue,Prepared Media Ltd,78122,,
Chorley Borough Council,http://statistics.data.gov.uk/id/local-authority/30UE,Unapportionable Central OHeads,1009,Policy & Governance,Moving Furniture & Equipment,40015,"Equipment, Furniture & Materia",5023,Up lift of Council Chamber carpets ahead of site survey and works.,08/09/2021,0160084,250.00,Revenue,Preston Road Carpets Ltd,56397,,
Chorley Borough Council,http://statistics.data.gov.uk/id/local-authority/30UE,Central Support Services,1009,Commercial & Property,Professional Fees,40063,Services,5027,Ecology advice relating to the connection of foul drainage on the Primrose Holdings site,22/09/2021,0158935,"1,000.00",Revenue,Primrose Holdings 1995 Ltd,17786,,
Chorley Borough Council,http://statistics.data.gov.uk/id/local-authority/30UE,Elections,1012,Policy & Governance,Postages,40082,Communication and Computing,5028,ITR mailings,22/09/2021,0160844,303.31,Revenue,Print Image Facilities LLP,57870,,
Chorley Borough Council,http://statistics.data.gov.uk/id/local-authority/30UE,Elections,1012,Policy & Governance,Postages,40082,Communication and Computing,5028,CF canvass form mailings,22/09/2021,0160845,"1,089.67",Revenue,Print Image Facilities LLP,57870,,
Chorley Borough Council,http://statistics.data.gov.uk/id/local-authority/30UE,Elections,1012,Policy & Governance,Printing,40043,"Printing, Stationery & General",5026,Canvass Reform mailings - laser overlay and enclose ccb,22/09/2021,0161016,"2,042.39",Revenue,Print Image Network,21171,,
Chorley Borough Council,http://statistics.data.gov.uk/id/local-authority/30UE,Other Short Term Creditors,,Policy & Governance,General Balances,00100,Balance Sheet,Balance,Salary Deductions,29/09/2021,0161153,"3,774.00",Revenue,PRUDENTIAL,18178,,
Chorley Borough Council,http://statistics.data.gov.uk/id/local-authority/30UE,Interest Payable on Debt,1020,Policy & Governance,Interest Payable,09009,Interest Payments,5067,Interest LN 508381,02/09/2021,0158914,"35,498.57",Revenue,Public Works Loans Board,21480,,
Chorley Borough Council,http://statistics.data.gov.uk/id/local-authority/30UE,Interest Payable on Debt,1020,Policy & Governance,Interest Payable,09009,Interest Payments,5067,Interest LN 508382,02/09/2021,0158914,"36,765.00",Revenue,Public Works Loans Board,21480,,
Chorley Borough Council,http://statistics.data.gov.uk/id/local-authority/30UE,Interest Payable on Debt,1020,Policy & Governance,Interest Payable,09009,Interest Payments,5067,Interest LN 506766,02/09/2021,0158915,"17,285.71",Revenue,Public Works Loans Board,21480,,
Chorley Borough Council,http://statistics.data.gov.uk/id/local-authority/30UE,Interest Payable on Debt,1020,Policy & Governance,Interest Payable,09009,Interest Payments,5067,Interest LN 506764,02/09/2021,0158915,"28,875.00",Revenue,Public Works Loans Board,21480,,
Chorley Borough Council,http://statistics.data.gov.uk/id/local-authority/30UE,Central Support Services,1009,Commercial & Property,Miscellaneous Expenses,40200,Miscellaneous Expenses,5034,"Materials for Adlington monument project, Two SD Archiled RGB 200 Floods and one manual Controller",08/09/2021,0160307,"2,120.00",Revenue,R A Ryan,82222,,
Chorley Borough Council,http://statistics.data.gov.uk/id/local-authority/30UE,Unapportionable Central OHeads,1009,Policy & Governance,HR Approved Occ Health Fees,15201,Indirect Employee Expenses,5002,Counselling sessions for staff in June/July 2021,22/09/2021,0159598,270.00,Revenue,Rachel Dickinson,78411,,
Chorley Borough Council,http://statistics.data.gov.uk/id/local-authority/30UE,Democratic Represent and  Mgnt,1007,Policy & Governance,Miscellaneous Expenses,40200,Miscellaneous Expenses,5034,Meet and Greet with Peter Rabbit (TV) for picnic in the park on Sunday 15 August,08/09/2021,0160279,"2,195.00",Revenue,Rainbow Productions Ltd,21858,,
Chorley Borough Council,http://statistics.data.gov.uk/id/local-authority/30UE,Capital,Capital,Commercial & Property,Main Contractor,03007,Capital Expenditure,Capital,Construction of Whittle GP surgery,01/09/2021,0159739,"292,070.92",Capital,Rayner Rowen Construction Limited,80915,,
Chorley Borough Council,http://statistics.data.gov.uk/id/local-authority/30UE,Capital,Capital,Commercial & Property,Main Contractor,03007,Capital Expenditure,Capital,Construction of Whittle GP surgery,08/09/2021,0160395,"283,215.00",Capital,Rayner Rowen Construction Limited,80915,,
Chorley Borough Council,http://statistics.data.gov.uk/id/local-authority/30UE,Tourism,1039,Policy & Governance,Publicity - Advertising,40157,Miscellaneous Expenses,5034,"Chorley Flower Show Advertising, Southport Visiter, Ormskirk & Skelmersdale Advertiser, Accrington Observer",15/09/2021,0159597,"1,800.00",Revenue,Reach Publishing Services LTD,20559,,
Chorley Borough Council,http://statistics.data.gov.uk/id/local-authority/30UE,Democratic Represent and  Mgnt,1007,Policy & Governance,Arts Development Initiatives,40187,Miscellaneous Expenses,5034,Delivery of ACE project workshops,22/09/2021,0160815,800.00,Revenue,Rebecca Chesney,78286,,
Chorley Borough Council,http://statistics.data.gov.uk/id/local-authority/30UE,Business Support,1095,Commercial & Property,General Repairs - Reactive,20004,Repairs Maintenance & Alts,5005,"8 Service Inspections for Mice, Rats  including Call Outs, 2 Service Inspections for Pigeon Trapping",29/09/2021,0161113,470.20,Revenue,Rentokil,76639,,
Chorley Borough Council,http://statistics.data.gov.uk/id/local-authority/30UE,Local Tax Collection,1010,Chief Executive,Other Contributions,40145,Grants and Subscriptions,5031,CBC Contribution towards the Lancashire Emergency Radio Network 2021/22 - 250,08/09/2021,0159595,250.00,Revenue,Ribble Valley Borough Council,77109,,
Chorley Borough Council,http://statistics.data.gov.uk/id/local-authority/30UE,Non Domestic Rates Redistribut,,Policy & Governance,Tariff to Business Rates Pool,49002,Expenditure not in NCOS,,lanc bus rates pool,02/09/2021,0158899,"585,289.00",Revenue,Ribble Valley Borough Council DIRECT DEBIT ONLY,21100,,
Chorley Borough Council,http://statistics.data.gov.uk/id/local-authority/30UE,Non Domestic Rates Redistribut,,Policy & Governance,Tariff to Business Rates Pool,49002,Expenditure not in NCOS,,lancs B-Rates pool,02/09/2021,0159936,"585,289.00",Revenue,Ribble Valley Borough Council DIRECT DEBIT ONLY,21100,,
Chorley Borough Council,http://statistics.data.gov.uk/id/local-authority/30UE,Central Support Services,1009,Commercial & Property,Consultants` Fees,40077,Services,5027,Provision of Project Management & Quantity Surveying Services on the Tatton Regeneration scheme to RIBA Stage 7,15/09/2021,0160590,"8,535.00",Revenue,Rider Levett Bucknall,67527,,
Chorley Borough Council,http://statistics.data.gov.uk/id/local-authority/30UE,Central Support Services,1009,Commercial & Property,Professional Fees,40063,Services,5027,Alker Lane PM / QS,22/09/2021,0160730,"3,575.00",Revenue,Rider Levett Bucknall,67527,,
Chorley Borough Council,http://statistics.data.gov.uk/id/local-authority/30UE,Service Management & Support,1009,Customer & Digital,Supplies-Grounds Maintenance,40025,"Equipment, Furniture & Materia",5023,"Quantity x 40, Trustee Amenity 5litre @ 27.00 each",15/09/2021,0160657,"1,248.00",Revenue,Rigby Taylor Ltd,16299,,
Chorley Borough Council,http://statistics.data.gov.uk/id/local-authority/30UE,Service Management & Support,1009,Customer & Digital,Supplies-Grounds Maintenance,40025,"Equipment, Furniture & Materia",5023,"Quantity x 20, Impact Standard Marking Paint 10ltr @ 27.90 each",29/09/2021,0160774,558.00,Revenue,Rigby Taylor Ltd,16299,,
Chorley Borough Council,http://statistics.data.gov.uk/id/local-authority/30UE,Central Support Services,1009,Policy & Governance,Processional Routes,40177,Miscellaneous Expenses,5034,Traffic management services for the Mayor`s Civic Sunday Parade in Chorley town centre on Sunday 12th September 2021,22/09/2021,0161012,565.00,Revenue,Road Safety Services Ltd,69457,,
Chorley Borough Council,http://statistics.data.gov.uk/id/local-authority/30UE,Capital,Capital,Commercial & Property,Main Contractor,03007,Capital Expenditure,Capital,"Delivery of the Tatton regeneration scheme, All in accordance with the executed NEC Engineering & Construct Contract",15/09/2021,0160438,"918,684.33",Capital,Robertson CE Limited,81176,,
Chorley Borough Council,http://statistics.data.gov.uk/id/local-authority/30UE,Capital,Capital,Communities,Consultants Fees,03025,Capital Expenditure,Capital,Westway Playing Fields - Stage 5 (construction),08/09/2021,0160309,"2,797.97",Capital,Robinson Low Francis LLP,77155,,
Chorley Borough Council,http://statistics.data.gov.uk/id/local-authority/30UE,Tourism,1039,Policy & Governance,Miscellaneous Expenses,40200,Miscellaneous Expenses,5034,cfs prize money,22/09/2021,0161054,550.00,Revenue,Roualeyn Fuchsias,76233,,
Chorley Borough Council,http://statistics.data.gov.uk/id/local-authority/30UE,Unapportionable Central OHeads,1009,Customer & Digital,Professional Fees,14011,Direct Employee Expenses,5001,Anite redirection (PO BOX 13),22/09/2021,0161066,"2,910.00",Revenue,Royal Mail Group Plc,17522,,
Chorley Borough Council,http://statistics.data.gov.uk/id/local-authority/30UE,Capital,Capital,Policy & Governance,Main Contractor,03007,Capital Expenditure,Capital,purchase of ADDRESS REDACTED,02/09/2021,0158692,"160,000.00",Capital,NAMES REDACTED,83126,,
Chorley Borough Council,http://statistics.data.gov.uk/id/local-authority/30UE,Central Support Services,1009,Communities,Miscellaneous Expenses,40200,Miscellaneous Expenses,5034,Deep Clean to the property at ADDRESS REDACTED - PIVOT Case and PCC Funding,22/09/2021,0160573,325.00,Revenue,SCS Facility Services Ltd,80797,,
Chorley Borough Council,http://statistics.data.gov.uk/id/local-authority/30UE,Central Support Services,1009,Communities,Miscellaneous Expenses,40200,Miscellaneous Expenses,5034,PIVOT Case - ADDRESS REDACTED. Deep Clean on property,22/09/2021,0160808,568.31,Revenue,SCS Facility Services Ltd,80797,,
Chorley Borough Council,http://statistics.data.gov.uk/id/local-authority/30UE,Business Support,1095,Commercial & Property,External Contractor,40198,Miscellaneous Expenses,5034,Concierge services April 2021 to March 2022,29/09/2021,0160773,"7,020.41",Revenue,Sector Security Services,19269,,
Chorley Borough Council,http://statistics.data.gov.uk/id/local-authority/30UE,Unapportionable Central OHeads,1009,Commercial & Property,General Repairs - Reactive,20004,Repairs Maintenance & Alts,5005,ADDRESS REDACTED sprinkler issues - includes an aborted visit call out,08/09/2021,0160343,349.00,Revenue,Sentinel Fire Services,81153,,
Chorley Borough Council,http://statistics.data.gov.uk/id/local-authority/30UE,Central Support Services,1009,Communities,Miscellaneous Expenses,40200,Miscellaneous Expenses,5034,"302TJA100 Chubb Zeta Safe x1 874.38, WOR2989 Plastic Shelving x 1 45.70",22/09/2021,0160852,824.71,Revenue,Seton Ltd,16674,,
Chorley Borough Council,http://statistics.data.gov.uk/id/local-authority/30UE,Business Support,1095,Commercial & Property,Grants To Other Organisations,40127,Grants and Subscriptions,5031,grant,15/09/2021,0160470,"6,000.00",Revenue,Smart Techs (NW) Ltd,81629,,
Chorley Borough Council,http://statistics.data.gov.uk/id/local-authority/30UE,Business Support,1095,Commercial & Property,Window Cleaning,20034,Cleaning and Domestic Supplies,5012,Quarterly window cleaning at Strawberry Fields Digital Office Hub,22/09/2021,0160938,374.00,Revenue,Sparkle Window Cleaning (Michael Jennings),77989,,
Chorley Borough Council,http://statistics.data.gov.uk/id/local-authority/30UE,Business Support,1095,Commercial & Property,Window Cleaning,20034,Cleaning and Domestic Supplies,5012,12 months window cleaning,29/09/2021,0160940,477.95,Revenue,Sparkle Window Cleaning (Michael Jennings),77989,,
Chorley Borough Council,http://statistics.data.gov.uk/id/local-authority/30UE,Tourism,1039,Policy & Governance,External Contractor,40198,Miscellaneous Expenses,5034,Chorley Flower Show Overnight Security,08/09/2021,0160059,"5,931.25",Revenue,Spencer Sutcliffe Security & Training Ltd,83547,,
Chorley Borough Council,http://statistics.data.gov.uk/id/local-authority/30UE,Corporate Management,1008,Policy & Governance,Miscellaneous Expenses,40200,Miscellaneous Expenses,5034,Flower Show Extra Covid Security,01/09/2021,0160146,"2,625.00",Revenue,Spencer Sutcliffe Security & Training Ltd,83547,,
Chorley Borough Council,http://statistics.data.gov.uk/id/local-authority/30UE,Control Accounts,Control,Policy & Governance,General Balances,00100,Balance Sheet,Balance,Monthly Deductions from Salary,29/09/2021,0161154,373.24,Revenue,St Catherines Hospice Promotions,72375,,
Chorley Borough Council,http://statistics.data.gov.uk/id/local-authority/30UE,Capital,Capital,Communities,Grants,03002,Capital Expenditure,Capital,ADDRESS REDACTED,08/09/2021,0160468,"3,071.00",Capital,Stannah Lift Services Ltd,80943,,
Chorley Borough Council,http://statistics.data.gov.uk/id/local-authority/30UE,Capital,Capital,Communities,Grants,03002,Capital Expenditure,Capital,ADDRESS REDACTED,15/09/2021,0160560,"2,904.00",Capital,Stannah Lift Services Ltd,80943,,
Chorley Borough Council,http://statistics.data.gov.uk/id/local-authority/30UE,Capital,Capital,Communities,Grants,03002,Capital Expenditure,Capital,ADDRESS REDACTED,15/09/2021,0160561,"6,146.00",Capital,Stannah Lift Services Ltd,80943,,
Chorley Borough Council,http://statistics.data.gov.uk/id/local-authority/30UE,Central Support Services,1009,Commercial & Property,Professional Fees,40063,Services,5027,Building Consultancy � M&E Design & Consultancy,15/09/2021,0159590,"1,214.69",Revenue,Steven A Hunt & Associates Ltd,80511,,
Chorley Borough Council,http://statistics.data.gov.uk/id/local-authority/30UE,Central Support Services,1009,Commercial & Property,Professional Fees,40063,Services,5027,Building Consultancy � M&E Design & Consultancy,08/09/2021,0160298,"1,214.69",Revenue,Steven A Hunt & Associates Ltd,80511,,
Chorley Borough Council,http://statistics.data.gov.uk/id/local-authority/30UE,Parking Services,1066,Commercial & Property,Consultants` Fees,40077,Services,5027,"Provision of Public Realm & Highway Design, Engineering services, April 2021 � January 2022",08/09/2021,0160306,"3,511.35",Revenue,Street Civil Engineering Limited,76750,,
Chorley Borough Council,http://statistics.data.gov.uk/id/local-authority/30UE,Unapportionable Central OHeads,1009,Commercial & Property,General Repairs - Reactive,20004,Repairs Maintenance & Alts,5005,"Denham Quarry urgent fencing repairs, Supply and fit 40 fence posts and refix some existing ones",01/09/2021,0160202,"1,063.85",Revenue,Stringfellow Bldg Cntrctrs Ltd,17893,,
Chorley Borough Council,http://statistics.data.gov.uk/id/local-authority/30UE,Unapportionable Central OHeads,1009,Commercial & Property,General Repairs - Reactive,20004,Repairs Maintenance & Alts,5005,"Astley Village Community Centre, Chorley, Fully repair all joinery, clean gutters and repair leaking cast iron joints.",15/09/2021,0160398,"3,750.00",Revenue,Stringfellow Bldg Cntrctrs Ltd,17893,,
Chorley Borough Council,http://statistics.data.gov.uk/id/local-authority/30UE,Unapportionable Central OHeads,1009,Commercial & Property,General Repairs - Reactive,20004,Repairs Maintenance & Alts,5005,"Eaves Green Community Centre, Chorley, Repair all loose and rotten joinery, repaint door frames and window framing",15/09/2021,0160398,"3,450.00",Revenue,Stringfellow Bldg Cntrctrs Ltd,17893,,
Chorley Borough Council,http://statistics.data.gov.uk/id/local-authority/30UE,Capital,Capital,Communities,Grants,03002,Capital Expenditure,Capital,ADDRESS REDACTED,08/09/2021,0160465,"12,770.00",Capital,Stringfellow Bldg Cntrctrs Ltd,17893,,
Chorley Borough Council,http://statistics.data.gov.uk/id/local-authority/30UE,Capital,Capital,Communities,Grants,03002,Capital Expenditure,Capital,ADDRESS REDACTED,15/09/2021,0160558,"9,955.00",Capital,Stringfellow Bldg Cntrctrs Ltd,17893,,
Chorley Borough Council,http://statistics.data.gov.uk/id/local-authority/30UE,Unapportionable Central OHeads,1009,Commercial & Property,General Repairs - Reactive,20004,Repairs Maintenance & Alts,5005,"Astley Village Community Centre: Replace rotten timber, clad over all vertically boarded walls, black ash upvc T&G cladding",22/09/2021,0160870,"1,515.00",Revenue,Stringfellow Bldg Cntrctrs Ltd,17893,,
Chorley Borough Council,http://statistics.data.gov.uk/id/local-authority/30UE,Central Support Services,1009,Customer & Digital,Refuse Collection,20037,Cleaning and Domestic Supplies,5012,"Trade Waste (1/04/21 to 31/03/22). Town Hall, PR7 1DP, GENERAL WASTE 1 x 1100L bin 3 times per week.",22/09/2021,0159002,113.01,Revenue,SUEZ R&R UK LTD,17615,,
Chorley Borough Council,http://statistics.data.gov.uk/id/local-authority/30UE,Unapportionable Central OHeads,1009,Customer & Digital,Refuse Collection,20037,Cleaning and Domestic Supplies,5012,"Trade Waste (1 April 21 to 31 March 22). Town Hall, PR7 1DP MIXED RECYCLING  1 x 1100L bin once per week.",22/09/2021,0159002,22.01,Revenue,SUEZ R&R UK LTD,17615,,
Chorley Borough Council,http://statistics.data.gov.uk/id/local-authority/30UE,Unapportionable Central OHeads,1009,Customer & Digital,Refuse Collection,20037,Cleaning and Domestic Supplies,5012,Trade Waste (1 April 21 to 31 March 22). Civic Offices PR7 1AL GENERAL WASTE   2 x 1100L bin 3 times per week.,22/09/2021,0159002,226.03,Revenue,SUEZ R&R UK LTD,17615,,
Chorley Borough Council,http://statistics.data.gov.uk/id/local-authority/30UE,Unapportionable Central OHeads,1009,Customer & Digital,Refuse Collection,20037,Cleaning and Domestic Supplies,5012,Trade Waste (1 April 21 to 31 March 22). Civic Offices PR7 1AL MIXED RECYCLING   1 x 1100L bin once per week.,22/09/2021,0159002,22.01,Revenue,SUEZ R&R UK LTD,17615,,
Chorley Borough Council,http://statistics.data.gov.uk/id/local-authority/30UE,Democratic Represent and  Mgnt,1007,Customer & Digital,Refuse Collection,20037,Cleaning and Domestic Supplies,5012,"Trade Waste (1 April 21 to 31 March 22). Astley Hall, PR7 1NP GENERAL WASTE   1 x 1100L bin once per week.",22/09/2021,0159002,37.67,Revenue,SUEZ R&R UK LTD,17615,,
Chorley Borough Council,http://statistics.data.gov.uk/id/local-authority/30UE,Community Development,1097,Customer & Digital,Refuse Collection,20037,Cleaning and Domestic Supplies,5012,"TRADE WASTE (2021 :2022) MP�s Constituency Office 35-39 Market Street, PR7 2SW  1 X1100 L bin emptied once per week",22/09/2021,0159002,37.67,Revenue,SUEZ R&R UK LTD,17615,,
Chorley Borough Council,http://statistics.data.gov.uk/id/local-authority/30UE,Democratic Represent and  Mgnt,1007,Customer & Digital,Refuse Collection,20037,Cleaning and Domestic Supplies,5012,"TRADE WASTE (April 2021 - March 2022) Eaves Green Community Centre, PR7 3QG 1 X 360 L bin emptied once per week",22/09/2021,0159002,20.49,Revenue,SUEZ R&R UK LTD,17615,,
Chorley Borough Council,http://statistics.data.gov.uk/id/local-authority/30UE,Democratic Represent and  Mgnt,1007,Customer & Digital,Refuse Collection,20037,Cleaning and Domestic Supplies,5012,"TRADE WASTE (April 2021 - March 2022) Astley Village Community Centre, PR7 1XA   1 X 360 L bin emptied once per week",22/09/2021,0159002,20.49,Revenue,SUEZ R&R UK LTD,17615,,
Chorley Borough Council,http://statistics.data.gov.uk/id/local-authority/30UE,Recreation & Sport,1037,Customer & Digital,Miscellaneous Expenses,40200,Miscellaneous Expenses,5034,"TRADE WASTE (April 2021 - March 2022) Buttermere Green Community Centre,  PR7 2JG  1 X 360 L bin emptied once per week",22/09/2021,0159002,20.49,Revenue,SUEZ R&R UK LTD,17615,,
Chorley Borough Council,http://statistics.data.gov.uk/id/local-authority/30UE,Recreation & Sport,1037,Customer & Digital,Miscellaneous Expenses,40200,Miscellaneous Expenses,5034,"TRADE WASTE (April 2021 - 03/2022) Lancaster Way Community Centre, PR7 7LJ 1 X 360 L bin emptied once per week",22/09/2021,0159002,20.49,Revenue,SUEZ R&R UK LTD,17615,,
Chorley Borough Council,http://statistics.data.gov.uk/id/local-authority/30UE,Democratic Represent and  Mgnt,1007,Customer & Digital,Refuse Collection,20037,Cleaning and Domestic Supplies,5012,"TRADE WASTE (April 2021 - March 2022) Tatton Community Centre, PR6 0PL, 1 X 360 L bin emptied once per week",22/09/2021,0159002,20.49,Revenue,SUEZ R&R UK LTD,17615,,
Chorley Borough Council,http://statistics.data.gov.uk/id/local-authority/30UE,Democratic Represent and  Mgnt,1007,Customer & Digital,Refuse Collection,20037,Cleaning and Domestic Supplies,5012,"TRADE WASTE (April 2021 - March 2022) Clayton Brook Village Hall, PR5 8SE, Refuse Sacks -6 per week",22/09/2021,0159002,24.80,Revenue,SUEZ R&R UK LTD,17615,,
Chorley Borough Council,http://statistics.data.gov.uk/id/local-authority/30UE,Business Support,1095,Customer & Digital,Refuse Collection,20037,Cleaning and Domestic Supplies,5012,"TRADE WASTE (04/2021 - 03/2022) Strawberry Fields Digital Hub, PR7 1PQ, GENERAL WASTE 3 X 1100L bins once per week",22/09/2021,0159002,113.01,Revenue,SUEZ R&R UK LTD,17615,,
Chorley Borough Council,http://statistics.data.gov.uk/id/local-authority/30UE,Business Support,1095,Customer & Digital,Refuse Collection,20037,Cleaning and Domestic Supplies,5012,"TRADE WASTE (04/2021 - 03/2022) Strawberry Fields Digital Hub, PR7 1PQ,  MIXED RECYCLING 3 X 1100L bins once/week",22/09/2021,0159002,66.03,Revenue,SUEZ R&R UK LTD,17615,,
Chorley Borough Council,http://statistics.data.gov.uk/id/local-authority/30UE,Democratic Represent and  Mgnt,1007,Customer & Digital,Miscellaneous Expenses,40200,Miscellaneous Expenses,5034,"TRADE WASTE (04/2021 - 03/2022) All Seasons Leisure Centre, PR7 1EX GENERAL WASTE 2 X 1100L bins once per week",22/09/2021,0159002,75.34,Revenue,SUEZ R&R UK LTD,17615,,
Chorley Borough Council,http://statistics.data.gov.uk/id/local-authority/30UE,Democratic Represent and  Mgnt,1007,Customer & Digital,Miscellaneous Expenses,40200,Miscellaneous Expenses,5034,"TRADE WASTE (April 2021 - 03/2022) All Seasons Leisure Centre, PR7 1EX MIXED RECYCLING 1 X 1100L bins once per week",22/09/2021,0159002,22.01,Revenue,SUEZ R&R UK LTD,17615,,
Chorley Borough Council,http://statistics.data.gov.uk/id/local-authority/30UE,Democratic Represent and  Mgnt,1007,Customer & Digital,Miscellaneous Expenses,40200,Miscellaneous Expenses,5034,"TRADE WASTE (04/2021 - 03/2022) Clayton Green Sports Centre, PR6 7TL GENERAL WASTE 1 X 1100L bins once per week",22/09/2021,0159002,37.67,Revenue,SUEZ R&R UK LTD,17615,,
Chorley Borough Council,http://statistics.data.gov.uk/id/local-authority/30UE,Democratic Represent and  Mgnt,1007,Customer & Digital,Miscellaneous Expenses,40200,Miscellaneous Expenses,5034,TRADE WASTE (04/2021-03/2022) Clayton Green Sports Centre PR6 7TL MIXED RECYCLING 1 X 1100L bin EVERY 2 WEEKS,22/09/2021,0159002,10.98,Revenue,SUEZ R&R UK LTD,17615,,
Chorley Borough Council,http://statistics.data.gov.uk/id/local-authority/30UE,Democratic Represent and  Mgnt,1007,Customer & Digital,Miscellaneous Expenses,40200,Miscellaneous Expenses,5034,"TRADE WASTE (04/2021 - 03/2022) Brinscall Public Baths, PR6 8QR MIXED RECYCLING 1 X 1100L bin EVERY 2 WEEKS",22/09/2021,0159002,10.98,Revenue,SUEZ R&R UK LTD,17615,,
Chorley Borough Council,http://statistics.data.gov.uk/id/local-authority/30UE,Democratic Represent and  Mgnt,1007,Customer & Digital,Miscellaneous Expenses,40200,Miscellaneous Expenses,5034,"TRADE WASTE (April 2021 - March 2022) Brinscall Public Baths, PR6 8QR GENERAL WASTE 1 X 1100L bin once per week.",22/09/2021,0159002,37.67,Revenue,SUEZ R&R UK LTD,17615,,
Chorley Borough Council,http://statistics.data.gov.uk/id/local-authority/30UE,Service Management & Support,1009,Customer & Digital,Refuse Collection,20037,Cleaning and Domestic Supplies,5012,"Exchange 20 yard Street Sweeping Skip @ 80.96, to cover period  01/04/2021 - 31/03/2022",29/09/2021,0159637,"1,862.08",Revenue,SUEZ R&R UK LTD,17615,,
Chorley Borough Council,http://statistics.data.gov.uk/id/local-authority/30UE,Service Management & Support,1009,Customer & Digital,Refuse Collection,20037,Cleaning and Domestic Supplies,5012,"Exchange 35 yard General Waste Skip @ 89.94, to cover period  01/04/2021 - 31/03/2022",29/09/2021,0159637,"1,079.28",Revenue,SUEZ R&R UK LTD,17615,,
Chorley Borough Council,http://statistics.data.gov.uk/id/local-authority/30UE,Service Management & Support,1009,Customer & Digital,Refuse Collection,20037,Cleaning and Domestic Supplies,5012,Disposal charge and processing of Green Waste @ 37.50 per tonne,29/09/2021,0159637,202.76,Revenue,SUEZ R&R UK LTD,17615,,
Chorley Borough Council,http://statistics.data.gov.uk/id/local-authority/30UE,Economic Development,1096,Commercial & Property,Refuse Collection,20037,Cleaning and Domestic Supplies,5012,"Market Walk/Market Walk Extension/Markets/Calico Lounge/Reel Cinema Waste Removal, GENERAL WASTE Euro 1100 bins",08/09/2021,0160337,"2,260.26",Revenue,SUEZ R&R UK LTD,17615,,
Chorley Borough Council,http://statistics.data.gov.uk/id/local-authority/30UE,Economic Development,1096,Commercial & Property,Refuse Collection,20037,Cleaning and Domestic Supplies,5012,"Market Walk YARD 1 - GENERAL WASTE (Market Walk) - 8 cubic yard FEL skip x 1, 55.78 per week",08/09/2021,0160337,241.77,Revenue,SUEZ R&R UK LTD,17615,,
Chorley Borough Council,http://statistics.data.gov.uk/id/local-authority/30UE,Economic Development,1096,Commercial & Property,Refuse Collection,20037,Cleaning and Domestic Supplies,5012,"Market Walk YARD 1 - CARDBOARD ONLY - 35 cubic yard RoRo skip x 1, 25 per month",08/09/2021,0160337,25.00,Revenue,SUEZ R&R UK LTD,17615,,
Chorley Borough Council,http://statistics.data.gov.uk/id/local-authority/30UE,Business Support,1095,Commercial & Property,Refuse Collection,20037,Cleaning and Domestic Supplies,5012,"Market Walk YARD 2 - CARDBOARD ONLY - 35 cubic yard RoRo skip x 1, 25 per month",08/09/2021,0160337,25.00,Revenue,SUEZ R&R UK LTD,17615,,
Chorley Borough Council,http://statistics.data.gov.uk/id/local-authority/30UE,Business Support,1095,Commercial & Property,Refuse Collection,20037,Cleaning and Domestic Supplies,5012,"Market Walk YARD 2 - GENERAL WASTE - 8 cubic yard FEL skip x 1, 55.78 per week",08/09/2021,0160337,242.64,Revenue,SUEZ R&R UK LTD,17615,,
Chorley Borough Council,http://statistics.data.gov.uk/id/local-authority/30UE,Business Support,1095,Commercial & Property,Refuse Collection,20037,Cleaning and Domestic Supplies,5012,"Market Walk YARD 3 - GENERAL WASTE - 8 cubic yard FEL skip x 2, 55.78 per skip per week. ( 111.56 pw for 2 skips)",08/09/2021,0160337,485.29,Revenue,SUEZ R&R UK LTD,17615,,
Chorley Borough Council,http://statistics.data.gov.uk/id/local-authority/30UE,Business Support,1095,Commercial & Property,Refuse Collection,20037,Cleaning and Domestic Supplies,5012,"Market Walk YARD 3 - CARDBOARD ONLY - 35 cubic yard RoRo skip x 1, 25 per month",08/09/2021,0160337,25.00,Revenue,SUEZ R&R UK LTD,17615,,
Chorley Borough Council,http://statistics.data.gov.uk/id/local-authority/30UE,Business Support,1095,Commercial & Property,Refuse Collection,20037,Cleaning and Domestic Supplies,5012,"Market Walk YARD 3 - PLASTIC FILM - 35 cubic yard RoRo skip x 1, 25 per month",08/09/2021,0160337,25.00,Revenue,SUEZ R&R UK LTD,17615,,
Chorley Borough Council,http://statistics.data.gov.uk/id/local-authority/30UE,Business Support,1095,Commercial & Property,Refuse Collection,20037,Cleaning and Domestic Supplies,5012,"Market Walk Ext, Chorley PR7 1FD - GENERAL WASTE - Euro 1100 Litre x 8. 8.66 per bin per week",08/09/2021,0160337,301.37,Revenue,SUEZ R&R UK LTD,17615,,
Chorley Borough Council,http://statistics.data.gov.uk/id/local-authority/30UE,Business Support,1095,Commercial & Property,Refuse Collection,20037,Cleaning and Domestic Supplies,5012,"Market Walk Ext, Chorley PR7 1FD - MIXED RECYCLING - Euro 1100 Litre x 8. 5.06 per bin per week",08/09/2021,0160337,176.09,Revenue,SUEZ R&R UK LTD,17615,,
Chorley Borough Council,http://statistics.data.gov.uk/id/local-authority/30UE,Business Support,1095,Commercial & Property,Refuse Collection,20037,Cleaning and Domestic Supplies,5012,"Market Walk Ext, Chorley PR7 1FD - FOOD WASTE - 240 Litre bins x 4. 8.75 per bin per week",08/09/2021,0160337,75.95,Revenue,SUEZ R&R UK LTD,17615,,
Chorley Borough Council,http://statistics.data.gov.uk/id/local-authority/30UE,Business Support,1095,Commercial & Property,Refuse Collection,20037,Cleaning and Domestic Supplies,5012,"Market Walk Ext, Chorley PR7 1FD - GLASS ONLY - 240 Litre bins x 6. 3.75 per bin per week",08/09/2021,0160337,97.88,Revenue,SUEZ R&R UK LTD,17615,,
Chorley Borough Council,http://statistics.data.gov.uk/id/local-authority/30UE,Business Support,1095,Commercial & Property,Refuse Collection,20037,Cleaning and Domestic Supplies,5012,"Calico Lounge, Market Walk, Chorley, PR7 1FD - GENERAL WASTE - Euro 1100 Litre bins x 3. 8.66 per bin per week",08/09/2021,0160337,113.01,Revenue,SUEZ R&R UK LTD,17615,,
Chorley Borough Council,http://statistics.data.gov.uk/id/local-authority/30UE,Business Support,1095,Commercial & Property,Refuse Collection,20037,Cleaning and Domestic Supplies,5012,"Calico Lounge, Market Walk, Chorley, PR7 1FD - MIXED RECYCLING - Euro 1100 Litre bins x 3. 5.06 per bin per week",08/09/2021,0160337,66.03,Revenue,SUEZ R&R UK LTD,17615,,
Chorley Borough Council,http://statistics.data.gov.uk/id/local-authority/30UE,Business Support,1095,Commercial & Property,Refuse Collection,20037,Cleaning and Domestic Supplies,5012,"Calico Lounge, Market Walk, Chorley, PR7 1FD  - FOOD WASTE - 240 Litre bins x 2. 8.75 per bin per week",08/09/2021,0160337,76.13,Revenue,SUEZ R&R UK LTD,17615,,
Chorley Borough Council,http://statistics.data.gov.uk/id/local-authority/30UE,Business Support,1095,Commercial & Property,Refuse Collection,20037,Cleaning and Domestic Supplies,5012,"Calico Lounge, Market Walk, Chorley, PR7 1FD - GLASS ONLY - 240 Litre bins x 4. 3.75 per bin per week",08/09/2021,0160337,65.25,Revenue,SUEZ R&R UK LTD,17615,,
Chorley Borough Council,http://statistics.data.gov.uk/id/local-authority/30UE,Business Support,1095,Commercial & Property,Refuse Collection,20037,Cleaning and Domestic Supplies,5012,REEL Cinema - GENERAL WASTE - Euro 1100 Litre bins x 4. 8.66 per bin - emptied twice a week,08/09/2021,0160337,301.37,Revenue,SUEZ R&R UK LTD,17615,,
Chorley Borough Council,http://statistics.data.gov.uk/id/local-authority/30UE,Business Support,1095,Commercial & Property,Refuse Collection,20037,Cleaning and Domestic Supplies,5012,REEL Cinema - MIXED RECYCLING - Euro 1100 Litre bins x 2. 5.06 per bin emptied twice a week,08/09/2021,0160337,88.04,Revenue,SUEZ R&R UK LTD,17615,,
Chorley Borough Council,http://statistics.data.gov.uk/id/local-authority/30UE,Business Support,1095,Commercial & Property,Refuse Collection,20037,Cleaning and Domestic Supplies,5012,Any excess weight charges for skips & FELS,08/09/2021,0160337,17.32,Revenue,SUEZ R&R UK LTD,17615,,
Chorley Borough Council,http://statistics.data.gov.uk/id/local-authority/30UE,Service Management & Support,1009,Customer & Digital,Refuse Collection,20037,Cleaning and Domestic Supplies,5012,"Exchange 20 yard Street Sweeping Skip @ 80.96, to cover period  01/04/2021 - 31/03/2022",29/09/2021,0160910,"1,538.24",Revenue,SUEZ R&R UK LTD,17615,,
Chorley Borough Council,http://statistics.data.gov.uk/id/local-authority/30UE,Service Management & Support,1009,Customer & Digital,Refuse Collection,20037,Cleaning and Domestic Supplies,5012,Exchange 35 yard General Waste Skip @ 89.94 to cover period  01/04/2021 - 31/03/2022,29/09/2021,0160910,"1,483.73",Revenue,SUEZ R&R UK LTD,17615,,
Chorley Borough Council,http://statistics.data.gov.uk/id/local-authority/30UE,Democratic Represent and  Mgnt,1007,Communities,Miscellaneous Expenses,40200,Miscellaneous Expenses,5034,"Slip Test 1 x 395.00, Travel 1 x 75.00",15/09/2021,0159514,470.00,Revenue,Surface Consultants Ltd,82899,,
Chorley Borough Council,http://statistics.data.gov.uk/id/local-authority/30UE,Central Support Services,1009,Customer & Digital,CCTV Camera Maintenance,40007,"Equipment, Furniture & Materia",5023,CCTV ongoing maintenance and repair,15/09/2021,0160258,570.00,Revenue,Technology Solutions,72376,,
Chorley Borough Council,http://statistics.data.gov.uk/id/local-authority/30UE,Tourism,1039,Policy & Governance,Other Contributions,40145,Grants and Subscriptions,5031,Plant creche support at CFS,22/09/2021,0160935,350.00,Revenue,The Astley Walled Gardeners,70095,,
Chorley Borough Council,http://statistics.data.gov.uk/id/local-authority/30UE,Business Support,1095,Commercial & Property,Computer Equipment - Security,40106,Communication and Computing,5028,Paxton NET2 695-644 proximity fobs x 12 packs @ 24.70,22/09/2021,0160767,296.40,Revenue,The Card Network,21209,,
Chorley Borough Council,http://statistics.data.gov.uk/id/local-authority/30UE,Business Support,1095,Commercial & Property,Security Service,40062,Services,5027,Rolling PO for the security cover service at Strawberry Fields to cover invoices between April 2021 to September 2021,15/09/2021,0160569,"6,941.78",Revenue,The ExcluSec Group Ltd,78056,,
Chorley Borough Council,http://statistics.data.gov.uk/id/local-authority/30UE,Tourism,1039,Policy & Governance,Miscellaneous Expenses,40200,Miscellaneous Expenses,5034,cfs flower show,29/09/2021,0161086,300.00,Revenue,The National Sweet Pea Society,71521,,
Chorley Borough Council,http://statistics.data.gov.uk/id/local-authority/30UE,Central Support Services,1009,Commercial & Property,Agency Staff,13000,Direct Employee Expenses,5001,NAME REDACTED Estates Surveyor Fees,08/09/2021,0159997,"1,825.53",Revenue,The Oyster Partnership Ltd,81409,,
